Workbook

Sheet Info

Sheet Trial (hidden)

Sheet Instructions (hidden)
A1: Excel Skills | Financial Analysis Template
A2: Instructions
A3: www.excel-skills.com
A5: This template enables users to compare financial results for 3 annual periods. The user is required to add the appropriate annual trial balances to the template and to link each account on the trial balance to a pre-defined financial statement reporting class. The template produces automated financial reports consisting of an income statement, cash flow statement and balance sheet based on the linked trial balances and compares all amounts on the financial reports between annual periods in terms of the difference in value and percentage.
A7: The template includes the following sheets:
A8: Setup - enter your business name, select the year-end month and enter the reporting year. The business name is used as a heading on all the sheets and the reporting period selections are used to determine the annual periods which need to be included on the financial reports.
A9: Classes - this sheet contains all the pre-defined reporting classes which should be used to link the trial balance accounts on the TB sheet to the calculations on the income statement, cash flow statement and balance sheet. The class descriptions included on this sheet are displayed on the financial statements and the sheet also includes error checking in the Status column which highlights errors in the linking of the reporting classes.
A10: TB - a complete trial balance for each annual period should be included on this sheet and each account in the trial balance should be linked to a financial statement reporting class by entering or copying the appropriate class code into column B. The amounts included on the financial reports are automatically updated based on the classes specified on this sheet.
A11: IS - this sheet contains an income statement which is automatically calculated based on the reporting classes linked to the accounts on the TB sheet. No user input is required on this sheet but you can customize the report if necessary. The annual periods for which the income statement is compiled is determined based on the annual reporting period which is specified on the Setup sheet.
A12: CFS - this sheet contains a cash flow statement automatically calculated based on the reporting classes linked to the accounts on the TB sheet. No user input is required on this sheet but you can customize the report if necessary. The annual periods for which the cash flow statement is compiled is determined based on the annual reporting period specified on the Setup sheet.
A13: BS - this sheet contains a balance sheet automatically calculated based on the reporting classes linked to the accounts on the TB sheet. No user input is required on this sheet. The annual periods for which the balance sheet is compiled is determined based on the annual reporting period specified on the Setup sheet.
A14: DB - The financial dashboard on this sheet is updated automatically based on the income statement, cash flow statement and balance sheet amounts on the other sheets. The flexible design of this unique financial dashboard also makes it relatively easy to replace calculations and charts which may not be applicable to your business.
A15: TBCheck - when you copy a trial balance from another Excel file into this template, it is important to ensure that the account numbers on the source worksheet are the same as the account numbers on the target trial balance worksheet. We have therefore included this sheet to enable users to check whether their account number sequence is consistent with the TB sheet before copying the trial balance amounts into this template.
A17: In order to start using the template, you basically need to complete the following steps:
A18: ■ Change the default settings in the cells with yellow cell backgrounds on the Setup sheet.
A19: ■ If you do not want to use your own account structure and you would rather use our standard template setup, you only need to include your trial balance values on the TB sheet. All the financial statement reporting classes will already be linked to the appropriate account balances and populated on the income statement, cash flow statement and balance sheet.
A20: ■ If you want to use your own account structure, replace our default data by copying the account numbers & descriptions of all the accounts on your trial balance onto the TB sheet and then link each individual account to the appropriate reporting class by copying or entering the class code into column B. Note that a full list of all the main classes that are used on the income statement and balance sheet are included on the Classes sheet.
A21: ■ The income statement, cash flow statement and balance sheet are automatically calculated based on the amounts included on the TB sheet. Simply select the appropriate reporting period on the Setup sheet and all calculations are updated automatically.
A23: Note: These are only the main steps that need to be completed and we strongly recommend that you go through the detailed instructions below in order to obtain a more through understanding of the template design.
A25: Setup
A27: The input cells that contain a yellow cell background on the Setup sheet need to be completed in order to include your business name as a heading on all the appropriate sheets and to specify the appropriate reporting periods for which the financial reports need to be compiled. The cell with a light blue cell background contains a formula which should not be replaced!
A29: The appropriate year-end month needs to be selected in cell B6. The year-end month that is selected in this cell determines the date that is included in the headings on the income statement, cash flow statement and balance sheet reports.
A31: The financial year for which the financial reports are compiled needs to be specified in cell B8. This year will be used as the current financial year and be compared to the two years preceding it on the financial reports. If you change the year specified in this cell, the income statement, cash flow statement and balance sheet will be updated automatically.
A33: The year-end date in cell B10 is determined based on the year-end period and the reporting year in cells B6 & B8 and is only used in the heading at the top of the income statement, cash flow statement and balance sheet.
A35: Note: If any of the user input cells on the Setup sheet are not completed or if the data entered is invalid, the cell background of the appropriate cell will be highlighted in red. A red cell background therefore indicates that you should replace the data in the appropriate cell with valid input.
A37: Default Reporting Classes
A39: The default reporting classes on which the financial reports in this template are based have been included on the Classes sheet. These classes need to be linked to the individual accounts on the TB sheet in order for the financial reports to be automatically populated on the IS, CFS and BS sheets.
A41: The descriptions included on the income statement and balance sheet are also based on the class descriptions included on the Classes sheet. If you therefore want to change any of the line item descriptions on either the income statement or balance sheet, you need to edit the appropriate reporting class description on the Classes sheet.
A43: The default reporting classes can be edited but we recommend sticking to our coding convention and only adding classes if additional income statement or balance sheet items are required. Note that the codes for all income statement items start with an "I" and the code for all balance sheet items start with a "B". All our reporting codes also end with a "G".
A45: Note: New reporting classes can be added to the Classes sheet by inserting a new row in the appropriate location, entering the new code and entering the description for the new class. You also then need to copy the formula in the Status column which checks for errors.
A47: Error Checking
A49: The formula in the Status column checks whether the appropriate class code in column A has been linked to any of the accounts on the TB sheet and if so, whether the appropriate class has been added to the income statement or balance sheet.
A51: If a code has been linked to the trial balance and not added to the income statement or balance sheet, the balance sheet will probably not balance and it is therefore essential that all codes which have been linked to the trial balance are added to the income statement or balance sheet. An "add!" message will therefore be displayed in the Status column and the column heading will be highlighted in red if any of these items are found.
A53: Once you have added the affected code to the income statement or balance sheet, the errors status will be removed automatically and replaced by an "ok" status.
A55: Trial Balance
A57: A complete trial balance should be copied or entered on the TB sheet for each annual reporting period included in the financial reports. All account numbers and account descriptions that form part of the trial balance need to be copied or entered into column C and D on the TB sheet and the appropriate account balances need to be entered into the columns from column E onwards.
A59: Each account then needs to be linked to one of the pre-defined financial statement reporting classes listed on the Classes sheet. The template will contain default data on the TB sheet when you use it for the first time but you can replace all the account numbers and descriptions with your own and clear all the class codes in column B before you commence with the exercise of linking your accounts to the appropriate pre-defined financial statement reporting classes.
A61: After clearing all the class codes from column B, you need to refer to the Classes sheet in order to determine which accounts need to be linked to which financial statement reporting classes. Note that you do not need to use all the default classes if they are not required but it is imperative that each account is linked to a class. After completing the linking exercise, there should therefore be no blank values in column B.
A63: Note: We have included a formula in the Status column (column A) which displays a "class!" message if the appropriate class in column B has not been added to the Classes sheet or an "add!" message if the class has not been added to the income statement or balance sheet. The column heading will also be highlighted in red if any of these errors are found. The formula in this column should be copied for all new accounts that are added to the TB sheet.
A65: Note: All the accounts that are included in your trial balance should be entered in a continuous cell range on the TB sheet - there should not be any blank rows or columns in between account numbers or financial periods otherwise all the accounts or periods may not be included in the financial statement calculations and your balance sheet may therefore not balance!
A67: We have also included totals above the column headings which will indicate if the sum of the account balances for any annual period does not equal nil. If the total of all the account balances in a trial balance does not equal nil, it means that the financial statements will not be accurate and that the balance sheet will probably not balance. You should therefore always ensure that the trial balance for each annual period adds up to a nil value.
A69: The template has been designed to compare the financial results for 3 annual periods and you need to add trial balances for at least 3 annual periods to the TB sheet. The cash flow statement data for the 3rd annual period will however not be correct if only 3 annual periods are included and it is recommended to add balance sheets for at least 4 annual periods to the TB sheet.
A71: Example: If the financial reports are to be compiled from the 2018 financial year and this year is specified on the Setup sheet, trial balances for 2018, 2017 and 2016 should be added to the TB sheet. The cash flow statement for the 2016 financial period will however not be accurate if the 2015 balance sheet is not also added as a trial balance on the TB sheet. If you therefore want to see accurate reports for 3 annual periods, we recommend that you also add the 4th financial period to the TB sheet.
A73: The TB sheet contains five financial years by default and in most instances, these financial years will represent the financial periods that the user requires. If you are however performing an analysis of previous periods, you may need to change the financial year headings on the TB sheet. The automated income statement, cash flow statement and balance sheet will automatically pick up the appropriate trial balance amounts based on the year headings that you specify on the TB sheet.
A75: Adding new reporting classes
A77: If you require additional lines to be included on the income statement, cash flow statement or balance sheet, you may need to create additional reporting codes as main income statement or balance sheet categories or as sub codes below the existing reporting class codes.
A79: If the account category that you want to create forms part of the income statement or balance sheet and it is not provided for on the Classes sheet, you can create a new reporting class code and link it to the appropriate accounts on the TB sheet. All new income statement codes should start with "I-" and all new balance sheet codes should start with "B-". You should also ensure that the new code that you create does not clash with any of the existing reporting class codes.
A81: Our reporting class code convention contains a two-character account group in the first two numbers of the reporting class code. If you create a new reporting class for a new account group, you can simply use the next numbers that are available. Create the new class by adding a new row in the appropriate location on the Classes sheet, copying or entering it in column B on the TB sheet and then adding a new row to the appropriate location on the income statement or balance sheet.
A83: You can also create multiple additional reporting classes under the same account group by adding two numbers to the existing account group reporting class code. We have used this method to include detailed expense accounts under the operating expenses section. The main account group class is I-03G and we have linked the individual expense accounts on the trial balance to reporting classes which start with this account group (without the "G") followed by another two numbers for each individual account and ending with a "G". Refer to the IS sheet and note the reporting classes for expenses in column A.
A85: Adding new financial periods
A87: After using the template to compile your first set of financial reports, you can add subsequent financial periods by simply copying the last column on the TB sheet to the next available column, changing the column heading to the next financial year and clearing all the account balances in the new column (we recommend replacing the existing values with nil values before entering or copying the appropriate account balances into the new column).
A89: Note: All the trial balance data on the TB sheet should form part of a continuous cell range and you should not include any blank rows or columns between rows or columns that contain data otherwise the template calculations will not be accurate.
A91: Trial balance check & import
A93: If you use a trail balance export file in order to compile your financial reports, the trial balance export will have to be converted so that the account numbers are in the exact same sequence as the accounts on the TB sheet before you will be able to copy the balances onto the TB sheet. This is an absolute necessity in order to ensure that the correct account balances are included next to the correct account number.
A95: New accounts may also have been added during the current financial period which may not be included in the previous trial balance on the TB sheet. These accounts therefore need to be identified and inserted in the correct row position before the account balances can be copied. This could be quite a time consuming exercise and we have therefore created the TBCheck sheet to assist users in simplifying this exercise.
A97: The following steps need to be completed in order to ensure that the trial balance for the new financial period is correctly included on the TB sheet:
A98: ■ Sort the data on the TB sheet in an ascending order based on the account number in column B.
A99: ■ Sort the data on the trial balance export file in an ascending order based on the account number column.
A100: ■ Copy the account number, account description and account balance from the export file and paste the data into column A to C on the TBCheck sheet (replace the existing data on this sheet).
A101: ■ Copy cells D5 and E5 and paste these cells into all the rows in column D and E that contain account numbers. Note that these two cells contain formulas and formatting that will assist you in identifying new accounts or changes that need to be made to the sequence of the accounts in the export file.
A102: ■ Review the contents in column D - a row that contains a light blue "ok" cell is in the correct sequence but if an "error" is displayed in orange, it means that the sequence of accounts on the TBCheck sheet is not the same as the accounts on the TB sheet.
A103: ■ Compare the contents of all the rows that contain errors by comparing the account sequence on the TBCheck sheet with the account sequence on the TB sheet.
A104: ■ Where an account is included on the TBCheck sheet but not on the TB sheet, insert a new row on the TB sheet, copy the account number and description into column B and C and enter a nil value into all the columns that relate to previous financial years. After completing these steps, the error in the particular row will automatically be removed from the TBCheck sheet.
A105: ■ Where an account is included on the TB sheet but not on the TBCheck sheet, insert a new row on the TBCheck sheet, copy the account number & description from the TB sheet and copy the formulas in column D and E from one of the existing rows. Column D should now contain a light blue "ok" message.
A106: ■ Repeat the previous two steps until the TBCheck sheet contains no errors.
A107: ■ Ensure that the total of the amounts in column E on the TBCheck sheet is nil - the total calculation is included in the row above the column headings. If the total is not nil, the difference will be reflected in red in the cell above the column headings with an "error" message next to it. Note that the difference may be attributable to rounding which is covered in the next section.
A108: ■ If the column E total is not nil and the difference cannot be attributable to rounding, review your trial balance export and make sure that the total of the export file is in fact nil. Also review the TBCheck sheet and ensure that all the accounts on the trial balance export have been added to this sheet.
A109: ■ Rounding errors can be corrected by amending the trial balance amounts of selected accounts in column C. When the red cell background is removed from the total calculation and the "error" text is replaced by an "ok" message, it means that the trial balance has been corrected.
A110: ■ The amounts in column E can now be copied and pasted as values into the appropriate column (for the new period) on the TB sheet. After completing this step, the trial balance has successfully been added to the template.
A112: Rounding in financial statements
A114: Rounding can have a significant impact on financial reports because the amounts that are displayed on the financial reports may not always add up to the totals that are displayed. Even the most insignificant of errors could result in financial reports appearing to be inaccurate.
A116: Checking all the calculations in financial reports and making the appropriate adjustments could be quite a time consuming and cumbersome approach and we therefore recommend making the required adjustments on a trial balance level instead. This approach will ensure that the calculations that are included in the financial reports are always accurate.
A118: The problem with rounding in financial reporting terms is that a trial balance typically includes two decimal values while financial reports are typically compiled to the nearest integer value. When two amounts that contain decimal values are rounded and added, the result is not necessarily the same as the rounded value of the total but if the decimal values are rounded to the nearest integer value and then added together, the total that is calculated is guaranteed to be accurate.
A120: This approach is followed in the calculations in column E on the TBCheck sheet in that the trial balance amounts in column C are rounded to the nearest integer value in column E. If you therefore use the TBCheck sheet to round all the amounts on the trial balance to the nearest integer values before correcting any rounding differences that may exist and copying & pasting the values onto the TB sheet, your financial reports are guaranteed to be accurate. We therefore recommend always using the TBCheck sheet before including the appropriate trial balance amounts for a new financial period on the TB sheet.
A122: Income Statement
A124: The income statement on the IS sheet is automatically compiled based on the trial balances included on the TB sheet. The first reporting period is determined based on the reporting year specified on the Setup sheet. Aside from amendments to the default line items included on the income statement, the sheet requires no user input.
A126: The calculated amounts for each individual line item on the income statement are based on the reporting classes entered in column A. Most of these line items are based on main reporting classes but we have provided for sub classes to be included in the operating expenses section in order to include expense items individually on the income statement.
A128: Expense Accounts
A130: The template provides for 23 expense accounts to be included on the income statement. Only one of these expense accounts has been linked to an account group class (I-08G for other expenses). All the other accounts have been linked to reporting classes with an additional two numeric characters which have been added to facilitate including individual expense accounts.
A132: When you start using the template, you can use the same classes to link your expense accounts individually and simply edit the class descriptions on the Classes sheet so that the individual expense classes refer to the correct expense account descriptions.
A134: If you need to include more than the default number of expense accounts, you can add additional expense account classes to the Classes sheet, include the appropriate expense account descriptions on this sheet, link the accounts on the TB sheet to the new classes, insert the required number of additional rows on the income statement, copy the formulas from one of the existing rows and change the key in column A to the new class.
A136: Note: If you don't require all the default expense line items which have been included in the standard template, you can delete the items that you do not require by simply deleting the appropriate rows on the IS sheet.
A138: Cash Flow Statement
A140: The cash flow statement on the CFS sheet has been designed on the same basis as the income statement on the IS sheet. The cash flow statement is automatically compiled based on the trial balances included on the TB sheet. The first reporting period is determined based on the reporting year specified on the Setup sheet. Aside from amendments to the default line items included on the cash flow statement, the sheet requires no user input.
A142: If you want to remove a line from the cash flow statement, we strongly recommend that you hide the appropriate line instead of deleting it. If you delete cells which are used in some of the other cash flow statement calculations, you may encounter a calculation error in some of the other rows on the report.
A144: You can also add lines to the cash flow statement by inserting a new row, entering the reporting code on which the calculation should be based in column A and copying the formulas from one of the other similar lines on the cash flow statement.
A146: Example: If we wanted to add another non-cash expense line to the cash flow statement, we would insert a new row below the amortisation expense, enter the reporting class to which the new non-cash expense account has been linked on the TB sheet in column A, enter a description for the non-cash transaction in column B and copy the formulas from the amortisation row into the new blank row (for columns C to J).
A148: New cash flow statement items need to be added to the CFS sheet by using a reporting class which is consistent with the code that has been used to add the appropriate item to the income statement or balance sheet. This will ensure that the appropriate item is also updated on the income statement or balance sheet.
A150: We have included a balance status at the bottom of the CFS sheet in order to check whether the cash balance at the end of the financial period agrees to the cash balance on the balance sheet. If the closing cash balance does not agree to the balance sheet, this row will contain an error message.
A152: Balance Sheet
A154: The balance sheet on the BS sheet has been designed on the same basis as the income statement on the IS sheet. The balance sheet is automatically compiled based on the trial balances included on the TB sheet. The first reporting period is determined based on the reporting year specified on the Setup sheet. Aside from amendments to the default line items included on the balance sheet, the sheet requires no user input.
A156: If you want to remove a line from the balance sheet, we strongly recommend that you hide the appropriate line instead of deleting it. If you delete cells which are used in some of the other balance sheet calculations, you may encounter a calculation error in some of the other rows or on the cash flow statement.
A158: You can also add additional lines to the balance sheet by inserting a new row, entering the reporting code on which the calculation should be based in column A and copying the formulas from one of the other similar lines on the balance sheet.
A160: Note: If you add new lines to the balance sheet, you also need to add the new balance sheet items to the appropriate location on the cash flow statement otherwise the cash flow statement will not balance.
A162: We have added conditional formatting to the rows which contain the total assets and total equity & liabilities calculations to highlight the cells in red if the balance sheet does not balance. Refer to the Troubleshooting section of these instructions for information on the cause of balance sheet imbalances. Once all the errors are fixed, the red highlighting will be removed automatically.
A164: Financial Dashboard
A166: The financial dashboard on the DB sheet is automatically updated based on the income statement, cash flow statement and balance sheet calculations on the other sheets. The flexible design of this unique financial dashboard also makes it relatively easy to replace calculations and charts which may not be applicable to your business.
A168: All the data on which the dashboard calculations are based are included below the dashboard - this section has not been included in the print range and will not be printed. We have designed the dashboard components with as much flexibility as practically possible and also made it relatively easy to replace dashboard components if necessary.
A170: We have included notes on the types of formulas used in column K which indicate how to amend the dashboard items if you wish to do so. We recommend saving a copy of the template before making any changes so that you can revert back to the copy if your changes result in any errors.
A172: Where the notes indicate that the line item is based on an income statement formula, cash flow statement formula or a balance sheet formula, the line item can be based on any other item on the appropriate report by simply linking the line item description in column A to the intended target. The calculations in the other columns and the dashboard will be updated automatically.
A174: Where the notes indicate that a line item formula is used, it means that the formula pertains specifically to the particular line item and that you need to add your own calculation in order to replace the default template calculation. The only other description used is the array formula and we do not recommend making any changes to the top 5 expenses section of the dashboard.
A176: Note: The cells with light blue text are the cells which can be edited. We do not recommend making changes to the cells which are not indicated in light blue text as these contain formulas which are essential for the dashboard to be displayed correctly.
A178: We have included additional flexibility in the charts for the gross profit percentage and the interest cover which results in the first reverting to an operating expense percentage calculation and the last to a taxation percentage calculation if the gross profit percentage or interest paid values are nil.
A180: Roll Forward
A182: The template can easily be rolled forward to include a new financial year by simply adding the trial balance for the appropriate financial year to the TB sheet and changing the year that is selected on the Setup sheet to the new year. All the calculations on the income statement, cash flow statement and balance sheet will be updated automatically to include the new financial year and the two years before it.
A184: Adding Financial Periods
A186: The template has been designed to incorporate 3 financial years in the default design. The formulas have however been designed in such a way that it is relatively easy to add additional financial years to the template.
A188: Additional financial years can basically be added by copying the data in columns H to J on the income statement, cash flow statement and balance sheet and pasting the columns into the same relative position as they are when compared to the copied columns. This essentially means that one column should be left blank after each copied column range.
A190: Example: You can add a fourth financial year to the template by copying columns H to J on the income statement, cash flow statement and balance sheet and pasting these copied columns into columns L to N. Note that one column (K) is left blank.
A192: Example: You can add a fifth financial year to the template by copying columns L to N on the income statement, cash flow statement and balance sheet and pasting these copied columns into columns P to R. Note that one column (O) is left blank.
A194: Troubleshooting
A196: The following troubleshooting steps need to be completed if any of the balance sheets which are included on the BS sheet are not in balance:
A197: ■ Check whether the total for the appropriate trial balance is nil (refer to the totals above the column heading row on the TB sheet for the appropriate financial year).
A198: ■ Check the TB sheet for blank rows. No blank rows should be included between rows that contain data otherwise the template calculations may not be accurate.
A199: ■ Check the Status column on the Classes sheet and ensure that there are no errors. If you see an error in this column, it indicates that the appropriate class has been linked to one or more accounts on the TB sheet and not included in the income statement or balance sheet reports. You then need to include the appropriate reporting class in the appropriate location on the income statement or balance sheet.
A200: ■ Check whether there are any cells that contain an error message in column A on the TB sheet. If a cell contains an error message, it means that the account has been linked to a reporting class which does not form part of the income statement or balance sheet reports. This may therefore mean that the appropriate account has been linked to an invalid reporting class code. All invalid reporting classes need to be amended and there should be no accounts on the TB sheet which contain errors in column A.
A201: ■ If you encounter a #REF! error anywhere in the template, it means that you've deleted a row which is used in the formulas that have been included in another row. As we stated earlier on in these instructions, you should rather hide a row instead of deleting it in order to remove the appropriate row from the financial reports. If you've deleted a row which you shouldn't have, you may have to revert back to the downloaded copy of the template or contact our support function for assistance.
A202: ■ If you've added new reporting classes to the template, check whether all of your new reporting classes have been included on the income statement and balance sheet reports. All reporting classes that have been linked to accounts on the TB sheet should be included on either the IS or BS sheets.
A203: ■ If your cash flow statement does not balance and you've added new items to the income statement or balance sheet, make sure that you have also added the appropriate items to the cash flow statement. You can insert a new row, copy one of the existing lines which are similar in nature and just change the reporting class in column A and the description in column B.
A204: ■ If you have completed the above steps and you still have an imbalance on any of your balance sheets, contact our Support function for assistance.
A206: Help & Customization
A208: If you experience any difficulty while using this template and you are not able to find the appropriate guidance in these instructions, please e-mail us at support@excel-skills.com for assistance. This template has been designed with flexibility in mind to ensure that it can be used in most business environments. If however you need an Excel based template that is customized specifically for your business requirements, please e-mail our Support function and provide a brief explanation of your requirements.
A210: © Copyright
A212: This template remains the intellectual property of www.excel-skills.com and is protected by international copyright laws. Any publication or distribution of this template outside the scope of the permitted use of the template is expressly prohibited. In terms of the permitted use of this template, only the distribution of the template to persons within the same organisation as the registered user or persons outside the organisation who can reasonably be expected to require access to the template as a direct result of the use of the template by the registered user is allowed. Subsequent distribution of the template by parties outside of the organisation is however expressly prohibited and represents an infringement of international copyright laws.

Sheet Setup (hidden)
A1: =IF(ISBLANK($B$4),"Example (Pty) Limited",$B$4) -> Example (Pty) Limited
A2: Setup
A3: © www.excel-skills.com
A4: Business Name | B4: Example (Pty) Limited
A6: Year End Month | B6: 2016-02-01
A8: Reporting Year | B8: 2023 | D8: =IF(ISBLANK($B$8),YEAR(TODAY()),$B$8) -> 2023
A10: Year End Date | B10: =IF(ISBLANK($B$8)=TRUE,IF(ISBLANK($B$6)=TRUE,DATE(YEAR(TODAY()),MONTH(TODAY())+1,0),DATE(YEAR(TODAY()),MONTH($B$6)+1,0)),IF(ISBLANK($B$6)=TRUE,DATE($B$8,MONTH(TODAY())+1,0),DATE($B$8,MONTH($B$6)+1,0))) -> 2023-02-28
B13: =DATE(YEAR(TODAY()),1,1) -> 2023-01-01
B14: =DATE(YEAR(TODAY()),2,1) -> 2023-02-01
B15: =DATE(YEAR(TODAY()),3,1) -> 2023-03-01
B16: =DATE(YEAR(TODAY()),4,1) -> 2023-04-01
B17: =DATE(YEAR(TODAY()),5,1) -> 2023-05-01
B18: =DATE(YEAR(TODAY()),6,1) -> 2023-06-01
B19: =DATE(YEAR(TODAY()),7,1) -> 2023-07-01
B20: =DATE(YEAR(TODAY()),8,1) -> 2023-08-01
B21: =DATE(YEAR(TODAY()),9,1) -> 2023-09-01
B22: =DATE(YEAR(TODAY()),10,1) -> 2023-10-01
B23: =DATE(YEAR(TODAY()),11,1) -> 2023-11-01
B24: =DATE(YEAR(TODAY()),12,1) -> 2023-12-01

Sheet Classes (hidden)
A1: =IF(ISBLANK(Setup!$B$4),"Example (Pty) Limited",Setup!$B$4) -> Example (Pty) Limited
A2: Default Reporting Classes
A3: © www.excel-skills.com
A4: Class | B4: Description | C4: Status
A5: Income Statement
A6: I-01G | B6: Turnover | C6: =IF(ISNA(MATCH($A6,TBClass,0)),"-",IF(LEFT($A6,1)="I",IF(ISNA(MATCH($A6,ISCode,0)),"add!","ok"),IF(ISNA(MATCH($A6,BSCode,0)),"add!","ok"))) -> ok
A7: I-02G | B7: Cost of sales | C7: ok
A8: I-03G | B8: Operating expenses | C8: -
A9: I-0301G | B9: Accounting fees | C9: ok
A10: I-0302G | B10: Advertising & marketing | C10: ok
A11: I-0303G | B11: Bank charges | C11: ok
A12: I-0304G | B12: Commission | C12: ok
A13: I-0305G | B13: Computer expenses | C13: ok
A14: I-0306G | B14: Consumables & cleaning | C14: ok
A15: I-0307G | B15: Entertainment | C15: ok
A16: I-0308G | B16: Insurance | C16: ok
A17: I-0309G | B17: Office expenses | C17: ok
A18: I-0310G | B18: Office rent | C18: ok
A19: I-0311G | B19: Postage | C19: ok
A20: I-0312G | B20: Professional & legal fees | C20: ok
A21: I-0313G | B21: Stationery | C21: ok
A22: I-0314G | B22: Subscriptions & memberships | C22: ok
A23: I-0315G | B23: Telephone & internet | C23: ok
A24: I-0316G | B24: Training | C24: ok
A25: I-0317G | B25: Travelling & accommodation | C25: ok
A26: I-0318G | B26: Utilities | C26: ok
A27: I-04G | B27: Staff costs | C27: -
A28: I-0401G | B28: Salaries & wages - staff | C28: ok
A29: I-0402G | B29: Salaries & wages - management | C29: ok
A30: I-05G | B30: Depreciation & amortization | C30: -
A31: I-0501G | B31: Depreciation | C31: ok
A32: I-0502G | B32: Amortisation | C32: ok
A33: I-06G | B33: Interest paid | C33: ok
A34: I-07G | B34: Taxation paid | C34: ok
A35: I-08G | B35: Other expenses | C35: ok
A36: I-09G | B36: Other income | C36: ok
A37: I-10G | B37: Dividends paid | C37: ok
A38: Balance Sheet - Assets
A39: B-00G | B39: Property, plant & equipment - cost | C39: =IF(ISNA(MATCH($A39,TBClass,0)),"-",IF(LEFT($A39,1)="I",IF(ISNA(MATCH($A39,ISCode,0)),"add!","ok"),IF(ISNA(MATCH($A39,BSCode,0)),"add!","ok"))) -> ok
A40: B-01G | B40: Property, plant & equipment - accum dep | C40: ok
A41: B-02G | B41: Intangible assets - cost | C41: ok
A42: B-03G | B42: Intangible assets - amortization | C42: ok
A43: B-04G | B43: Investments | C43: ok
A44: B-05G | B44: Loans & advances | C44: ok
A45: B-06G | B45: Bank accounts | C45: ok
A46: B-07G | B46: Cash on hand | C46: ok
A47: B-08G | B47: Trade debtors | C47: ok
A48: B-09G | B48: Other debtors | C48: ok
A49: B-10G | B49: Inventory | C49: ok
A50: Balance Sheet - Equity
A51: B-19G | B51: Reserves | C51: =IF(ISNA(MATCH($A51,TBClass,0)),"-",IF(LEFT($A51,1)="I",IF(ISNA(MATCH($A51,ISCode,0)),"add!","ok"),IF(ISNA(MATCH($A51,BSCode,0)),"add!","ok"))) -> ok
A52: B-20G | B52: Shareholders' contributions | C52: =IF(ISNA(MATCH($A52,TBClass,0)),"-",IF(LEFT($A52,1)="I",IF(ISNA(MATCH($A52,ISCode,0)),"add!","ok"),IF(ISNA(MATCH($A52,BSCode,0)),"add!","ok"))) -> ok
A53: B-21G | B53: Retained earnings | C53: =IF(ISNA(MATCH($A53,TBClass,0)),"-",IF(LEFT($A53,1)="I",IF(ISNA(MATCH($A53,ISCode,0)),"add!","ok"),IF(ISNA(MATCH($A53,BSCode,0)),"add!","ok"))) -> ok
A54: Balance Sheet - Liabilities
A55: B-11G | B55: Bank overdraft | C55: =IF(ISNA(MATCH($A55,TBClass,0)),"-",IF(LEFT($A55,1)="I",IF(ISNA(MATCH($A55,ISCode,0)),"add!","ok"),IF(ISNA(MATCH($A55,BSCode,0)),"add!","ok"))) -> ok
A56: B-12G | B56: Trade creditors | C56: ok
A57: B-13G | B57: Accruals | C57: ok
A58: B-1301G | B58: Interest payable | C58: ok
A59: B-14G | B59: Dividends payable | C59: ok
A60: B-15G | B60: Provision for taxation | C60: ok
A61: B-16G | B61: Other provisions | C61: ok
A62: B-17G | B62: Sales tax | C62: ok
A63: B-18G | B63: Long term loans | C63: ok
A64: B-22G | B64: Deferred tax | C64: ok
A65: B-23G | B65: Finance leases | C65: ok
A66: End of list

Sheet TB (hidden)
A1: =IF(ISBLANK(Setup!$B$4),"Example (Pty) Limited",Setup!$B$4) -> Example (Pty) Limited
A2: Trial Balance
A3: © www.excel-skills.com | E3: =IF(TBRowCount=0,0,ROUND(SUBTOTAL(9,OFFSET(E$4,1,0,TBRowCount,1)),2)) -> 0 | F3: =IF(TBRowCount=0,0,ROUND(SUBTOTAL(9,OFFSET(F$4,1,0,TBRowCount,1)),2)) -> 0 | G3: =IF(TBRowCount=0,0,ROUND(SUBTOTAL(9,OFFSET(G$4,1,0,TBRowCount,1)),2)) -> 0 | H3: =IF(TBRowCount=0,0,ROUND(SUBTOTAL(9,OFFSET(H$4,1,0,TBRowCount,1)),2)) -> 0 | I3: =IF(TBRowCount=0,0,ROUND(SUBTOTAL(9,OFFSET(I$4,1,0,TBRowCount,1)),2)) -> 0 | J3: =IF(TBRowCount=0,0,ROUND(SUBTOTAL(9,OFFSET(J$4,1,0,TBRowCount,1)),2)) -> 0 | K3: =IF(TBRowCount=0,0,ROUND(SUBTOTAL(9,OFFSET(K$4,1,0,TBRowCount,1)),2)) -> 0 | L3: =IF(TBRowCount=0,0,ROUND(SUBTOTAL(9,OFFSET(L$4,1,0,TBRowCount,1)),2)) -> 0 | M3: =IF(TBRowCount=0,0,ROUND(SUBTOTAL(9,OFFSET(M$4,1,0,TBRowCount,1)),2)) -> 0
A4: Status | B4: Class | C4: Acc No | D4: Account Description | E4: 2020 | F4: 2021 | G4: 2022 | H4: 2023 | I4: 2024 | J4: 2025 | K4: 2026 | L4: 2027 | M4: 2028
A5: =IF(ISNA(VLOOKUP($B5,ClassCode,1,0)),"class!",IF(LEFT($B5,1)="B",IF(ISNA(VLOOKUP($B5,BSCode,1,0)),"add!","ok"),IF(ISNA(VLOOKUP($B5,ISCode,1,0)),"add!","ok"))) -> ok | B5: B-00G | C5: BS-0005 | D5: Land & Buildings - Cost | E5: 2500000 | F5: 2500000 | G5: 2500000 | H5: 2500000 | I5: 0 | J5: 0 | K5: 0 | L5: 0 | M5: 0
A6: ok | B6: B-00G | C6: BS-0010 | D6: Plant & Equipment - Cost | E6: 950300 | F6: 1246045 | G6: 1316045 | H6: 1546045 | I6: 0 | J6: 0 | K6: 0 | L6: 0 | M6: 0
A7: ok | B7: B-00G | C7: BS-0015 | D7: Furniture & Fittings - Cost | E7: 285600 | F7: 300000 | G7: 350000 | H7: 410000 | I7: 0 | J7: 0 | K7: 0 | L7: 0 | M7: 0
A8: ok | B8: B-00G | C8: BS-0020 | D8: Office Equipment - Cost | E8: 182630 | F8: 225000 | G8: 240000 | H8: 240000 | I8: 0 | J8: 0 | K8: 0 | L8: 0 | M8: 0
A9: ok | B9: B-00G | C9: BS-0025 | D9: Computer Equipment - Cost | E9: 65880 | F9: 120750 | G9: 150500 | H9: 165500 | I9: 0 | J9: 0 | K9: 0 | L9: 0 | M9: 0
A10: ok | B10: B-00G | C10: BS-0030 | D10: Motor Vehicles - Cost | E10: 318000 | F10: 318000 | G10: 318000 | H10: 318000 | I10: 0 | J10: 0 | K10: 0 | L10: 0 | M10: 0
A11: ok | B11: B-01G | C11: BS-0105 | D11: Land & Buildings - Accum Depreciation | E11: 0 | F11: 0 | G11: 0 | H11: 0 | I11: 0 | J11: 0 | K11: 0 | L11: 0 | M11: 0
A12: ok | B12: B-01G | C12: BS-0110 | D12: Plant & Equipment - Accum Depreciation | E12: -300120 | F12: -498418 | G12: -712418 | H12: -1051018 | I12: 0 | J12: 0 | K12: 0 | L12: 0 | M12: 0
A13: ok | B13: B-01G | C13: BS-0115 | D13: Furniture & Fittings - Accum Depreciation | E13: -75200 | F13: -100000 | G13: -158300 | H13: -224700 | I13: 0 | J13: 0 | K13: 0 | L13: 0 | M13: 0
A14: ok | B14: B-01G | C14: BS-0120 | D14: Office Equipment - Accum Depreciation | E14: -53052 | F14: -91500 | G14: -139850 | H14: -186980 | I14: 0 | J14: 0 | K14: 0 | L14: 0 | M14: 0
A15: ok | B15: B-01G | C15: BS-0125 | D15: Computer Equipment - Accum Depreciation | E15: -43920 | F15: -80500 | G15: -130650 | H15: -145550 | I15: 0 | J15: 0 | K15: 0 | L15: 0 | M15: 0
A16: ok | B16: B-01G | C16: BS-0130 | D16: Motor Vehicles - Accum Depreciation | E16: -79500 | F16: -159000 | G16: -238500 | H16: -318000 | I16: 0 | J16: 0 | K16: 0 | L16: 0 | M16: 0
A17: ok | B17: B-02G | C17: BS-0205 | D17: Goodwill - Cost | E17: 500000 | F17: 500000 | G17: 500000 | H17: 500000 | I17: 0 | J17: 0 | K17: 0 | L17: 0 | M17: 0
A18: ok | B18: B-02G | C18: BS-0210 | D18: Trademarks - Cost | E18: 390500 | F18: 390500 | G18: 390500 | H18: 390500 | I18: 0 | J18: 0 | K18: 0 | L18: 0 | M18: 0
A19: ok | B19: B-02G | C19: BS-0215 | D19: Software - Cost | E19: 150000 | F19: 150000 | G19: 150000 | H19: 150000 | I19: 0 | J19: 0 | K19: 0 | L19: 0 | M19: 0
A20: ok | B20: B-03G | C20: BS-0305 | D20: Goodwill - Accum Amortization | E20: -50000 | F20: -100000 | G20: -150000 | H20: -200000 | I20: 0 | J20: 0 | K20: 0 | L20: 0 | M20: 0
A21: ok | B21: B-03G | C21: BS-0310 | D21: Trademarks - Accum Amortization | E21: -39050 | F21: -78100 | G21: -117150 | H21: -156200 | I21: 0 | J21: 0 | K21: 0 | L21: 0 | M21: 0
A22: ok | B22: B-03G | C22: BS-0315 | D22: Software - Accum Amortization | E22: -15000 | F22: -30000 | G22: -45000 | H22: -60000 | I22: 0 | J22: 0 | K22: 0 | L22: 0 | M22: 0
A23: ok | B23: B-04G | C23: BS-0400 | D23: Share Investment - XYZ | E23: 0 | F23: 0 | G23: 802500 | H23: 802500 | I23: 0 | J23: 0 | K23: 0 | L23: 0 | M23: 0
A24: ok | B24: B-04G | C24: BS-0405 | D24: ABSA Fixed Deposit | E24: 200000 | F24: 300000 | G24: 980000 | H24: 1500000 | I24: 0 | J24: 0 | K24: 0 | L24: 0 | M24: 0
A25: ok | B25: B-05G | C25: BS-0500 | D25: Loans & Advances | E25: 22530 | F25: 30220 | G25: 48200 | H25: 60000 | I25: 0 | J25: 0 | K25: 0 | L25: 0 | M25: 0
A26: ok | B26: B-07G | C26: BS-0700 | D26: Cash On Hand | E26: 0 | F26: 0 | G26: 0 | H26: 0 | I26: 0 | J26: 0 | K26: 0 | L26: 0 | M26: 0
A27: ok | B27: B-07G | C27: BS-0799 | D27: Cash Transfer Control | E27: 0 | F27: 0 | G27: 0 | H27: 0 | I27: 0 | J27: 0 | K27: 0 | L27: 0 | M27: 0
A28: ok | B28: B-09G | C28: BS-0900 | D28: Other Debtors | E28: 0 | F28: 0 | G28: 0 | H28: 0 | I28: 0 | J28: 0 | K28: 0 | L28: 0 | M28: 0
A29: ok | B29: B-09G | C29: BS-0905 | D29: Prepayments | E29: 12000 | F29: 22600 | G29: 44500 | H29: 24000 | I29: 0 | J29: 0 | K29: 0 | L29: 0 | M29: 0
A30: ok | B30: B-10G | C30: BS-1001 | D30: Raw Materials | E30: 35620 | F30: 53699 | G30: 64120 | H30: 85200 | I30: 0 | J30: 0 | K30: 0 | L30: 0 | M30: 0
A31: ok | B31: B-10G | C31: BS-1002 | D31: Work in progress | E31: 15425 | F31: 25100 | G31: 15380 | H31: 22653 | I31: 0 | J31: 0 | K31: 0 | L31: 0 | M31: 0
A32: ok | B32: B-10G | C32: BS-1003 | D32: Finished goods | E32: 0 | F32: 0 | G32: 0 | H32: 0 | I32: 0 | J32: 0 | K32: 0 | L32: 0 | M32: 0
A33: ok | B33: B-11G | C33: BS-1100 | D33: Bank Overdraft | E33: 0 | F33: 0 | G33: 0 | H33: 0 | I33: 0 | J33: 0 | K33: 0 | L33: 0 | M33: 0
A34: ok | B34: B-13G | C34: BS-1300 | D34: Accruals | E34: -49619 | F34: -58600 | G34: -72020 | H34: -90365 | I34: 0 | J34: 0 | K34: 0 | L34: 0 | M34: 0
A35: ok | B35: B-13G | C35: BS-1305 | D35: Payroll Accruals | E35: -10200 | F35: -13108 | G35: -14500 | H35: -20572 | I35: 0 | J35: 0 | K35: 0 | L35: 0 | M35: 0
A36: ok | B36: B-1301G | C36: BS-1310 | D36: Interest Payable | E36: -12500 | F36: -15061 | G36: -17696 | H36: -16185 | I36: 0 | J36: 0 | K36: 0 | L36: 0 | M36: 0
A37: =IF(ISNA(VLOOKUP($B37,ClassCode,1,0)),"class!",IF(LEFT($B37,1)="B",IF(ISNA(VLOOKUP($B37,BSCode,1,0)),"add!","ok"),IF(ISNA(VLOOKUP($B37,ISCode,1,0)),"add!","ok"))) -> ok | B37: B-14G | C37: BS-1405 | D37: Dividends Payable | E37: 0 | F37: -75000 | G37: -100000 | H37: -150000 | I37: 0 | J37: 0 | K37: 0 | L37: 0 | M37: 0
A38: ok | B38: B-15G | C38: BS-1505 | D38: Provision For Taxation | E38: -99630 | F38: -118400 | G38: -131926 | H38: -215724 | I38: 0 | J38: 0 | K38: 0 | L38: 0 | M38: 0
A39: ok | B39: B-16G | C39: BS-1610 | D39: Other provisions | E39: -180400 | F39: -211637 | G39: -214870 | H39: -214823 | I39: 0 | J39: 0 | K39: 0 | L39: 0 | M39: 0
A40: ok | B40: B-17G | C40: BS-1700 | D40: Sales Tax Control | E40: -45620 | F40: -55891 | G40: -59835 | H40: -75891 | I40: 0 | J40: 0 | K40: 0 | L40: 0 | M40: 0
A41: ok | B41: B-18G | C41: BS-1805 | D41: ABSA Loan | E41: -2120000 | F41: -1646180 | G41: -1151104 | H41: -604187 | I41: 0 | J41: 0 | K41: 0 | L41: 0 | M41: 0
A42: ok | B42: B-18G | C42: BS-1810 | D42: Investec Loan | E42: 0 | F42: 0 | G42: -816581 | H42: -661805 | I42: 0 | J42: 0 | K42: 0 | L42: 0 | M42: 0
A43: ok | B43: B-23G | C43: BS-1815 | D43: Finance Leases | E43: -239500 | F43: -209394 | G43: -146420 | H43: -85325 | I43: 0 | J43: 0 | K43: 0 | L43: 0 | M43: 0
A44: ok | B44: B-19G | C44: BS-1900 | D44: Reserves | E44: 0 | F44: 0 | G44: 0 | H44: 0 | I44: 0 | J44: 0 | K44: 0 | L44: 0 | M44: 0
A45: ok | B45: B-20G | C45: BS-2000 | D45: Shareholders' Contributions | E45: -1000 | F45: -1000 | G45: -1000 | H45: -1000 | I45: 0 | J45: 0 | K45: 0 | L45: 0 | M45: 0
A46: ok | B46: B-22G | C46: BS-2200 | D46: Deferred Tax | E46: 42350 | F46: 47278 | G46: -17377 | H46: 33790 | I46: 0 | J46: 0 | K46: 0 | L46: 0 | M46: 0
A47: ok | B47: I-01G | C47: IS-0105 | D47: Sales - Fruit Juice | E47: 0 | F47: -3310790 | G47: -3972950 | H47: -4370245 | I47: 0 | J47: 0 | K47: 0 | L47: 0 | M47: 0
A48: ok | B48: I-01G | C48: IS-0110 | D48: Sales - Vegetable Juice | E48: 0 | F48: -1890906 | G48: -2269087 | H48: -2541378 | I48: 0 | J48: 0 | K48: 0 | L48: 0 | M48: 0
A49: ok | B49: I-02G | C49: IS-0205 | D49: Cost of Sales - Fruit Juice | E49: 0 | F49: 1644961 | G49: 1827557 | H49: 1966610 | I49: 0 | J49: 0 | K49: 0 | L49: 0 | M49: 0
A50: ok | B50: I-02G | C50: IS-0210 | D50: Cost of Sales - Vegetable Juice | E50: 0 | F50: 950908 | G50: 975707 | H50: 914965 | I50: 0 | J50: 0 | K50: 0 | L50: 0 | M50: 0
A51: ok | B51: I-02G | C51: IS-0299 | D51: Cost of Sales - Direct Costs | E51: 0 | F51: 0 | G51: 0 | H51: 0 | I51: 0 | J51: 0 | K51: 0 | L51: 0 | M51: 0
A52: ok | B52: I-0301G | C52: IS-0305 | D52: Accounting Fees | E52: 0 | F52: 15500 | G52: 18000 | H52: 24000 | I52: 0 | J52: 0 | K52: 0 | L52: 0 | M52: 0
A53: ok | B53: I-0302G | C53: IS-0310 | D53: Advertising & Marketing | E53: 0 | F53: 110520 | G53: 170000 | H53: 143644 | I53: 0 | J53: 0 | K53: 0 | L53: 0 | M53: 0
A54: ok | B54: I-0303G | C54: IS-0315 | D54: Bank Charges | E54: 0 | F54: 780 | G54: 935 | H54: 1180 | I54: 0 | J54: 0 | K54: 0 | L54: 0 | M54: 0
A55: ok | B55: I-0304G | C55: IS-0320 | D55: Commission | E55: 0 | F55: 18450 | G55: 22120 | H55: 27850 | I55: 0 | J55: 0 | K55: 0 | L55: 0 | M55: 0
A56: ok | B56: I-0305G | C56: IS-0325 | D56: Computer Expenses | E56: 0 | F56: 5625 | G56: 7210 | H56: 3477 | I56: 0 | J56: 0 | K56: 0 | L56: 0 | M56: 0
A57: ok | B57: I-0306G | C57: IS-0330 | D57: Consumables & Cleaning | E57: 0 | F57: 2500 | G57: 2000 | H57: 2500 | I57: 0 | J57: 0 | K57: 0 | L57: 0 | M57: 0
A58: ok | B58: I-0307G | C58: IS-0335 | D58: Entertainment | E58: 0 | F58: 11020 | G58: 10875 | H58: 12420 | I58: 0 | J58: 0 | K58: 0 | L58: 0 | M58: 0
A59: ok | B59: I-0308G | C59: IS-0340 | D59: Insurance | E59: 0 | F59: 3100 | G59: 3420 | H59: 3840 | I59: 0 | J59: 0 | K59: 0 | L59: 0 | M59: 0
A60: ok | B60: I-0309G | C60: IS-0345 | D60: Office Expenses | E60: 0 | F60: 350 | G60: 660 | H60: 996 | I60: 0 | J60: 0 | K60: 0 | L60: 0 | M60: 0
A61: ok | B61: I-0310G | C61: IS-0350 | D61: Office Rent | E61: 0 | F61: 114000 | G61: 120000 | H61: 144000 | I61: 0 | J61: 0 | K61: 0 | L61: 0 | M61: 0
A62: ok | B62: I-0311G | C62: IS-0355 | D62: Postage | E62: 0 | F62: 685 | G62: 452 | H62: 524 | I62: 0 | J62: 0 | K62: 0 | L62: 0 | M62: 0
A63: ok | B63: I-0312G | C63: IS-0360 | D63: Professional & Legal Fees | E63: 0 | F63: 0 | G63: 36250 | H63: 5652 | I63: 0 | J63: 0 | K63: 0 | L63: 0 | M63: 0
A64: ok | B64: I-0313G | C64: IS-0365 | D64: Stationery | E64: 0 | F64: 1150 | G64: 1257 | H64: 2491 | I64: 0 | J64: 0 | K64: 0 | L64: 0 | M64: 0
A65: ok | B65: I-0314G | C65: IS-0370 | D65: Subscriptions & Memberships | E65: 0 | F65: 4400 | G65: 4800 | H65: 5200 | I65: 0 | J65: 0 | K65: 0 | L65: 0 | M65: 0
A66: ok | B66: I-0315G | C66: IS-0375 | D66: Telephone & Internet | E66: 0 | F66: 7220 | G66: 7504 | H66: 8867 | I66: 0 | J66: 0 | K66: 0 | L66: 0 | M66: 0
A67: ok | B67: I-0316G | C67: IS-0380 | D67: Training | E67: 0 | F67: 875 | G67: 1521 | H67: 4043 | I67: 0 | J67: 0 | K67: 0 | L67: 0 | M67: 0
A68: ok | B68: I-0317G | C68: IS-0385 | D68: Travelling & Accommodation | E68: 0 | F68: 10420 | G68: 4589 | H68: 13705
A69: =IF(ISNA(VLOOKUP($B69,ClassCode,1,0)),"class!",IF(LEFT($B69,1)="B",IF(ISNA(VLOOKUP($B69,BSCode,1,0)),"add!","ok"),IF(ISNA(VLOOKUP($B69,ISCode,1,0)),"add!","ok"))) -> ok | B69: I-0318G | C69: IS-0390 | D69: Utilities | E69: 0 | F69: 5872 | G69: 6090 | H69: 6540
A70: ok | B70: I-0401G | C70: IS-0405 | D70: Salaries & Wages - Staff | E70: 0 | F70: 385260 | G70: 435500 | H70: 548600
A71: ok | B71: I-0402G | C71: IS-0410 | D71: Salaries & Wages - Management | E71: 0 | F71: 401250 | G71: 434640 | H71: 785720
A72: ok | B72: I-0501G | C72: IS-0505 | D72: Depreciation | E72: 0 | F72: 377626 | G72: 450300 | H72: 546530
A73: ok | B73: I-0502G | C73: IS-0510 | D73: Amortisation | E73: 0 | F73: 104050 | G73: 104050 | H73: 104050
A74: ok | B74: I-06G | C74: IS-0605 | D74: Interest Paid | E74: 0 | F74: 180742 | G74: 212354 | H74: 194222
A75: ok | B75: I-07G | C75: IS-0700 | D75: Taxation | E75: 0 | F75: 236801 | G75: 263853 | H75: 442236
A76: ok | B76: I-08G | C76: IS-0800 | D76: Other Expenses | E76: 0 | F76: 12589 | G76: 20998 | H76: 25362
A77: ok | B77: I-08G | C77: IS-0805 | D77: Foreign Exchange Loss | E77: 0 | F77: 10250 | G77: 15240 | H77: 6260
A78: ok | B78: I-08G | C78: IS-0810 | D78: Loss on Disposal of Assets | E78: 0 | F78: 0 | G78: 18000 | H78: 0
A79: ok | B79: I-09G | C79: IS-0900 | D79: Other Income | E79: 0 | F79: -23564 | G79: -30900 | H79: -41850
A80: ok | B80: I-09G | C80: IS-0905 | D80: Dividends Received | E80: 0 | F80: 0 | G80: -3050 | H80: -4065
A81: ok | B81: I-09G | C81: IS-0910 | D81: Profit on Disposal of Assets | E81: 0 | F81: 0 | G81: 0 | H81: -16915
A82: ok | B82: I-09G | C82: IS-0915 | D82: Interest Received | E82: 0 | F82: -562 | G82: -4562 | H82: -5100
A83: ok | B83: I-10G | C83: IS-1000 | D83: Dividends | E83: 0 | F83: 75000 | G83: 100000 | H83: 150000
A84: ok | B84: B-06G | C84: BS-BB1 | D84: B1 Bank Account | E84: 92580 | F84: 187624 | G84: 360300 | H84: 276526
A85: ok | B85: B-06G | C85: BS-BB2 | D85: B2 Bank Account | E85: 0 | F85: 0 | G85: 33680 | H85: 40691
A86: ok | B86: B-06G | C86: BS-BB3 | D86: B3 Bank Account | E86: 0 | F86: 0 | G86: 0 | H86: 9457
A87: ok | B87: B-07G | C87: BS-BPC | D87: PC Petty Cash | E87: 1000 | F87: 1000 | G87: 990 | H87: 1000
A88: ok | B88: B-06G | C88: BS-BJC | D88: GL Journal Control | E88: 0 | F88: 0 | G88: 0 | H88: 0
A89: ok | B89: B-10G | C89: BS-STG | D89: Inventory | E89: 150236 | F89: 169397 | G89: 234245 | H89: 245060
A90: ok | B90: B-08G | C90: BS-RCG | D90: Trade Debtors | E90: 426510 | F90: 456039 | G90: 495942 | H90: 568079
A91: ok | B91: B-12G | C91: BS-PAG | D91: Trade Creditors | E91: -125630 | F91: -166325 | G91: -219900 | H91: -186802
A92: ok | B92: B-21G | C92: BS-RTG | D92: Retained Earnings | E92: -2801220 | F92: -2801220 | G92: -3335138 | H92: -4339805

Sheet IS (hidden)
B1: =IF(ISBLANK(Setup!$B$4),"Example (Pty) Limited",Setup!$B$4) -> Example (Pty) Limited
B2: ="Income statement for the period ended "&TEXT(Setup!$B$10,"dd mmmm yyyy") -> Income statement for the period ended 28 February 2023
B3: © www.excel-skills.com
C4: =IF(ISBLANK(Setup!$B$8),YEAR(TODAY()),Setup!$B$8) -> 2023 | D4: =C4-1 -> 2022 | E4: Diff | F4: Diff% | H4: =D4-1 -> 2021 | I4: Diff | J4: Diff%
A5: I-01G | B5: =IF(ISNA(VLOOKUP($A5,ClassAll,COLUMN(Classes!$B$4),0)),"No class!",VLOOKUP($A5,ClassAll,COLUMN(Classes!$B$4),0)) -> Turnover | C5: =-IF(ISNA(MATCH(C$4,TBMonths,0))=TRUE,0,SUMIF(TBAll,$A5&"*",OFFSET(TB!$D$4,1,MATCH(C$4,TBMonths,0),TBRowCount,1))) -> 6911623 | D5: =-IF(ISNA(MATCH(D$4,TBMonths,0))=TRUE,0,SUMIF(TBAll,$A5&"*",OFFSET(TB!$D$4,1,MATCH(D$4,TBMonths,0),TBRowCount,1))) -> 6242037 | E5: =C5-D5 -> 669586 | F5: =IF(D5=0,IF(E5=0,0,-1),E5/ABS(D5)) -> 0.1072704311 | H5: =-IF(ISNA(MATCH(H$4,TBMonths,0))=TRUE,0,SUMIF(TBAll,$A5&"*",OFFSET(TB!$D$4,1,MATCH(H$4,TBMonths,0),TBRowCount,1))) -> 5201696 | I5: =D5-H5 -> 1040341 | J5: =IF(H5=0,IF(I5=0,0,-1),I5/ABS(H5)) -> 0.200000346
A6: I-02G | B6: =IF(ISNA(VLOOKUP($A6,ClassAll,COLUMN(Classes!$B$4),0)),"No class!",VLOOKUP($A6,ClassAll,COLUMN(Classes!$B$4),0)) -> Cost of sales | C6: =IF(ISNA(MATCH(C$4,TBMonths,0))=TRUE,0,SUMIF(TBAll,$A6&"*",OFFSET(TB!$D$4,1,MATCH(C$4,TBMonths,0),TBRowCount,1))) -> 2881575 | D6: =IF(ISNA(MATCH(D$4,TBMonths,0))=TRUE,0,SUMIF(TBAll,$A6&"*",OFFSET(TB!$D$4,1,MATCH(D$4,TBMonths,0),TBRowCount,1))) -> 2803264 | E6: =D6-C6 -> -78311 | F6: =IF(D6=0,IF(E6=0,0,-1),E6/ABS(D6)) -> -0.0279356493 | H6: =IF(ISNA(MATCH(H$4,TBMonths,0))=TRUE,0,SUMIF(TBAll,$A6&"*",OFFSET(TB!$D$4,1,MATCH(H$4,TBMonths,0),TBRowCount,1))) -> 2595869 | I6: =H6-D6 -> -207395 | J6: =IF(H6=0,IF(I6=0,0,-1),I6/ABS(H6)) -> -0.07989424736
B7: Gross profit | C7: =SUM(C5,-C6) -> 4030048 | D7: =SUM(D5,-D6) -> 3438773 | E7: =SUM(E5:E6) -> 591275 | F7: 0.1719435973 | H7: =SUM(H5,-H6) -> 2605827 | I7: =SUM(I5:I6) -> 832946 | J7: 0.319647467
B8: Gross profit % | C8: =IF(C5=0,0,C7/C5) -> 0.5830827289 | D8: =IF(D5=0,0,D7/D5) -> 0.5509055778 | E8: =D8-C8 -> -0.03217715113 | H8: =IF(H5=0,0,H7/H5) -> 0.5009571878 | I8: =D8-H8 -> 0.04994838997
A9: I-09G | B9: =IF(ISNA(VLOOKUP($A9,ClassAll,COLUMN(Classes!$B$4),0)),"No class!",VLOOKUP($A9,ClassAll,COLUMN(Classes!$B$4),0)) -> Other income | C9: =-IF(ISNA(MATCH(C$4,TBMonths,0))=TRUE,0,SUMIF(TBAll,$A9&"*",OFFSET(TB!$D$4,1,MATCH(C$4,TBMonths,0),TBRowCount,1))) -> 67930 | D9: =-IF(ISNA(MATCH(D$4,TBMonths,0))=TRUE,0,SUMIF(TBAll,$A9&"*",OFFSET(TB!$D$4,1,MATCH(D$4,TBMonths,0),TBRowCount,1))) -> 38512 | E9: =C9-D9 -> 29418 | F9: =IF(D9=0,IF(E9=0,0,-1),E9/ABS(D9)) -> 0.7638658081 | H9: =-IF(ISNA(MATCH(H$4,TBMonths,0))=TRUE,0,SUMIF(TBAll,$A9&"*",OFFSET(TB!$D$4,1,MATCH(H$4,TBMonths,0),TBRowCount,1))) -> 24126 | I9: =D9-H9 -> 14386 | J9: =IF(H9=0,IF(I9=0,0,-1),I9/ABS(H9)) -> 0.5962861643
B10: Operating expenses | C10: =SUM(OFFSET($B$10,1,COLUMN(C4)-COLUMN($B4),ROW($B$34)-ROW($B$10)-1,1)) -> 2427451 | D10: =SUM(OFFSET($B$10,1,COLUMN(D4)-COLUMN($B4),ROW($B$34)-ROW($B$10)-1,1)) -> 1896411 | E10: =SUM(OFFSET($B$10,1,COLUMN(E4)-COLUMN($B4),ROW($B$34)-ROW($B$10)-1,1)) -> -531040 | F10: -0.2800236868 | H10: =SUM(OFFSET($B$10,1,COLUMN(H4)-COLUMN($B4),ROW($B$34)-ROW($B$10)-1,1)) -> 1603492 | I10: =SUM(OFFSET($B$10,1,COLUMN(I4)-COLUMN($B4),ROW($B$34)-ROW($B$10)-1,1)) -> -292919 | J10: -0.1826756853
A11: I-0301G | B11: =IF(ISNA(VLOOKUP($A11,ClassAll,COLUMN(Classes!$B$4),0)),"No class!",VLOOKUP($A11,ClassAll,COLUMN(Classes!$B$4),0)) -> Accounting fees | C11: =IF(ISNA(MATCH(C$4,TBMonths,0))=TRUE,0,SUMIF(TBAll,$A11&"*",OFFSET(TB!$D$4,1,MATCH(C$4,TBMonths,0),TBRowCount,1))) -> 24000 | D11: =IF(ISNA(MATCH(D$4,TBMonths,0))=TRUE,0,SUMIF(TBAll,$A11&"*",OFFSET(TB!$D$4,1,MATCH(D$4,TBMonths,0),TBRowCount,1))) -> 18000 | E11: =D11-C11 -> -6000 | F11: -0.3333333333 | H11: =IF(ISNA(MATCH(H$4,TBMonths,0))=TRUE,0,SUMIF(TBAll,$A11&"*",OFFSET(TB!$D$4,1,MATCH(H$4,TBMonths,0),TBRowCount,1))) -> 15500 | I11: =H11-D11 -> -2500 | J11: -0.1612903226
A12: I-0302G | B12: =IF(ISNA(VLOOKUP($A12,ClassAll,COLUMN(Classes!$B$4),0)),"No class!",VLOOKUP($A12,ClassAll,COLUMN(Classes!$B$4),0)) -> Advertising & marketing | C12: =IF(ISNA(MATCH(C$4,TBMonths,0))=TRUE,0,SUMIF(TBAll,$A12&"*",OFFSET(TB!$D$4,1,MATCH(C$4,TBMonths,0),TBRowCount,1))) -> 143644 | D12: =IF(ISNA(MATCH(D$4,TBMonths,0))=TRUE,0,SUMIF(TBAll,$A12&"*",OFFSET(TB!$D$4,1,MATCH(D$4,TBMonths,0),TBRowCount,1))) -> 170000 | E12: 26356 | F12: 0.1550352941 | H12: =IF(ISNA(MATCH(H$4,TBMonths,0))=TRUE,0,SUMIF(TBAll,$A12&"*",OFFSET(TB!$D$4,1,MATCH(H$4,TBMonths,0),TBRowCount,1))) -> 110520 | I12: -59480 | J12: -0.5381831343
A13: I-0502G | B13: =IF(ISNA(VLOOKUP($A13,ClassAll,COLUMN(Classes!$B$4),0)),"No class!",VLOOKUP($A13,ClassAll,COLUMN(Classes!$B$4),0)) -> Amortisation | C13: =IF(ISNA(MATCH(C$4,TBMonths,0))=TRUE,0,SUMIF(TBAll,$A13&"*",OFFSET(TB!$D$4,1,MATCH(C$4,TBMonths,0),TBRowCount,1))) -> 104050 | D13: =IF(ISNA(MATCH(D$4,TBMonths,0))=TRUE,0,SUMIF(TBAll,$A13&"*",OFFSET(TB!$D$4,1,MATCH(D$4,TBMonths,0),TBRowCount,1))) -> 104050 | E13: =D13-C13 -> 0 | F13: =IF(D13=0,IF(E13=0,0,-1),E13/ABS(D13)) -> 0 | H13: =IF(ISNA(MATCH(H$4,TBMonths,0))=TRUE,0,SUMIF(TBAll,$A13&"*",OFFSET(TB!$D$4,1,MATCH(H$4,TBMonths,0),TBRowCount,1))) -> 104050 | I13: =H13-D13 -> 0 | J13: =IF(H13=0,IF(I13=0,0,-1),I13/ABS(H13)) -> 0
A14: I-0303G | B14: =IF(ISNA(VLOOKUP($A14,ClassAll,COLUMN(Classes!$B$4),0)),"No class!",VLOOKUP($A14,ClassAll,COLUMN(Classes!$B$4),0)) -> Bank charges | C14: =IF(ISNA(MATCH(C$4,TBMonths,0))=TRUE,0,SUMIF(TBAll,$A14&"*",OFFSET(TB!$D$4,1,MATCH(C$4,TBMonths,0),TBRowCount,1))) -> 1180 | D14: =IF(ISNA(MATCH(D$4,TBMonths,0))=TRUE,0,SUMIF(TBAll,$A14&"*",OFFSET(TB!$D$4,1,MATCH(D$4,TBMonths,0),TBRowCount,1))) -> 935 | E14: -245 | F14: -0.2620320856 | H14: =IF(ISNA(MATCH(H$4,TBMonths,0))=TRUE,0,SUMIF(TBAll,$A14&"*",OFFSET(TB!$D$4,1,MATCH(H$4,TBMonths,0),TBRowCount,1))) -> 780 | I14: -155 | J14: -0.1987179487
A15: I-0304G | B15: =IF(ISNA(VLOOKUP($A15,ClassAll,COLUMN(Classes!$B$4),0)),"No class!",VLOOKUP($A15,ClassAll,COLUMN(Classes!$B$4),0)) -> Commission | C15: =IF(ISNA(MATCH(C$4,TBMonths,0))=TRUE,0,SUMIF(TBAll,$A15&"*",OFFSET(TB!$D$4,1,MATCH(C$4,TBMonths,0),TBRowCount,1))) -> 27850 | D15: =IF(ISNA(MATCH(D$4,TBMonths,0))=TRUE,0,SUMIF(TBAll,$A15&"*",OFFSET(TB!$D$4,1,MATCH(D$4,TBMonths,0),TBRowCount,1))) -> 22120 | E15: -5730 | F15: -0.2590415913 | H15: =IF(ISNA(MATCH(H$4,TBMonths,0))=TRUE,0,SUMIF(TBAll,$A15&"*",OFFSET(TB!$D$4,1,MATCH(H$4,TBMonths,0),TBRowCount,1))) -> 18450 | I15: -3670 | J15: -0.1989159892
A16: I-0305G | B16: =IF(ISNA(VLOOKUP($A16,ClassAll,COLUMN(Classes!$B$4),0)),"No class!",VLOOKUP($A16,ClassAll,COLUMN(Classes!$B$4),0)) -> Computer expenses | C16: =IF(ISNA(MATCH(C$4,TBMonths,0))=TRUE,0,SUMIF(TBAll,$A16&"*",OFFSET(TB!$D$4,1,MATCH(C$4,TBMonths,0),TBRowCount,1))) -> 3477 | D16: =IF(ISNA(MATCH(D$4,TBMonths,0))=TRUE,0,SUMIF(TBAll,$A16&"*",OFFSET(TB!$D$4,1,MATCH(D$4,TBMonths,0),TBRowCount,1))) -> 7210 | E16: 3733 | F16: 0.5177531207 | H16: =IF(ISNA(MATCH(H$4,TBMonths,0))=TRUE,0,SUMIF(TBAll,$A16&"*",OFFSET(TB!$D$4,1,MATCH(H$4,TBMonths,0),TBRowCount,1))) -> 5625 | I16: -1585 | J16: -0.2817777778
A17: I-0306G | B17: =IF(ISNA(VLOOKUP($A17,ClassAll,COLUMN(Classes!$B$4),0)),"No class!",VLOOKUP($A17,ClassAll,COLUMN(Classes!$B$4),0)) -> Consumables & cleaning | C17: =IF(ISNA(MATCH(C$4,TBMonths,0))=TRUE,0,SUMIF(TBAll,$A17&"*",OFFSET(TB!$D$4,1,MATCH(C$4,TBMonths,0),TBRowCount,1))) -> 2500 | D17: =IF(ISNA(MATCH(D$4,TBMonths,0))=TRUE,0,SUMIF(TBAll,$A17&"*",OFFSET(TB!$D$4,1,MATCH(D$4,TBMonths,0),TBRowCount,1))) -> 2000 | E17: -500 | F17: -0.25 | H17: =IF(ISNA(MATCH(H$4,TBMonths,0))=TRUE,0,SUMIF(TBAll,$A17&"*",OFFSET(TB!$D$4,1,MATCH(H$4,TBMonths,0),TBRowCount,1))) -> 2500 | I17: 500 | J17: 0.2
A18: I-0501G | B18: =IF(ISNA(VLOOKUP($A18,ClassAll,COLUMN(Classes!$B$4),0)),"No class!",VLOOKUP($A18,ClassAll,COLUMN(Classes!$B$4),0)) -> Depreciation | C18: =IF(ISNA(MATCH(C$4,TBMonths,0))=TRUE,0,SUMIF(TBAll,$A18&"*",OFFSET(TB!$D$4,1,MATCH(C$4,TBMonths,0),TBRowCount,1))) -> 546530 | D18: =IF(ISNA(MATCH(D$4,TBMonths,0))=TRUE,0,SUMIF(TBAll,$A18&"*",OFFSET(TB!$D$4,1,MATCH(D$4,TBMonths,0),TBRowCount,1))) -> 450300 | E18: -96230 | F18: -0.2137019765 | H18: =IF(ISNA(MATCH(H$4,TBMonths,0))=TRUE,0,SUMIF(TBAll,$A18&"*",OFFSET(TB!$D$4,1,MATCH(H$4,TBMonths,0),TBRowCount,1))) -> 377626 | I18: -72674 | J18: -0.1924496724
A19: I-0307G | B19: =IF(ISNA(VLOOKUP($A19,ClassAll,COLUMN(Classes!$B$4),0)),"No class!",VLOOKUP($A19,ClassAll,COLUMN(Classes!$B$4),0)) -> Entertainment | C19: =IF(ISNA(MATCH(C$4,TBMonths,0))=TRUE,0,SUMIF(TBAll,$A19&"*",OFFSET(TB!$D$4,1,MATCH(C$4,TBMonths,0),TBRowCount,1))) -> 12420 | D19: =IF(ISNA(MATCH(D$4,TBMonths,0))=TRUE,0,SUMIF(TBAll,$A19&"*",OFFSET(TB!$D$4,1,MATCH(D$4,TBMonths,0),TBRowCount,1))) -> 10875 | E19: -1545 | F19: -0.1420689655 | H19: =IF(ISNA(MATCH(H$4,TBMonths,0))=TRUE,0,SUMIF(TBAll,$A19&"*",OFFSET(TB!$D$4,1,MATCH(H$4,TBMonths,0),TBRowCount,1))) -> 11020 | I19: 145 | J19: 0.01315789474
A20: I-0308G | B20: =IF(ISNA(VLOOKUP($A20,ClassAll,COLUMN(Classes!$B$4),0)),"No class!",VLOOKUP($A20,ClassAll,COLUMN(Classes!$B$4),0)) -> Insurance | C20: =IF(ISNA(MATCH(C$4,TBMonths,0))=TRUE,0,SUMIF(TBAll,$A20&"*",OFFSET(TB!$D$4,1,MATCH(C$4,TBMonths,0),TBRowCount,1))) -> 3840 | D20: =IF(ISNA(MATCH(D$4,TBMonths,0))=TRUE,0,SUMIF(TBAll,$A20&"*",OFFSET(TB!$D$4,1,MATCH(D$4,TBMonths,0),TBRowCount,1))) -> 3420 | E20: -420 | F20: -0.1228070175 | H20: =IF(ISNA(MATCH(H$4,TBMonths,0))=TRUE,0,SUMIF(TBAll,$A20&"*",OFFSET(TB!$D$4,1,MATCH(H$4,TBMonths,0),TBRowCount,1))) -> 3100 | I20: -320 | J20: -0.1032258065
A21: I-0309G | B21: =IF(ISNA(VLOOKUP($A21,ClassAll,COLUMN(Classes!$B$4),0)),"No class!",VLOOKUP($A21,ClassAll,COLUMN(Classes!$B$4),0)) -> Office expenses | C21: =IF(ISNA(MATCH(C$4,TBMonths,0))=TRUE,0,SUMIF(TBAll,$A21&"*",OFFSET(TB!$D$4,1,MATCH(C$4,TBMonths,0),TBRowCount,1))) -> 996 | D21: =IF(ISNA(MATCH(D$4,TBMonths,0))=TRUE,0,SUMIF(TBAll,$A21&"*",OFFSET(TB!$D$4,1,MATCH(D$4,TBMonths,0),TBRowCount,1))) -> 660 | E21: -336 | F21: -0.5090909091 | H21: =IF(ISNA(MATCH(H$4,TBMonths,0))=TRUE,0,SUMIF(TBAll,$A21&"*",OFFSET(TB!$D$4,1,MATCH(H$4,TBMonths,0),TBRowCount,1))) -> 350 | I21: -310 | J21: -0.8857142857
A22: I-0310G | B22: =IF(ISNA(VLOOKUP($A22,ClassAll,COLUMN(Classes!$B$4),0)),"No class!",VLOOKUP($A22,ClassAll,COLUMN(Classes!$B$4),0)) -> Office rent | C22: =IF(ISNA(MATCH(C$4,TBMonths,0))=TRUE,0,SUMIF(TBAll,$A22&"*",OFFSET(TB!$D$4,1,MATCH(C$4,TBMonths,0),TBRowCount,1))) -> 144000 | D22: =IF(ISNA(MATCH(D$4,TBMonths,0))=TRUE,0,SUMIF(TBAll,$A22&"*",OFFSET(TB!$D$4,1,MATCH(D$4,TBMonths,0),TBRowCount,1))) -> 120000 | E22: -24000 | F22: -0.2 | H22: =IF(ISNA(MATCH(H$4,TBMonths,0))=TRUE,0,SUMIF(TBAll,$A22&"*",OFFSET(TB!$D$4,1,MATCH(H$4,TBMonths,0),TBRowCount,1))) -> 114000 | I22: -6000 | J22: -0.05263157895
A23: I-0311G | B23: =IF(ISNA(VLOOKUP($A23,ClassAll,COLUMN(Classes!$B$4),0)),"No class!",VLOOKUP($A23,ClassAll,COLUMN(Classes!$B$4),0)) -> Postage | C23: =IF(ISNA(MATCH(C$4,TBMonths,0))=TRUE,0,SUMIF(TBAll,$A23&"*",OFFSET(TB!$D$4,1,MATCH(C$4,TBMonths,0),TBRowCount,1))) -> 524 | D23: =IF(ISNA(MATCH(D$4,TBMonths,0))=TRUE,0,SUMIF(TBAll,$A23&"*",OFFSET(TB!$D$4,1,MATCH(D$4,TBMonths,0),TBRowCount,1))) -> 452 | E23: -72 | F23: -0.1592920354 | H23: =IF(ISNA(MATCH(H$4,TBMonths,0))=TRUE,0,SUMIF(TBAll,$A23&"*",OFFSET(TB!$D$4,1,MATCH(H$4,TBMonths,0),TBRowCount,1))) -> 685 | I23: 233 | J23: 0.3401459854
A24: I-0312G | B24: =IF(ISNA(VLOOKUP($A24,ClassAll,COLUMN(Classes!$B$4),0)),"No class!",VLOOKUP($A24,ClassAll,COLUMN(Classes!$B$4),0)) -> Professional & legal fees | C24: =IF(ISNA(MATCH(C$4,TBMonths,0))=TRUE,0,SUMIF(TBAll,$A24&"*",OFFSET(TB!$D$4,1,MATCH(C$4,TBMonths,0),TBRowCount,1))) -> 5652 | D24: =IF(ISNA(MATCH(D$4,TBMonths,0))=TRUE,0,SUMIF(TBAll,$A24&"*",OFFSET(TB!$D$4,1,MATCH(D$4,TBMonths,0),TBRowCount,1))) -> 36250 | E24: 30598 | F24: 0.8440827586 | H24: =IF(ISNA(MATCH(H$4,TBMonths,0))=TRUE,0,SUMIF(TBAll,$A24&"*",OFFSET(TB!$D$4,1,MATCH(H$4,TBMonths,0),TBRowCount,1))) -> 0 | I24: -36250 | J24: -1
A25: I-0401G | B25: =IF(ISNA(VLOOKUP($A25,ClassAll,COLUMN(Classes!$B$4),0)),"No class!",VLOOKUP($A25,ClassAll,COLUMN(Classes!$B$4),0)) -> Salaries & wages - staff | C25: =IF(ISNA(MATCH(C$4,TBMonths,0))=TRUE,0,SUMIF(TBAll,$A25&"*",OFFSET(TB!$D$4,1,MATCH(C$4,TBMonths,0),TBRowCount,1))) -> 548600 | D25: =IF(ISNA(MATCH(D$4,TBMonths,0))=TRUE,0,SUMIF(TBAll,$A25&"*",OFFSET(TB!$D$4,1,MATCH(D$4,TBMonths,0),TBRowCount,1))) -> 435500 | E25: -113100 | F25: -0.2597014925 | H25: =IF(ISNA(MATCH(H$4,TBMonths,0))=TRUE,0,SUMIF(TBAll,$A25&"*",OFFSET(TB!$D$4,1,MATCH(H$4,TBMonths,0),TBRowCount,1))) -> 385260 | I25: -50240 | J25: -0.1304054405
A26: I-0402G | B26: =IF(ISNA(VLOOKUP($A26,ClassAll,COLUMN(Classes!$B$4),0)),"No class!",VLOOKUP($A26,ClassAll,COLUMN(Classes!$B$4),0)) -> Salaries & wages - management | C26: =IF(ISNA(MATCH(C$4,TBMonths,0))=TRUE,0,SUMIF(TBAll,$A26&"*",OFFSET(TB!$D$4,1,MATCH(C$4,TBMonths,0),TBRowCount,1))) -> 785720 | D26: =IF(ISNA(MATCH(D$4,TBMonths,0))=TRUE,0,SUMIF(TBAll,$A26&"*",OFFSET(TB!$D$4,1,MATCH(D$4,TBMonths,0),TBRowCount,1))) -> 434640 | E26: -351080 | F26: -0.8077489417 | H26: =IF(ISNA(MATCH(H$4,TBMonths,0))=TRUE,0,SUMIF(TBAll,$A26&"*",OFFSET(TB!$D$4,1,MATCH(H$4,TBMonths,0),TBRowCount,1))) -> 401250 | I26: -33390 | J26: -0.08321495327
A27: I-0313G | B27: =IF(ISNA(VLOOKUP($A27,ClassAll,COLUMN(Classes!$B$4),0)),"No class!",VLOOKUP($A27,ClassAll,COLUMN(Classes!$B$4),0)) -> Stationery | C27: =IF(ISNA(MATCH(C$4,TBMonths,0))=TRUE,0,SUMIF(TBAll,$A27&"*",OFFSET(TB!$D$4,1,MATCH(C$4,TBMonths,0),TBRowCount,1))) -> 2491 | D27: =IF(ISNA(MATCH(D$4,TBMonths,0))=TRUE,0,SUMIF(TBAll,$A27&"*",OFFSET(TB!$D$4,1,MATCH(D$4,TBMonths,0),TBRowCount,1))) -> 1257 | E27: -1234 | F27: -0.9817024662 | H27: =IF(ISNA(MATCH(H$4,TBMonths,0))=TRUE,0,SUMIF(TBAll,$A27&"*",OFFSET(TB!$D$4,1,MATCH(H$4,TBMonths,0),TBRowCount,1))) -> 1150 | I27: -107 | J27: -0.09304347826
A28: I-0314G | B28: =IF(ISNA(VLOOKUP($A28,ClassAll,COLUMN(Classes!$B$4),0)),"No class!",VLOOKUP($A28,ClassAll,COLUMN(Classes!$B$4),0)) -> Subscriptions & memberships | C28: =IF(ISNA(MATCH(C$4,TBMonths,0))=TRUE,0,SUMIF(TBAll,$A28&"*",OFFSET(TB!$D$4,1,MATCH(C$4,TBMonths,0),TBRowCount,1))) -> 5200 | D28: =IF(ISNA(MATCH(D$4,TBMonths,0))=TRUE,0,SUMIF(TBAll,$A28&"*",OFFSET(TB!$D$4,1,MATCH(D$4,TBMonths,0),TBRowCount,1))) -> 4800 | E28: -400 | F28: -0.08333333333 | H28: =IF(ISNA(MATCH(H$4,TBMonths,0))=TRUE,0,SUMIF(TBAll,$A28&"*",OFFSET(TB!$D$4,1,MATCH(H$4,TBMonths,0),TBRowCount,1))) -> 4400 | I28: -400 | J28: -0.09090909091
A29: I-0315G | B29: =IF(ISNA(VLOOKUP($A29,ClassAll,COLUMN(Classes!$B$4),0)),"No class!",VLOOKUP($A29,ClassAll,COLUMN(Classes!$B$4),0)) -> Telephone & internet | C29: =IF(ISNA(MATCH(C$4,TBMonths,0))=TRUE,0,SUMIF(TBAll,$A29&"*",OFFSET(TB!$D$4,1,MATCH(C$4,TBMonths,0),TBRowCount,1))) -> 8867 | D29: =IF(ISNA(MATCH(D$4,TBMonths,0))=TRUE,0,SUMIF(TBAll,$A29&"*",OFFSET(TB!$D$4,1,MATCH(D$4,TBMonths,0),TBRowCount,1))) -> 7504 | E29: -1363 | F29: -0.1816364606 | H29: =IF(ISNA(MATCH(H$4,TBMonths,0))=TRUE,0,SUMIF(TBAll,$A29&"*",OFFSET(TB!$D$4,1,MATCH(H$4,TBMonths,0),TBRowCount,1))) -> 7220 | I29: -284 | J29: -0.03933518006
A30: I-0316G | B30: =IF(ISNA(VLOOKUP($A30,ClassAll,COLUMN(Classes!$B$4),0)),"No class!",VLOOKUP($A30,ClassAll,COLUMN(Classes!$B$4),0)) -> Training | C30: =IF(ISNA(MATCH(C$4,TBMonths,0))=TRUE,0,SUMIF(TBAll,$A30&"*",OFFSET(TB!$D$4,1,MATCH(C$4,TBMonths,0),TBRowCount,1))) -> 4043 | D30: =IF(ISNA(MATCH(D$4,TBMonths,0))=TRUE,0,SUMIF(TBAll,$A30&"*",OFFSET(TB!$D$4,1,MATCH(D$4,TBMonths,0),TBRowCount,1))) -> 1521 | E30: -2522 | F30: -1.658119658 | H30: =IF(ISNA(MATCH(H$4,TBMonths,0))=TRUE,0,SUMIF(TBAll,$A30&"*",OFFSET(TB!$D$4,1,MATCH(H$4,TBMonths,0),TBRowCount,1))) -> 875 | I30: -646 | J30: -0.7382857143
A31: I-0317G | B31: =IF(ISNA(VLOOKUP($A31,ClassAll,COLUMN(Classes!$B$4),0)),"No class!",VLOOKUP($A31,ClassAll,COLUMN(Classes!$B$4),0)) -> Travelling & accommodation | C31: =IF(ISNA(MATCH(C$4,TBMonths,0))=TRUE,0,SUMIF(TBAll,$A31&"*",OFFSET(TB!$D$4,1,MATCH(C$4,TBMonths,0),TBRowCount,1))) -> 13705 | D31: =IF(ISNA(MATCH(D$4,TBMonths,0))=TRUE,0,SUMIF(TBAll,$A31&"*",OFFSET(TB!$D$4,1,MATCH(D$4,TBMonths,0),TBRowCount,1))) -> 4589 | E31: =D31-C31 -> -9116 | F31: =IF(D31=0,IF(E31=0,0,-1),E31/ABS(D31)) -> -1.986489431 | H31: =IF(ISNA(MATCH(H$4,TBMonths,0))=TRUE,0,SUMIF(TBAll,$A31&"*",OFFSET(TB!$D$4,1,MATCH(H$4,TBMonths,0),TBRowCount,1))) -> 10420 | I31: =H31-D31 -> 5831 | J31: =IF(H31=0,IF(I31=0,0,-1),I31/ABS(H31)) -> 0.559596929
A32: I-0318G | B32: =IF(ISNA(VLOOKUP($A32,ClassAll,COLUMN(Classes!$B$4),0)),"No class!",VLOOKUP($A32,ClassAll,COLUMN(Classes!$B$4),0)) -> Utilities | C32: =IF(ISNA(MATCH(C$4,TBMonths,0))=TRUE,0,SUMIF(TBAll,$A32&"*",OFFSET(TB!$D$4,1,MATCH(C$4,TBMonths,0),TBRowCount,1))) -> 6540 | D32: =IF(ISNA(MATCH(D$4,TBMonths,0))=TRUE,0,SUMIF(TBAll,$A32&"*",OFFSET(TB!$D$4,1,MATCH(D$4,TBMonths,0),TBRowCount,1))) -> 6090 | E32: -450 | F32: -0.07389162562 | H32: =IF(ISNA(MATCH(H$4,TBMonths,0))=TRUE,0,SUMIF(TBAll,$A32&"*",OFFSET(TB!$D$4,1,MATCH(H$4,TBMonths,0),TBRowCount,1))) -> 5872 | I32: -218 | J32: -0.0371253406
A33: I-08G | B33: =IF(ISNA(VLOOKUP($A33,ClassAll,COLUMN(Classes!$B$4),0)),"No class!",VLOOKUP($A33,ClassAll,COLUMN(Classes!$B$4),0)) -> Other expenses | C33: =IF(ISNA(MATCH(C$4,TBMonths,0))=TRUE,0,SUMIF(TBAll,$A33&"*",OFFSET(TB!$D$4,1,MATCH(C$4,TBMonths,0),TBRowCount,1))) -> 31622 | D33: =IF(ISNA(MATCH(D$4,TBMonths,0))=TRUE,0,SUMIF(TBAll,$A33&"*",OFFSET(TB!$D$4,1,MATCH(D$4,TBMonths,0),TBRowCount,1))) -> 54238 | E33: 22616 | F33: 0.4169770272 | H33: =IF(ISNA(MATCH(H$4,TBMonths,0))=TRUE,0,SUMIF(TBAll,$A33&"*",OFFSET(TB!$D$4,1,MATCH(H$4,TBMonths,0),TBRowCount,1))) -> 22839 | I33: -31399 | J33: -1.374797496
B34: Profit / (Loss) before interest | C34: =SUM(C7,C9,-C10) -> 1670527 | D34: =SUM(D7,D9,-D10) -> 1580874 | E34: =C34-D34 -> 89653 | F34: 0.05671103453 | H34: =SUM(H7,H9,-H10) -> 1026461 | I34: =D34-H34 -> 554413 | J34: 0.5401208619
A35: I-06G | B35: =IF(ISNA(VLOOKUP($A35,ClassAll,COLUMN(Classes!$B$4),0)),"No class!",VLOOKUP($A35,ClassAll,COLUMN(Classes!$B$4),0)) -> Interest paid | C35: =IF(ISNA(MATCH(C$4,TBMonths,0))=TRUE,0,SUMIF(TBAll,$A35&"*",OFFSET(TB!$D$4,1,MATCH(C$4,TBMonths,0),TBRowCount,1))) -> 194222 | D35: =IF(ISNA(MATCH(D$4,TBMonths,0))=TRUE,0,SUMIF(TBAll,$A35&"*",OFFSET(TB!$D$4,1,MATCH(D$4,TBMonths,0),TBRowCount,1))) -> 212354 | E35: =D35-C35 -> 18132 | F35: 0.08538572384 | H35: =IF(ISNA(MATCH(H$4,TBMonths,0))=TRUE,0,SUMIF(TBAll,$A35&"*",OFFSET(TB!$D$4,1,MATCH(H$4,TBMonths,0),TBRowCount,1))) -> 180742 | I35: =H35-D35 -> -31612 | J35: -0.1749012404
B36: Profit / (Loss) before tax | C36: =SUM(C34,-C35) -> 1476305 | D36: =SUM(D34,-D35) -> 1368520 | E36: =C36-D36 -> 107785 | F36: 0.07876026657 | H36: =SUM(H34,-H35) -> 845719 | I36: =D36-H36 -> 522801 | J36: 0.6181734122
A37: I-07G | B37: =IF(ISNA(VLOOKUP($A37,ClassAll,COLUMN(Classes!$B$4),0)),"No class!",VLOOKUP($A37,ClassAll,COLUMN(Classes!$B$4),0)) -> Taxation paid | C37: =IF(ISNA(MATCH(C$4,TBMonths,0))=TRUE,0,SUMIF(TBAll,$A37&"*",OFFSET(TB!$D$4,1,MATCH(C$4,TBMonths,0),TBRowCount,1))) -> 442236 | D37: =IF(ISNA(MATCH(D$4,TBMonths,0))=TRUE,0,SUMIF(TBAll,$A37&"*",OFFSET(TB!$D$4,1,MATCH(D$4,TBMonths,0),TBRowCount,1))) -> 263853 | E37: =D37-C37 -> -178383 | F37: -0.6760696297 | H37: =IF(ISNA(MATCH(H$4,TBMonths,0))=TRUE,0,SUMIF(TBAll,$A37&"*",OFFSET(TB!$D$4,1,MATCH(H$4,TBMonths,0),TBRowCount,1))) -> 236801 | I37: =H37-D37 -> -27052 | J37: -0.1142393824
B38: Profit / (Loss) for the period | C38: =SUM(C36,-C37) -> 1034069 | D38: =SUM(D36,-D37) -> 1104667 | E38: =C38-D38 -> -70598 | F38: -0.06390885217 | H38: =SUM(H36,-H37) -> 608918 | I38: =D38-H38 -> 495749 | J38: 0.8141473893
A39: B-21G | B39: Retained earnings at start of period | C39: =-IF(ISNA(MATCH(C$4,TBMonths,0))=TRUE,0,SUMIF(TBAll,$A39&"*",OFFSET(TB!$D$4,1,MATCH(C$4,TBMonths,0),TBRowCount,1))) -> 4339805 | D39: =-IF(ISNA(MATCH(D$4,TBMonths,0))=TRUE,0,SUMIF(TBAll,$A39&"*",OFFSET(TB!$D$4,1,MATCH(D$4,TBMonths,0),TBRowCount,1))) -> 3335138 | E39: =C39-D39 -> 1004667 | F39: 0.3012370103 | H39: =-IF(ISNA(MATCH(H$4,TBMonths,0))=TRUE,0,SUMIF(TBAll,$A39&"*",OFFSET(TB!$D$4,1,MATCH(H$4,TBMonths,0),TBRowCount,1))) -> 2801220 | I39: =D39-H39 -> 533918 | J39: 0.190601952
A40: I-10G | B40: =IF(ISNA(VLOOKUP($A40,ClassAll,COLUMN(Classes!$B$4),0)),"No class!",VLOOKUP($A40,ClassAll,COLUMN(Classes!$B$4),0)) -> Dividends paid | C40: =IF(ISNA(MATCH(C$4,TBMonths,0))=TRUE,0,SUMIF(TBAll,$A40&"*",OFFSET(TB!$D$4,1,MATCH(C$4,TBMonths,0),TBRowCount,1))) -> 150000 | D40: =IF(ISNA(MATCH(D$4,TBMonths,0))=TRUE,0,SUMIF(TBAll,$A40&"*",OFFSET(TB!$D$4,1,MATCH(D$4,TBMonths,0),TBRowCount,1))) -> 100000 | E40: =D40-C40 -> -50000 | F40: -0.5 | H40: =IF(ISNA(MATCH(H$4,TBMonths,0))=TRUE,0,SUMIF(TBAll,$A40&"*",OFFSET(TB!$D$4,1,MATCH(H$4,TBMonths,0),TBRowCount,1))) -> 75000 | I40: =H40-D40 -> -25000 | J40: -0.3333333333
B41: Retained earnings at end of period | C41: =SUM(C38,C39,-C40) -> 5223874 | D41: =SUM(D38,D39,-D40) -> 4339805 | E41: =SUM(E38:E40) -> 884069 | F41: 0.2037116875 | H41: =SUM(H38,H39,-H40) -> 3335138 | I41: =SUM(I38:I40) -> 1004667 | J41: 0.3012370103
B43: Interest Cover | C43: =IF(C35=0,0,C34/C35) -> 8.601121397 | D43: =IF(D35=0,0,D34/D35) -> 7.444521883 | E43: =C43-D43 -> 1.156599514 | F43: =IF(D43=0,IF(E43=0,0,-1),E43/ABS(D43)) -> 0.1553624977 | H43: =IF(H35=0,0,H34/H35) -> 5.679150391 | I43: =D43-H43 -> 1.765371492 | J43: =IF(H43=0,IF(I43=0,0,-1),I43/ABS(H43)) -> 0.310851337
B44: Return on Equity (ROE) | C44: =IF(BS!C27=0,0,C38/BS!C27) -> 0.1979127152 | D44: =IF(BS!D27=0,0,D38/BS!D27) -> 0.2544843641 | E44: =D44-C44 -> 0.05657164886 | H44: =IF(BS!H27=0,0,H38/BS!H27) -> 0.1825218261 | I44: =D44-H44 -> 0.07196253794
B45: Return on Net Assets (RONA) | C45: =IF(BS!C21-BS!C42=0,0,C38/(BS!C21-BS!C42)) -> 0.1580564994 | D45: =IF(BS!D21-BS!D42=0,0,D38/(BS!D21-BS!D42)) -> 0.1706764549 | E45: =D45-C45 -> 0.01261995542 | H45: =IF(BS!H21-BS!H42=0,0,H38/(BS!H21-BS!H42)) -> 0.1183644304 | I45: =D45-H45 -> 0.05231202449

Sheet CFS (hidden)
B1: =IF(ISBLANK(Setup!$B$4),"Example (Pty) Limited",Setup!$B$4) -> Example (Pty) Limited
B2: ="Statement of cash flows for the period ended "&TEXT(Setup!$B$10,"dd mmmm yyyy") -> Statement of cash flows for the period ended 28 February 2023
B3: © www.excel-skills.com
C4: =IF(ISBLANK(Setup!$B$8),YEAR(TODAY()),Setup!$B$8) -> 2023 | D4: =C4-1 -> 2022 | E4: Diff | F4: Diff% | H4: =D4-1 -> 2021 | I4: Diff | J4: Diff%
B5: Cash flows from operating activities
B6: Profit / (Loss) for the period | C6: =IS!C38 -> 1034069 | D6: =IS!D38 -> 1104667 | E6: =C6-D6 -> -70598 | F6: =IF(D6=0,IF(E6=0,0,-1),E6/ABS(D6)) -> -0.06390885217 | H6: =IS!H38 -> 608918 | I6: =D6-H6 -> 495749 | J6: =IF(H6=0,IF(I6=0,0,-1),I6/ABS(H6)) -> 0.8141473893
B7: - Interest paid | C7: =IS!C35 -> 194222 | D7: =IS!D35 -> 212354 | E7: =C7-D7 -> -18132 | F7: =IF(D7=0,IF(E7=0,0,-1),E7/ABS(D7)) -> -0.08538572384 | H7: =IS!H35 -> 180742 | I7: =D7-H7 -> 31612 | J7: =IF(H7=0,IF(I7=0,0,-1),I7/ABS(H7)) -> 0.1749012404
B8: - Income taxes | C8: =IS!C37 -> 442236 | D8: =IS!D37 -> 263853 | E8: 178383 | F8: 0.6760696297 | H8: =IS!H37 -> 236801 | I8: 27052 | J8: 0.1142393824
B9: Non-cash income and expenses:
A10: B-01G | B10: - Depreciation | C10: =IF(ISNA(MATCH(C$4-1,TBMonths,0))=TRUE,0,SUMIF(TBAll,$A10&"*",OFFSET(TB!$D$4,1,MATCH(C$4-1,TBMonths,0),TBRowCount,1)))-IF(ISNA(MATCH(C$4,TBMonths,0))=TRUE,0,SUMIF(TBAll,$A10&"*",OFFSET(TB!$D$4,1,MATCH(C$4,TBMonths,0),TBRowCount,1))) -> 546530 | D10: =IF(ISNA(MATCH(D$4-1,TBMonths,0))=TRUE,0,SUMIF(TBAll,$A10&"*",OFFSET(TB!$D$4,1,MATCH(D$4-1,TBMonths,0),TBRowCount,1)))-IF(ISNA(MATCH(D$4,TBMonths,0))=TRUE,0,SUMIF(TBAll,$A10&"*",OFFSET(TB!$D$4,1,MATCH(D$4,TBMonths,0),TBRowCount,1))) -> 450300 | E10: =C10-D10 -> 96230 | F10: =IF(D10=0,IF(E10=0,0,-1),E10/ABS(D10)) -> 0.2137019765 | H10: =IF(ISNA(MATCH(H$4-1,TBMonths,0))=TRUE,0,SUMIF(TBAll,$A10&"*",OFFSET(TB!$D$4,1,MATCH(H$4-1,TBMonths,0),TBRowCount,1)))-IF(ISNA(MATCH(H$4,TBMonths,0))=TRUE,0,SUMIF(TBAll,$A10&"*",OFFSET(TB!$D$4,1,MATCH(H$4,TBMonths,0),TBRowCount,1))) -> 377626 | I10: =D10-H10 -> 72674 | J10: =IF(H10=0,IF(I10=0,0,-1),I10/ABS(H10)) -> 0.1924496724
A11: B-03G | B11: - Amortisation | C11: =IF(ISNA(MATCH(C$4-1,TBMonths,0))=TRUE,0,SUMIF(TBAll,$A11&"*",OFFSET(TB!$D$4,1,MATCH(C$4-1,TBMonths,0),TBRowCount,1)))-IF(ISNA(MATCH(C$4,TBMonths,0))=TRUE,0,SUMIF(TBAll,$A11&"*",OFFSET(TB!$D$4,1,MATCH(C$4,TBMonths,0),TBRowCount,1))) -> 104050 | D11: =IF(ISNA(MATCH(D$4-1,TBMonths,0))=TRUE,0,SUMIF(TBAll,$A11&"*",OFFSET(TB!$D$4,1,MATCH(D$4-1,TBMonths,0),TBRowCount,1)))-IF(ISNA(MATCH(D$4,TBMonths,0))=TRUE,0,SUMIF(TBAll,$A11&"*",OFFSET(TB!$D$4,1,MATCH(D$4,TBMonths,0),TBRowCount,1))) -> 104050 | E11: 0 | F11: 0 | H11: =IF(ISNA(MATCH(H$4-1,TBMonths,0))=TRUE,0,SUMIF(TBAll,$A11&"*",OFFSET(TB!$D$4,1,MATCH(H$4-1,TBMonths,0),TBRowCount,1)))-IF(ISNA(MATCH(H$4,TBMonths,0))=TRUE,0,SUMIF(TBAll,$A11&"*",OFFSET(TB!$D$4,1,MATCH(H$4,TBMonths,0),TBRowCount,1))) -> 104050 | I11: 0 | J11: 0
A12: B-21G | B12: - Retained earnings | C12: =IF(ISNA(MATCH(C$4-1,TBMonths,0))=TRUE,0,SUMIF(TBAll,$A12&"*",OFFSET(TB!$D$4,1,MATCH(C$4-1,TBMonths,0),TBRowCount,1)))+IF(ISNA(MATCH(C$4-1,TBMonths,0))=TRUE,0,SUMIF(TBAll,"I-*",OFFSET(TB!$D$4,1,MATCH(C$4-1,TBMonths,0),TBRowCount,1)))-IF(ISNA(MATCH(C$4,TBMonths,0))=TRUE,0,SUMIF(TBAll,$A12&"*",OFFSET(TB!$D$4,1,MATCH(C$4,TBMonths,0),TBRowCount,1))) -> 0 | D12: =IF(ISNA(MATCH(D$4-1,TBMonths,0))=TRUE,0,SUMIF(TBAll,$A12&"*",OFFSET(TB!$D$4,1,MATCH(D$4-1,TBMonths,0),TBRowCount,1)))+IF(ISNA(MATCH(D$4-1,TBMonths,0))=TRUE,0,SUMIF(TBAll,"I-*",OFFSET(TB!$D$4,1,MATCH(D$4-1,TBMonths,0),TBRowCount,1)))-IF(ISNA(MATCH(D$4,TBMonths,0))=TRUE,0,SUMIF(TBAll,$A12&"*",OFFSET(TB!$D$4,1,MATCH(D$4,TBMonths,0),TBRowCount,1))) -> 0 | E12: =C12-D12 -> 0 | F12: =IF(D12=0,IF(E12=0,0,-1),E12/ABS(D12)) -> 0 | H12: =IF(ISNA(MATCH(H$4-1,TBMonths,0))=TRUE,0,SUMIF(TBAll,$A12&"*",OFFSET(TB!$D$4,1,MATCH(H$4-1,TBMonths,0),TBRowCount,1)))+IF(ISNA(MATCH(H$4-1,TBMonths,0))=TRUE,0,SUMIF(TBAll,"I-*",OFFSET(TB!$D$4,1,MATCH(H$4-1,TBMonths,0),TBRowCount,1)))-IF(ISNA(MATCH(H$4,TBMonths,0))=TRUE,0,SUMIF(TBAll,$A12&"*",OFFSET(TB!$D$4,1,MATCH(H$4,TBMonths,0),TBRowCount,1))) -> 0 | I12: =D12-H12 -> 0 | J12: =IF(H12=0,IF(I12=0,0,-1),I12/ABS(H12)) -> 0
A13: B-19G | B13: - Reserves | C13: =IF(ISNA(MATCH(C$4-1,TBMonths,0))=TRUE,0,SUMIF(TBAll,$A13&"*",OFFSET(TB!$D$4,1,MATCH(C$4-1,TBMonths,0),TBRowCount,1)))-IF(ISNA(MATCH(C$4,TBMonths,0))=TRUE,0,SUMIF(TBAll,$A13&"*",OFFSET(TB!$D$4,1,MATCH(C$4,TBMonths,0),TBRowCount,1))) -> 0 | D13: =IF(ISNA(MATCH(D$4-1,TBMonths,0))=TRUE,0,SUMIF(TBAll,$A13&"*",OFFSET(TB!$D$4,1,MATCH(D$4-1,TBMonths,0),TBRowCount,1)))-IF(ISNA(MATCH(D$4,TBMonths,0))=TRUE,0,SUMIF(TBAll,$A13&"*",OFFSET(TB!$D$4,1,MATCH(D$4,TBMonths,0),TBRowCount,1))) -> 0 | E13: 0 | F13: 0 | H13: =IF(ISNA(MATCH(H$4-1,TBMonths,0))=TRUE,0,SUMIF(TBAll,$A13&"*",OFFSET(TB!$D$4,1,MATCH(H$4-1,TBMonths,0),TBRowCount,1)))-IF(ISNA(MATCH(H$4,TBMonths,0))=TRUE,0,SUMIF(TBAll,$A13&"*",OFFSET(TB!$D$4,1,MATCH(H$4,TBMonths,0),TBRowCount,1))) -> 0 | I13: 0 | J13: 0
A14: B-16G | B14: - Provisions | C14: =IF(ISNA(MATCH(C$4-1,TBMonths,0))=TRUE,0,SUMIF(TBAll,$A14&"*",OFFSET(TB!$D$4,1,MATCH(C$4-1,TBMonths,0),TBRowCount,1)))-IF(ISNA(MATCH(C$4,TBMonths,0))=TRUE,0,SUMIF(TBAll,$A14&"*",OFFSET(TB!$D$4,1,MATCH(C$4,TBMonths,0),TBRowCount,1))) -> -47 | D14: =IF(ISNA(MATCH(D$4-1,TBMonths,0))=TRUE,0,SUMIF(TBAll,$A14&"*",OFFSET(TB!$D$4,1,MATCH(D$4-1,TBMonths,0),TBRowCount,1)))-IF(ISNA(MATCH(D$4,TBMonths,0))=TRUE,0,SUMIF(TBAll,$A14&"*",OFFSET(TB!$D$4,1,MATCH(D$4,TBMonths,0),TBRowCount,1))) -> 3233 | E14: =C14-D14 -> -3280 | F14: =IF(D14=0,IF(E14=0,0,-1),E14/ABS(D14)) -> -1.014537581 | H14: =IF(ISNA(MATCH(H$4-1,TBMonths,0))=TRUE,0,SUMIF(TBAll,$A14&"*",OFFSET(TB!$D$4,1,MATCH(H$4-1,TBMonths,0),TBRowCount,1)))-IF(ISNA(MATCH(H$4,TBMonths,0))=TRUE,0,SUMIF(TBAll,$A14&"*",OFFSET(TB!$D$4,1,MATCH(H$4,TBMonths,0),TBRowCount,1))) -> 31237 | I14: =D14-H14 -> -28004 | J14: =IF(H14=0,IF(I14=0,0,-1),I14/ABS(H14)) -> -0.8965009444
B15: Changes in operating assets & liabilities
A16: B-08G | B16: - Trade debtors | C16: =IF(ISNA(MATCH(C$4-1,TBMonths,0))=TRUE,0,SUMIF(TBAll,$A16&"*",OFFSET(TB!$D$4,1,MATCH(C$4-1,TBMonths,0),TBRowCount,1)))-IF(ISNA(MATCH(C$4,TBMonths,0))=TRUE,0,SUMIF(TBAll,$A16&"*",OFFSET(TB!$D$4,1,MATCH(C$4,TBMonths,0),TBRowCount,1))) -> -72137 | D16: =IF(ISNA(MATCH(D$4-1,TBMonths,0))=TRUE,0,SUMIF(TBAll,$A16&"*",OFFSET(TB!$D$4,1,MATCH(D$4-1,TBMonths,0),TBRowCount,1)))-IF(ISNA(MATCH(D$4,TBMonths,0))=TRUE,0,SUMIF(TBAll,$A16&"*",OFFSET(TB!$D$4,1,MATCH(D$4,TBMonths,0),TBRowCount,1))) -> -39903 | E16: =C16-D16 -> -32234 | F16: =IF(D16=0,IF(E16=0,0,-1),E16/ABS(D16)) -> -0.8078089367 | H16: =IF(ISNA(MATCH(H$4-1,TBMonths,0))=TRUE,0,SUMIF(TBAll,$A16&"*",OFFSET(TB!$D$4,1,MATCH(H$4-1,TBMonths,0),TBRowCount,1)))-IF(ISNA(MATCH(H$4,TBMonths,0))=TRUE,0,SUMIF(TBAll,$A16&"*",OFFSET(TB!$D$4,1,MATCH(H$4,TBMonths,0),TBRowCount,1))) -> -29529 | I16: =D16-H16 -> -10374 | J16: =IF(H16=0,IF(I16=0,0,-1),I16/ABS(H16)) -> -0.3513156558
A17: B-05G | B17: - Loans & advances | C17: =IF(ISNA(MATCH(C$4-1,TBMonths,0))=TRUE,0,SUMIF(TBAll,$A17&"*",OFFSET(TB!$D$4,1,MATCH(C$4-1,TBMonths,0),TBRowCount,1)))-IF(ISNA(MATCH(C$4,TBMonths,0))=TRUE,0,SUMIF(TBAll,$A17&"*",OFFSET(TB!$D$4,1,MATCH(C$4,TBMonths,0),TBRowCount,1))) -> -11800 | D17: =IF(ISNA(MATCH(D$4-1,TBMonths,0))=TRUE,0,SUMIF(TBAll,$A17&"*",OFFSET(TB!$D$4,1,MATCH(D$4-1,TBMonths,0),TBRowCount,1)))-IF(ISNA(MATCH(D$4,TBMonths,0))=TRUE,0,SUMIF(TBAll,$A17&"*",OFFSET(TB!$D$4,1,MATCH(D$4,TBMonths,0),TBRowCount,1))) -> -17980 | E17: =C17-D17 -> 6180 | F17: =IF(D17=0,IF(E17=0,0,-1),E17/ABS(D17)) -> 0.3437152392 | H17: =IF(ISNA(MATCH(H$4-1,TBMonths,0))=TRUE,0,SUMIF(TBAll,$A17&"*",OFFSET(TB!$D$4,1,MATCH(H$4-1,TBMonths,0),TBRowCount,1)))-IF(ISNA(MATCH(H$4,TBMonths,0))=TRUE,0,SUMIF(TBAll,$A17&"*",OFFSET(TB!$D$4,1,MATCH(H$4,TBMonths,0),TBRowCount,1))) -> -7690 | I17: =D17-H17 -> -10290 | J17: =IF(H17=0,IF(I17=0,0,-1),I17/ABS(H17)) -> -1.33810143
A18: B-09G | B18: - Other debtors | C18: =IF(ISNA(MATCH(C$4-1,TBMonths,0))=TRUE,0,SUMIF(TBAll,$A18&"*",OFFSET(TB!$D$4,1,MATCH(C$4-1,TBMonths,0),TBRowCount,1)))-IF(ISNA(MATCH(C$4,TBMonths,0))=TRUE,0,SUMIF(TBAll,$A18&"*",OFFSET(TB!$D$4,1,MATCH(C$4,TBMonths,0),TBRowCount,1))) -> 20500 | D18: =IF(ISNA(MATCH(D$4-1,TBMonths,0))=TRUE,0,SUMIF(TBAll,$A18&"*",OFFSET(TB!$D$4,1,MATCH(D$4-1,TBMonths,0),TBRowCount,1)))-IF(ISNA(MATCH(D$4,TBMonths,0))=TRUE,0,SUMIF(TBAll,$A18&"*",OFFSET(TB!$D$4,1,MATCH(D$4,TBMonths,0),TBRowCount,1))) -> -21900 | E18: =C18-D18 -> 42400 | F18: =IF(D18=0,IF(E18=0,0,-1),E18/ABS(D18)) -> 1.936073059 | H18: =IF(ISNA(MATCH(H$4-1,TBMonths,0))=TRUE,0,SUMIF(TBAll,$A18&"*",OFFSET(TB!$D$4,1,MATCH(H$4-1,TBMonths,0),TBRowCount,1)))-IF(ISNA(MATCH(H$4,TBMonths,0))=TRUE,0,SUMIF(TBAll,$A18&"*",OFFSET(TB!$D$4,1,MATCH(H$4,TBMonths,0),TBRowCount,1))) -> -10600 | I18: =D18-H18 -> -11300 | J18: =IF(H18=0,IF(I18=0,0,-1),I18/ABS(H18)) -> -1.066037736
A19: B-07G | B19: - Cash on hand | C19: =IF(ISNA(MATCH(C$4-1,TBMonths,0))=TRUE,0,SUMIF(TBAll,$A19&"*",OFFSET(TB!$D$4,1,MATCH(C$4-1,TBMonths,0),TBRowCount,1)))-IF(ISNA(MATCH(C$4,TBMonths,0))=TRUE,0,SUMIF(TBAll,$A19&"*",OFFSET(TB!$D$4,1,MATCH(C$4,TBMonths,0),TBRowCount,1))) -> -10 | D19: =IF(ISNA(MATCH(D$4-1,TBMonths,0))=TRUE,0,SUMIF(TBAll,$A19&"*",OFFSET(TB!$D$4,1,MATCH(D$4-1,TBMonths,0),TBRowCount,1)))-IF(ISNA(MATCH(D$4,TBMonths,0))=TRUE,0,SUMIF(TBAll,$A19&"*",OFFSET(TB!$D$4,1,MATCH(D$4,TBMonths,0),TBRowCount,1))) -> 10 | E19: =C19-D19 -> -20 | F19: =IF(D19=0,IF(E19=0,0,-1),E19/ABS(D19)) -> -2 | H19: =IF(ISNA(MATCH(H$4-1,TBMonths,0))=TRUE,0,SUMIF(TBAll,$A19&"*",OFFSET(TB!$D$4,1,MATCH(H$4-1,TBMonths,0),TBRowCount,1)))-IF(ISNA(MATCH(H$4,TBMonths,0))=TRUE,0,SUMIF(TBAll,$A19&"*",OFFSET(TB!$D$4,1,MATCH(H$4,TBMonths,0),TBRowCount,1))) -> 0 | I19: =D19-H19 -> 10 | J19: =IF(H19=0,IF(I19=0,0,-1),I19/ABS(H19)) -> -1
A20: B-10G | B20: - Inventory | C20: =IF(ISNA(MATCH(C$4-1,TBMonths,0))=TRUE,0,SUMIF(TBAll,$A20&"*",OFFSET(TB!$D$4,1,MATCH(C$4-1,TBMonths,0),TBRowCount,1)))-IF(ISNA(MATCH(C$4,TBMonths,0))=TRUE,0,SUMIF(TBAll,$A20&"*",OFFSET(TB!$D$4,1,MATCH(C$4,TBMonths,0),TBRowCount,1))) -> -39168 | D20: =IF(ISNA(MATCH(D$4-1,TBMonths,0))=TRUE,0,SUMIF(TBAll,$A20&"*",OFFSET(TB!$D$4,1,MATCH(D$4-1,TBMonths,0),TBRowCount,1)))-IF(ISNA(MATCH(D$4,TBMonths,0))=TRUE,0,SUMIF(TBAll,$A20&"*",OFFSET(TB!$D$4,1,MATCH(D$4,TBMonths,0),TBRowCount,1))) -> -65549 | E20: 26381 | F20: 0.4024622801 | H20: =IF(ISNA(MATCH(H$4-1,TBMonths,0))=TRUE,0,SUMIF(TBAll,$A20&"*",OFFSET(TB!$D$4,1,MATCH(H$4-1,TBMonths,0),TBRowCount,1)))-IF(ISNA(MATCH(H$4,TBMonths,0))=TRUE,0,SUMIF(TBAll,$A20&"*",OFFSET(TB!$D$4,1,MATCH(H$4,TBMonths,0),TBRowCount,1))) -> -46915 | I20: -18634 | J20: -0.3971864009
A21: B-12G | B21: - Trade creditors | C21: =IF(ISNA(MATCH(C$4-1,TBMonths,0))=TRUE,0,SUMIF(TBAll,$A21&"*",OFFSET(TB!$D$4,1,MATCH(C$4-1,TBMonths,0),TBRowCount,1)))-IF(ISNA(MATCH(C$4,TBMonths,0))=TRUE,0,SUMIF(TBAll,$A21&"*",OFFSET(TB!$D$4,1,MATCH(C$4,TBMonths,0),TBRowCount,1))) -> -33098 | D21: =IF(ISNA(MATCH(D$4-1,TBMonths,0))=TRUE,0,SUMIF(TBAll,$A21&"*",OFFSET(TB!$D$4,1,MATCH(D$4-1,TBMonths,0),TBRowCount,1)))-IF(ISNA(MATCH(D$4,TBMonths,0))=TRUE,0,SUMIF(TBAll,$A21&"*",OFFSET(TB!$D$4,1,MATCH(D$4,TBMonths,0),TBRowCount,1))) -> 53575 | E21: =C21-D21 -> -86673 | F21: =IF(D21=0,IF(E21=0,0,-1),E21/ABS(D21)) -> -1.617788147 | H21: =IF(ISNA(MATCH(H$4-1,TBMonths,0))=TRUE,0,SUMIF(TBAll,$A21&"*",OFFSET(TB!$D$4,1,MATCH(H$4-1,TBMonths,0),TBRowCount,1)))-IF(ISNA(MATCH(H$4,TBMonths,0))=TRUE,0,SUMIF(TBAll,$A21&"*",OFFSET(TB!$D$4,1,MATCH(H$4,TBMonths,0),TBRowCount,1))) -> 40695 | I21: =D21-H21 -> 12880 | J21: =IF(H21=0,IF(I21=0,0,-1),I21/ABS(H21)) -> 0.3165007986
A22: B-13G | B22: - Accruals | C22: =IF(ISNA(MATCH(C$4-1,TBMonths,0))=TRUE,0,SUMIF(TBAll,$A22&"*",OFFSET(TB!$D$4,1,MATCH(C$4-1,TBMonths,0),TBRowCount,1)))-IF(ISNA(MATCH(C$4,TBMonths,0))=TRUE,0,SUMIF(TBAll,$A22&"*",OFFSET(TB!$D$4,1,MATCH(C$4,TBMonths,0),TBRowCount,1))) -> 24417 | D22: =IF(ISNA(MATCH(D$4-1,TBMonths,0))=TRUE,0,SUMIF(TBAll,$A22&"*",OFFSET(TB!$D$4,1,MATCH(D$4-1,TBMonths,0),TBRowCount,1)))-IF(ISNA(MATCH(D$4,TBMonths,0))=TRUE,0,SUMIF(TBAll,$A22&"*",OFFSET(TB!$D$4,1,MATCH(D$4,TBMonths,0),TBRowCount,1))) -> 14812 | E22: 9605 | F22: 0.6484607075 | H22: =IF(ISNA(MATCH(H$4-1,TBMonths,0))=TRUE,0,SUMIF(TBAll,$A22&"*",OFFSET(TB!$D$4,1,MATCH(H$4-1,TBMonths,0),TBRowCount,1)))-IF(ISNA(MATCH(H$4,TBMonths,0))=TRUE,0,SUMIF(TBAll,$A22&"*",OFFSET(TB!$D$4,1,MATCH(H$4,TBMonths,0),TBRowCount,1))) -> 11889 | I22: 2923 | J22: 0.2458575154
A23: B-17G | B23: - Sales tax | C23: =IF(ISNA(MATCH(C$4-1,TBMonths,0))=TRUE,0,SUMIF(TBAll,$A23&"*",OFFSET(TB!$D$4,1,MATCH(C$4-1,TBMonths,0),TBRowCount,1)))-IF(ISNA(MATCH(C$4,TBMonths,0))=TRUE,0,SUMIF(TBAll,$A23&"*",OFFSET(TB!$D$4,1,MATCH(C$4,TBMonths,0),TBRowCount,1))) -> 16056 | D23: =IF(ISNA(MATCH(D$4-1,TBMonths,0))=TRUE,0,SUMIF(TBAll,$A23&"*",OFFSET(TB!$D$4,1,MATCH(D$4-1,TBMonths,0),TBRowCount,1)))-IF(ISNA(MATCH(D$4,TBMonths,0))=TRUE,0,SUMIF(TBAll,$A23&"*",OFFSET(TB!$D$4,1,MATCH(D$4,TBMonths,0),TBRowCount,1))) -> 3944 | E23: 12112 | F23: 3.070993915 | H23: =IF(ISNA(MATCH(H$4-1,TBMonths,0))=TRUE,0,SUMIF(TBAll,$A23&"*",OFFSET(TB!$D$4,1,MATCH(H$4-1,TBMonths,0),TBRowCount,1)))-IF(ISNA(MATCH(H$4,TBMonths,0))=TRUE,0,SUMIF(TBAll,$A23&"*",OFFSET(TB!$D$4,1,MATCH(H$4,TBMonths,0),TBRowCount,1))) -> 10271 | I23: -6327 | J23: -0.6160062311
B24: Cash generated from operations | C24: =SUM(C6:C23) -> 2225820 | D24: =SUM(D6:D23) -> 2065466 | E24: =SUM(E6:E23) -> 160354 | F24: 0.07763574903 | H24: =SUM(H6:H23) -> 1507495 | I24: =SUM(I6:I23) -> 557971 | J24: 0.3701312442
A25: B-1301G | B25: Interest paid | C25: =IF(ISNA(MATCH(C$4-1,TBMonths,0))=TRUE,0,SUMIF(TBAll,$A25&"*",OFFSET(TB!$D$4,1,MATCH(C$4-1,TBMonths,0),TBRowCount,1)))-IF(ISNA(MATCH(C$4,TBMonths,0))=TRUE,0,SUMIF(TBAll,$A25&"*",OFFSET(TB!$D$4,1,MATCH(C$4,TBMonths,0),TBRowCount,1)))-C7 -> -195733 | D25: =IF(ISNA(MATCH(D$4-1,TBMonths,0))=TRUE,0,SUMIF(TBAll,$A25&"*",OFFSET(TB!$D$4,1,MATCH(D$4-1,TBMonths,0),TBRowCount,1)))-IF(ISNA(MATCH(D$4,TBMonths,0))=TRUE,0,SUMIF(TBAll,$A25&"*",OFFSET(TB!$D$4,1,MATCH(D$4,TBMonths,0),TBRowCount,1)))-D7 -> -209719 | E25: =C25-D25 -> 13986 | F25: 0.06668923655 | H25: =IF(ISNA(MATCH(H$4-1,TBMonths,0))=TRUE,0,SUMIF(TBAll,$A25&"*",OFFSET(TB!$D$4,1,MATCH(H$4-1,TBMonths,0),TBRowCount,1)))-IF(ISNA(MATCH(H$4,TBMonths,0))=TRUE,0,SUMIF(TBAll,$A25&"*",OFFSET(TB!$D$4,1,MATCH(H$4,TBMonths,0),TBRowCount,1)))-H7 -> -178181 | I25: =D25-H25 -> -31538 | J25: -0.1769997923
A26: B-15G | B26: Income tax paid | C26: =IF(ISNA(MATCH(C$4-1,TBMonths,0))=TRUE,0,SUMIF(TBAll,$A26&"*",OFFSET(TB!$D$4,1,MATCH(C$4-1,TBMonths,0),TBRowCount,1)))-IF(ISNA(MATCH(C$4,TBMonths,0))=TRUE,0,SUMIF(TBAll,$A26&"*",OFFSET(TB!$D$4,1,MATCH(C$4,TBMonths,0),TBRowCount,1)))+IF(ISNA(MATCH(C$4-1,TBMonths,0))=TRUE,0,SUMIF(TBAll,"B-22G*",OFFSET(TB!$D$4,1,MATCH(C$4-1,TBMonths,0),TBRowCount,1)))-IF(ISNA(MATCH(C$4,TBMonths,0))=TRUE,0,SUMIF(TBAll,"B-22G*",OFFSET(TB!$D$4,1,MATCH(C$4,TBMonths,0),TBRowCount,1)))-C8 -> -409605 | D26: =IF(ISNA(MATCH(D$4-1,TBMonths,0))=TRUE,0,SUMIF(TBAll,$A26&"*",OFFSET(TB!$D$4,1,MATCH(D$4-1,TBMonths,0),TBRowCount,1)))-IF(ISNA(MATCH(D$4,TBMonths,0))=TRUE,0,SUMIF(TBAll,$A26&"*",OFFSET(TB!$D$4,1,MATCH(D$4,TBMonths,0),TBRowCount,1)))+IF(ISNA(MATCH(D$4-1,TBMonths,0))=TRUE,0,SUMIF(TBAll,"B-22G*",OFFSET(TB!$D$4,1,MATCH(D$4-1,TBMonths,0),TBRowCount,1)))-IF(ISNA(MATCH(D$4,TBMonths,0))=TRUE,0,SUMIF(TBAll,"B-22G*",OFFSET(TB!$D$4,1,MATCH(D$4,TBMonths,0),TBRowCount,1)))-D8 -> -185672 | E26: -223933 | F26: -1.206067689 | H26: =IF(ISNA(MATCH(H$4-1,TBMonths,0))=TRUE,0,SUMIF(TBAll,$A26&"*",OFFSET(TB!$D$4,1,MATCH(H$4-1,TBMonths,0),TBRowCount,1)))-IF(ISNA(MATCH(H$4,TBMonths,0))=TRUE,0,SUMIF(TBAll,$A26&"*",OFFSET(TB!$D$4,1,MATCH(H$4,TBMonths,0),TBRowCount,1)))+IF(ISNA(MATCH(H$4-1,TBMonths,0))=TRUE,0,SUMIF(TBAll,"B-22G*",OFFSET(TB!$D$4,1,MATCH(H$4-1,TBMonths,0),TBRowCount,1)))-IF(ISNA(MATCH(H$4,TBMonths,0))=TRUE,0,SUMIF(TBAll,"B-22G*",OFFSET(TB!$D$4,1,MATCH(H$4,TBMonths,0),TBRowCount,1)))-H8 -> -222959 | I26: 37287 | J26: 0.1672370256
B27: Net cash from operating activities | C27: =SUM(C24:C26) -> 1620482 | D27: =SUM(D24:D26) -> 1670075 | E27: =SUM(E24:E26) -> -49593 | F27: -0.02969507357 | H27: =SUM(H24:H26) -> 1106355 | I27: =SUM(I24:I26) -> 563720 | J27: 0.5095290391
B29: Cash flows from investing activities
A30: B-00G | B30: Property, plant & equipment - cost | C30: =IF(ISNA(MATCH(C$4-1,TBMonths,0))=TRUE,0,SUMIF(TBAll,$A30&"*",OFFSET(TB!$D$4,1,MATCH(C$4-1,TBMonths,0),TBRowCount,1)))-IF(ISNA(MATCH(C$4,TBMonths,0))=TRUE,0,SUMIF(TBAll,$A30&"*",OFFSET(TB!$D$4,1,MATCH(C$4,TBMonths,0),TBRowCount,1))) -> -305000 | D30: =IF(ISNA(MATCH(D$4-1,TBMonths,0))=TRUE,0,SUMIF(TBAll,$A30&"*",OFFSET(TB!$D$4,1,MATCH(D$4-1,TBMonths,0),TBRowCount,1)))-IF(ISNA(MATCH(D$4,TBMonths,0))=TRUE,0,SUMIF(TBAll,$A30&"*",OFFSET(TB!$D$4,1,MATCH(D$4,TBMonths,0),TBRowCount,1))) -> -164750 | E30: =C30-D30 -> -140250 | F30: =IF(D30=0,IF(E30=0,0,-1),E30/ABS(D30)) -> -0.8512898331 | H30: =IF(ISNA(MATCH(H$4-1,TBMonths,0))=TRUE,0,SUMIF(TBAll,$A30&"*",OFFSET(TB!$D$4,1,MATCH(H$4-1,TBMonths,0),TBRowCount,1)))-IF(ISNA(MATCH(H$4,TBMonths,0))=TRUE,0,SUMIF(TBAll,$A30&"*",OFFSET(TB!$D$4,1,MATCH(H$4,TBMonths,0),TBRowCount,1))) -> -407385 | I30: =D30-H30 -> 242635 | J30: =IF(H30=0,IF(I30=0,0,-1),I30/ABS(H30)) -> 0.5955913939
A31: B-02G | B31: Intangible assets - cost | C31: =IF(ISNA(MATCH(C$4-1,TBMonths,0))=TRUE,0,SUMIF(TBAll,$A31&"*",OFFSET(TB!$D$4,1,MATCH(C$4-1,TBMonths,0),TBRowCount,1)))-IF(ISNA(MATCH(C$4,TBMonths,0))=TRUE,0,SUMIF(TBAll,$A31&"*",OFFSET(TB!$D$4,1,MATCH(C$4,TBMonths,0),TBRowCount,1))) -> 0 | D31: =IF(ISNA(MATCH(D$4-1,TBMonths,0))=TRUE,0,SUMIF(TBAll,$A31&"*",OFFSET(TB!$D$4,1,MATCH(D$4-1,TBMonths,0),TBRowCount,1)))-IF(ISNA(MATCH(D$4,TBMonths,0))=TRUE,0,SUMIF(TBAll,$A31&"*",OFFSET(TB!$D$4,1,MATCH(D$4,TBMonths,0),TBRowCount,1))) -> 0 | E31: 0 | F31: 0 | H31: =IF(ISNA(MATCH(H$4-1,TBMonths,0))=TRUE,0,SUMIF(TBAll,$A31&"*",OFFSET(TB!$D$4,1,MATCH(H$4-1,TBMonths,0),TBRowCount,1)))-IF(ISNA(MATCH(H$4,TBMonths,0))=TRUE,0,SUMIF(TBAll,$A31&"*",OFFSET(TB!$D$4,1,MATCH(H$4,TBMonths,0),TBRowCount,1))) -> 0 | I31: 0 | J31: 0
A32: B-04G | B32: Investments | C32: =IF(ISNA(MATCH(C$4-1,TBMonths,0))=TRUE,0,SUMIF(TBAll,$A32&"*",OFFSET(TB!$D$4,1,MATCH(C$4-1,TBMonths,0),TBRowCount,1)))-IF(ISNA(MATCH(C$4,TBMonths,0))=TRUE,0,SUMIF(TBAll,$A32&"*",OFFSET(TB!$D$4,1,MATCH(C$4,TBMonths,0),TBRowCount,1))) -> -520000 | D32: =IF(ISNA(MATCH(D$4-1,TBMonths,0))=TRUE,0,SUMIF(TBAll,$A32&"*",OFFSET(TB!$D$4,1,MATCH(D$4-1,TBMonths,0),TBRowCount,1)))-IF(ISNA(MATCH(D$4,TBMonths,0))=TRUE,0,SUMIF(TBAll,$A32&"*",OFFSET(TB!$D$4,1,MATCH(D$4,TBMonths,0),TBRowCount,1))) -> -1482500 | E32: 962500 | F32: 0.6492411467 | H32: =IF(ISNA(MATCH(H$4-1,TBMonths,0))=TRUE,0,SUMIF(TBAll,$A32&"*",OFFSET(TB!$D$4,1,MATCH(H$4-1,TBMonths,0),TBRowCount,1)))-IF(ISNA(MATCH(H$4,TBMonths,0))=TRUE,0,SUMIF(TBAll,$A32&"*",OFFSET(TB!$D$4,1,MATCH(H$4,TBMonths,0),TBRowCount,1))) -> -100000 | I32: -1382500 | J32: -13.825
B33: Net cash used in investing activities | C33: =SUM(C30:C32) -> -825000 | D33: =SUM(D30:D32) -> -1647250 | E33: =SUM(E30:E32) -> 822250 | F33: 0.4991652755 | H33: =SUM(H30:H32) -> -507385 | I33: =SUM(I30:I32) -> -1139865 | J33: -2.246548479
B35: Cash flows from financing activities
A36: B-20G | B36: Shareholders' contributions | C36: =IF(ISNA(MATCH(C$4-1,TBMonths,0))=TRUE,0,SUMIF(TBAll,$A36&"*",OFFSET(TB!$D$4,1,MATCH(C$4-1,TBMonths,0),TBRowCount,1)))-IF(ISNA(MATCH(C$4,TBMonths,0))=TRUE,0,SUMIF(TBAll,$A36&"*",OFFSET(TB!$D$4,1,MATCH(C$4,TBMonths,0),TBRowCount,1))) -> 0 | D36: =IF(ISNA(MATCH(D$4-1,TBMonths,0))=TRUE,0,SUMIF(TBAll,$A36&"*",OFFSET(TB!$D$4,1,MATCH(D$4-1,TBMonths,0),TBRowCount,1)))-IF(ISNA(MATCH(D$4,TBMonths,0))=TRUE,0,SUMIF(TBAll,$A36&"*",OFFSET(TB!$D$4,1,MATCH(D$4,TBMonths,0),TBRowCount,1))) -> 0 | E36: =C36-D36 -> 0 | F36: =IF(D36=0,IF(E36=0,0,-1),E36/ABS(D36)) -> 0 | H36: =IF(ISNA(MATCH(H$4-1,TBMonths,0))=TRUE,0,SUMIF(TBAll,$A36&"*",OFFSET(TB!$D$4,1,MATCH(H$4-1,TBMonths,0),TBRowCount,1)))-IF(ISNA(MATCH(H$4,TBMonths,0))=TRUE,0,SUMIF(TBAll,$A36&"*",OFFSET(TB!$D$4,1,MATCH(H$4,TBMonths,0),TBRowCount,1))) -> 0 | I36: =D36-H36 -> 0 | J36: =IF(H36=0,IF(I36=0,0,-1),I36/ABS(H36)) -> 0
A37: B-18G | B37: Long term loans | C37: =IF(ISNA(MATCH(C$4-1,TBMonths,0))=TRUE,0,SUMIF(TBAll,$A37&"*",OFFSET(TB!$D$4,1,MATCH(C$4-1,TBMonths,0),TBRowCount,1)))-IF(ISNA(MATCH(C$4,TBMonths,0))=TRUE,0,SUMIF(TBAll,$A37&"*",OFFSET(TB!$D$4,1,MATCH(C$4,TBMonths,0),TBRowCount,1))) -> -701693 | D37: =IF(ISNA(MATCH(D$4-1,TBMonths,0))=TRUE,0,SUMIF(TBAll,$A37&"*",OFFSET(TB!$D$4,1,MATCH(D$4-1,TBMonths,0),TBRowCount,1)))-IF(ISNA(MATCH(D$4,TBMonths,0))=TRUE,0,SUMIF(TBAll,$A37&"*",OFFSET(TB!$D$4,1,MATCH(D$4,TBMonths,0),TBRowCount,1))) -> 321505 | E37: -1023198 | F37: -3.182525933 | H37: =IF(ISNA(MATCH(H$4-1,TBMonths,0))=TRUE,0,SUMIF(TBAll,$A37&"*",OFFSET(TB!$D$4,1,MATCH(H$4-1,TBMonths,0),TBRowCount,1)))-IF(ISNA(MATCH(H$4,TBMonths,0))=TRUE,0,SUMIF(TBAll,$A37&"*",OFFSET(TB!$D$4,1,MATCH(H$4,TBMonths,0),TBRowCount,1))) -> -473820 | I37: 795325 | J37: 1.678538263
A38: B-23G | B38: Finance leases | C38: =IF(ISNA(MATCH(C$4-1,TBMonths,0))=TRUE,0,SUMIF(TBAll,$A38&"*",OFFSET(TB!$D$4,1,MATCH(C$4-1,TBMonths,0),TBRowCount,1)))-IF(ISNA(MATCH(C$4,TBMonths,0))=TRUE,0,SUMIF(TBAll,$A38&"*",OFFSET(TB!$D$4,1,MATCH(C$4,TBMonths,0),TBRowCount,1))) -> -61095 | D38: =IF(ISNA(MATCH(D$4-1,TBMonths,0))=TRUE,0,SUMIF(TBAll,$A38&"*",OFFSET(TB!$D$4,1,MATCH(D$4-1,TBMonths,0),TBRowCount,1)))-IF(ISNA(MATCH(D$4,TBMonths,0))=TRUE,0,SUMIF(TBAll,$A38&"*",OFFSET(TB!$D$4,1,MATCH(D$4,TBMonths,0),TBRowCount,1))) -> -62974 | E38: 1879 | F38: 0.0298377108 | H38: =IF(ISNA(MATCH(H$4-1,TBMonths,0))=TRUE,0,SUMIF(TBAll,$A38&"*",OFFSET(TB!$D$4,1,MATCH(H$4-1,TBMonths,0),TBRowCount,1)))-IF(ISNA(MATCH(H$4,TBMonths,0))=TRUE,0,SUMIF(TBAll,$A38&"*",OFFSET(TB!$D$4,1,MATCH(H$4,TBMonths,0),TBRowCount,1))) -> -30106 | I38: -32868 | J38: -1.09174251
A39: B-14G | B39: Dividends paid | C39: =IF(ISNA(MATCH(C$4-1,TBMonths,0))=TRUE,0,SUMIF(TBAll,$A39&"*",OFFSET(TB!$D$4,1,MATCH(C$4-1,TBMonths,0),TBRowCount,1)))-IF(ISNA(MATCH(C$4,TBMonths,0))=TRUE,0,SUMIF(TBAll,$A39&"*",OFFSET(TB!$D$4,1,MATCH(C$4,TBMonths,0),TBRowCount,1)))-IS!C40 -> -100000 | D39: =IF(ISNA(MATCH(D$4-1,TBMonths,0))=TRUE,0,SUMIF(TBAll,$A39&"*",OFFSET(TB!$D$4,1,MATCH(D$4-1,TBMonths,0),TBRowCount,1)))-IF(ISNA(MATCH(D$4,TBMonths,0))=TRUE,0,SUMIF(TBAll,$A39&"*",OFFSET(TB!$D$4,1,MATCH(D$4,TBMonths,0),TBRowCount,1)))-IS!D40 -> -75000 | E39: -25000 | F39: -0.3333333333 | H39: =IF(ISNA(MATCH(H$4-1,TBMonths,0))=TRUE,0,SUMIF(TBAll,$A39&"*",OFFSET(TB!$D$4,1,MATCH(H$4-1,TBMonths,0),TBRowCount,1)))-IF(ISNA(MATCH(H$4,TBMonths,0))=TRUE,0,SUMIF(TBAll,$A39&"*",OFFSET(TB!$D$4,1,MATCH(H$4,TBMonths,0),TBRowCount,1)))-IS!H40 -> 0 | I39: -75000 | J39: -1
B40: Net cash used in financing activities | C40: =SUM(C36:C39) -> -862788 | D40: =SUM(D36:D39) -> 183531 | E40: =SUM(E36:E39) -> -1046319 | F40: -5.701047779 | H40: =SUM(H36:H39) -> -503926 | I40: =SUM(I36:I39) -> 687457 | J40: 1.364202284
B42: Net increase / (decrease) in cash | C42: =SUM(C27,C33,C40) -> -67306 | D42: =SUM(D27,D33,D40) -> 206356 | E42: =C42-D42 -> -273662 | F42: =IF(D42=0,IF(E42=0,0,-1),E42/ABS(D42)) -> -1.326164492 | H42: =SUM(H27,H33,H40) -> 95044 | I42: =D42-H42 -> 111312 | J42: =IF(H42=0,IF(I42=0,0,-1),I42/ABS(H42)) -> 1.17116283
A43: B-06G | B43: Cash equivalents at beginning of period | C43: =IF(ISNA(MATCH(C$4-1,TBMonths,0))=TRUE,0,SUMIF(TBAll,$A43&"*",OFFSET(TB!$D$4,1,MATCH(C$4-1,TBMonths,0),TBRowCount,1))+SUMIF(TBAll,"B-11G*",OFFSET(TB!$D$4,1,MATCH(C$4-1,TBMonths,0),TBRowCount,1))) -> 393980 | D43: =IF(ISNA(MATCH(D$4-1,TBMonths,0))=TRUE,0,SUMIF(TBAll,$A43&"*",OFFSET(TB!$D$4,1,MATCH(D$4-1,TBMonths,0),TBRowCount,1))+SUMIF(TBAll,"B-11G*",OFFSET(TB!$D$4,1,MATCH(D$4-1,TBMonths,0),TBRowCount,1))) -> 187624 | E43: 206356 | F43: 1.099837974 | H43: =IF(ISNA(MATCH(H$4-1,TBMonths,0))=TRUE,0,SUMIF(TBAll,$A43&"*",OFFSET(TB!$D$4,1,MATCH(H$4-1,TBMonths,0),TBRowCount,1))+SUMIF(TBAll,"B-11G*",OFFSET(TB!$D$4,1,MATCH(H$4-1,TBMonths,0),TBRowCount,1))) -> 92580 | I43: 95044 | J43: 1.02661482
B44: Cash equivalents at end of period | C44: =SUM(C42:C43) -> 326674 | D44: =SUM(D42:D43) -> 393980 | E44: =SUM(E42:E43) -> -67306 | F44: -0.170836083 | H44: =SUM(H42:H43) -> 187624 | I44: =SUM(I42:I43) -> 206356 | J44: 1.099837974
C45: =IF(ROUND(BS!C18-BS!C34-C44,0)=0,"",ROUND(BS!C18-BS!C34-C44,0)) ->  | D45: =IF(ROUND(BS!D18-BS!D34-D44,0)=0,"",ROUND(BS!D18-BS!D34-D44,0)) ->  | H45: =IF(ROUND(BS!H18-BS!H34-H44,0)=0,"",ROUND(BS!H18-BS!H34-H44,0)) -> 
B46: cash flow statement status | C46: =IF(ROUND(BS!C18-BS!C34-C44,0)=0,"ok","error!") -> ok | D46: =IF(ROUND(BS!D18-BS!D34-D44,0)=0,"ok","error!") -> ok | H46: =IF(ROUND(BS!H18-BS!H34-H44,0)=0,"ok","error!") -> ok

Sheet BS (hidden)
B1: =IF(ISBLANK(Setup!$B$4),"Example (Pty) Limited",Setup!$B$4) -> Example (Pty) Limited
B2: ="Balance sheet at "&TEXT(Setup!$B$10,"dd mmmm yyyy") -> Balance sheet at 28 February 2023
B3: © www.excel-skills.com
C4: =IF(ISBLANK(Setup!$B$8),YEAR(TODAY()),Setup!$B$8) -> 2023 | D4: =C4-1 -> 2022 | E4: Diff | F4: Diff% | H4: =D4-1 -> 2021 | I4: Diff | J4: Diff%
B5: ASSETS
B6: Non-current assets
A7: B-00G | B7: =IF(ISNA(VLOOKUP($A7,ClassAll,COLUMN(Classes!$B$4),0)),"No class!",VLOOKUP($A7,ClassAll,COLUMN(Classes!$B$4),0)) -> Property, plant & equipment - cost | C7: =IF(ISNA(MATCH(C$4,TBMonths,0))=TRUE,0,SUMIF(TBAll,$A7&"*",OFFSET(TB!$D$4,1,MATCH(C$4,TBMonths,0),TBRowCount,1))) -> 5179545 | D7: =IF(ISNA(MATCH(D$4,TBMonths,0))=TRUE,0,SUMIF(TBAll,$A7&"*",OFFSET(TB!$D$4,1,MATCH(D$4,TBMonths,0),TBRowCount,1))) -> 4874545 | E7: =C7-D7 -> 305000 | F7: =IF(D7=0,IF(E7=0,0,-1),E7/ABS(D7)) -> 0.06256994243 | H7: =IF(ISNA(MATCH(H$4,TBMonths,0))=TRUE,0,SUMIF(TBAll,$A7&"*",OFFSET(TB!$D$4,1,MATCH(H$4,TBMonths,0),TBRowCount,1))) -> 4709795 | I7: =D7-H7 -> 164750 | J7: =IF(H7=0,IF(I7=0,0,-1),I7/ABS(H7)) -> 0.03498029107
A8: B-01G | B8: =IF(ISNA(VLOOKUP($A8,ClassAll,COLUMN(Classes!$B$4),0)),"No class!",VLOOKUP($A8,ClassAll,COLUMN(Classes!$B$4),0)) -> Property, plant & equipment - accum dep | C8: =IF(ISNA(MATCH(C$4,TBMonths,0))=TRUE,0,SUMIF(TBAll,$A8&"*",OFFSET(TB!$D$4,1,MATCH(C$4,TBMonths,0),TBRowCount,1))) -> -1926248 | D8: =IF(ISNA(MATCH(D$4,TBMonths,0))=TRUE,0,SUMIF(TBAll,$A8&"*",OFFSET(TB!$D$4,1,MATCH(D$4,TBMonths,0),TBRowCount,1))) -> -1379718 | E8: =C8-D8 -> -546530 | F8: =IF(D8=0,IF(E8=0,0,-1),E8/ABS(D8)) -> -0.3961171776 | H8: =IF(ISNA(MATCH(H$4,TBMonths,0))=TRUE,0,SUMIF(TBAll,$A8&"*",OFFSET(TB!$D$4,1,MATCH(H$4,TBMonths,0),TBRowCount,1))) -> -929418 | I8: =D8-H8 -> -450300 | J8: =IF(H8=0,IF(I8=0,0,-1),I8/ABS(H8)) -> -0.4844967496
A9: B-02G | B9: =IF(ISNA(VLOOKUP($A9,ClassAll,COLUMN(Classes!$B$4),0)),"No class!",VLOOKUP($A9,ClassAll,COLUMN(Classes!$B$4),0)) -> Intangible assets - cost | C9: =IF(ISNA(MATCH(C$4,TBMonths,0))=TRUE,0,SUMIF(TBAll,$A9&"*",OFFSET(TB!$D$4,1,MATCH(C$4,TBMonths,0),TBRowCount,1))) -> 1040500 | D9: =IF(ISNA(MATCH(D$4,TBMonths,0))=TRUE,0,SUMIF(TBAll,$A9&"*",OFFSET(TB!$D$4,1,MATCH(D$4,TBMonths,0),TBRowCount,1))) -> 1040500 | E9: =C9-D9 -> 0 | F9: =IF(D9=0,IF(E9=0,0,-1),E9/ABS(D9)) -> 0 | H9: =IF(ISNA(MATCH(H$4,TBMonths,0))=TRUE,0,SUMIF(TBAll,$A9&"*",OFFSET(TB!$D$4,1,MATCH(H$4,TBMonths,0),TBRowCount,1))) -> 1040500 | I9: =D9-H9 -> 0 | J9: =IF(H9=0,IF(I9=0,0,-1),I9/ABS(H9)) -> 0
A10: B-03G | B10: =IF(ISNA(VLOOKUP($A10,ClassAll,COLUMN(Classes!$B$4),0)),"No class!",VLOOKUP($A10,ClassAll,COLUMN(Classes!$B$4),0)) -> Intangible assets - amortization | C10: =IF(ISNA(MATCH(C$4,TBMonths,0))=TRUE,0,SUMIF(TBAll,$A10&"*",OFFSET(TB!$D$4,1,MATCH(C$4,TBMonths,0),TBRowCount,1))) -> -416200 | D10: =IF(ISNA(MATCH(D$4,TBMonths,0))=TRUE,0,SUMIF(TBAll,$A10&"*",OFFSET(TB!$D$4,1,MATCH(D$4,TBMonths,0),TBRowCount,1))) -> -312150 | E10: =C10-D10 -> -104050 | F10: =IF(D10=0,IF(E10=0,0,-1),E10/ABS(D10)) -> -0.3333333333 | H10: =IF(ISNA(MATCH(H$4,TBMonths,0))=TRUE,0,SUMIF(TBAll,$A10&"*",OFFSET(TB!$D$4,1,MATCH(H$4,TBMonths,0),TBRowCount,1))) -> -208100 | I10: =D10-H10 -> -104050 | J10: =IF(H10=0,IF(I10=0,0,-1),I10/ABS(H10)) -> -0.5
A11: B-04G | B11: =IF(ISNA(VLOOKUP($A11,ClassAll,COLUMN(Classes!$B$4),0)),"No class!",VLOOKUP($A11,ClassAll,COLUMN(Classes!$B$4),0)) -> Investments | C11: =IF(ISNA(MATCH(C$4,TBMonths,0))=TRUE,0,SUMIF(TBAll,$A11&"*",OFFSET(TB!$D$4,1,MATCH(C$4,TBMonths,0),TBRowCount,1))) -> 2302500 | D11: =IF(ISNA(MATCH(D$4,TBMonths,0))=TRUE,0,SUMIF(TBAll,$A11&"*",OFFSET(TB!$D$4,1,MATCH(D$4,TBMonths,0),TBRowCount,1))) -> 1782500 | E11: 520000 | F11: 0.2917251052 | H11: =IF(ISNA(MATCH(H$4,TBMonths,0))=TRUE,0,SUMIF(TBAll,$A11&"*",OFFSET(TB!$D$4,1,MATCH(H$4,TBMonths,0),TBRowCount,1))) -> 300000 | I11: 1482500 | J11: 4.941666667
B12: Total non-current assets | C12: =SUM(C7:C11) -> 6180097 | D12: =SUM(D7:D11) -> 6005677 | E12: =SUM(E7:E11) -> 174420 | F12: 0.02904252093 | H12: =SUM(H7:H11) -> 4912777 | I12: =SUM(I7:I11) -> 1092900 | J12: 0.2224607386
B13: Current assets
A14: B-10G | B14: =IF(ISNA(VLOOKUP($A14,ClassAll,COLUMN(Classes!$B$4),0)),"No class!",VLOOKUP($A14,ClassAll,COLUMN(Classes!$B$4),0)) -> Inventory | C14: =IF(ISNA(MATCH(C$4,TBMonths,0))=TRUE,0,SUMIF(TBAll,$A14&"*",OFFSET(TB!$D$4,1,MATCH(C$4,TBMonths,0),TBRowCount,1))) -> 352913 | D14: =IF(ISNA(MATCH(D$4,TBMonths,0))=TRUE,0,SUMIF(TBAll,$A14&"*",OFFSET(TB!$D$4,1,MATCH(D$4,TBMonths,0),TBRowCount,1))) -> 313745 | E14: =C14-D14 -> 39168 | F14: =IF(D14=0,IF(E14=0,0,-1),E14/ABS(D14)) -> 0.1248402365 | H14: =IF(ISNA(MATCH(H$4,TBMonths,0))=TRUE,0,SUMIF(TBAll,$A14&"*",OFFSET(TB!$D$4,1,MATCH(H$4,TBMonths,0),TBRowCount,1))) -> 248196 | I14: =D14-H14 -> 65549 | J14: =IF(H14=0,IF(I14=0,0,-1),I14/ABS(H14)) -> 0.2641017583
A15: B-08G | B15: =IF(ISNA(VLOOKUP($A15,ClassAll,COLUMN(Classes!$B$4),0)),"No class!",VLOOKUP($A15,ClassAll,COLUMN(Classes!$B$4),0)) -> Trade debtors | C15: =IF(ISNA(MATCH(C$4,TBMonths,0))=TRUE,0,SUMIF(TBAll,$A15&"*",OFFSET(TB!$D$4,1,MATCH(C$4,TBMonths,0),TBRowCount,1))) -> 568079 | D15: =IF(ISNA(MATCH(D$4,TBMonths,0))=TRUE,0,SUMIF(TBAll,$A15&"*",OFFSET(TB!$D$4,1,MATCH(D$4,TBMonths,0),TBRowCount,1))) -> 495942 | E15: 72137 | F15: 0.1454545088 | H15: =IF(ISNA(MATCH(H$4,TBMonths,0))=TRUE,0,SUMIF(TBAll,$A15&"*",OFFSET(TB!$D$4,1,MATCH(H$4,TBMonths,0),TBRowCount,1))) -> 456039 | I15: 39903 | J15: 0.08749909547
A16: B-05G | B16: =IF(ISNA(VLOOKUP($A16,ClassAll,COLUMN(Classes!$B$4),0)),"No class!",VLOOKUP($A16,ClassAll,COLUMN(Classes!$B$4),0)) -> Loans & advances | C16: =IF(ISNA(MATCH(C$4,TBMonths,0))=TRUE,0,SUMIF(TBAll,$A16&"*",OFFSET(TB!$D$4,1,MATCH(C$4,TBMonths,0),TBRowCount,1))) -> 60000 | D16: =IF(ISNA(MATCH(D$4,TBMonths,0))=TRUE,0,SUMIF(TBAll,$A16&"*",OFFSET(TB!$D$4,1,MATCH(D$4,TBMonths,0),TBRowCount,1))) -> 48200 | E16: 11800 | F16: 0.244813278 | H16: =IF(ISNA(MATCH(H$4,TBMonths,0))=TRUE,0,SUMIF(TBAll,$A16&"*",OFFSET(TB!$D$4,1,MATCH(H$4,TBMonths,0),TBRowCount,1))) -> 30220 | I16: 17980 | J16: 0.5949702184
A17: B-09G | B17: =IF(ISNA(VLOOKUP($A17,ClassAll,COLUMN(Classes!$B$4),0)),"No class!",VLOOKUP($A17,ClassAll,COLUMN(Classes!$B$4),0)) -> Other debtors | C17: =IF(ISNA(MATCH(C$4,TBMonths,0))=TRUE,0,IF(SUMIF(TBAll,$A17&"*",OFFSET(TB!$D$4,1,MATCH(C$4,TBMonths,0),TBRowCount,1))>0,SUMIF(TBAll,$A17&"*",OFFSET(TB!$D$4,1,MATCH(C$4,TBMonths,0),TBRowCount,1)),0)) -> 24000 | D17: =IF(ISNA(MATCH(D$4,TBMonths,0))=TRUE,0,IF(SUMIF(TBAll,$A17&"*",OFFSET(TB!$D$4,1,MATCH(D$4,TBMonths,0),TBRowCount,1))>0,SUMIF(TBAll,$A17&"*",OFFSET(TB!$D$4,1,MATCH(D$4,TBMonths,0),TBRowCount,1)),0)) -> 44500 | E17: -20500 | F17: -0.4606741573 | H17: =IF(ISNA(MATCH(H$4,TBMonths,0))=TRUE,0,IF(SUMIF(TBAll,$A17&"*",OFFSET(TB!$D$4,1,MATCH(H$4,TBMonths,0),TBRowCount,1))>0,SUMIF(TBAll,$A17&"*",OFFSET(TB!$D$4,1,MATCH(H$4,TBMonths,0),TBRowCount,1)),0)) -> 22600 | I17: 21900 | J17: 0.9690265487
A18: B-06G | B18: =IF(ISNA(VLOOKUP($A18,ClassAll,COLUMN(Classes!$B$4),0)),"No class!",VLOOKUP($A18,ClassAll,COLUMN(Classes!$B$4),0)) -> Bank accounts | C18: =IF(ISNA(MATCH(C$4,TBMonths,0))=TRUE,0,IF(SUMIF(TBAll,$A18&"*",OFFSET(TB!$D$4,1,MATCH(C$4,TBMonths,0),TBRowCount,1))>0,SUMIF(TBAll,$A18&"*",OFFSET(TB!$D$4,1,MATCH(C$4,TBMonths,0),TBRowCount,1)),0)) -> 326674 | D18: =IF(ISNA(MATCH(D$4,TBMonths,0))=TRUE,0,IF(SUMIF(TBAll,$A18&"*",OFFSET(TB!$D$4,1,MATCH(D$4,TBMonths,0),TBRowCount,1))>0,SUMIF(TBAll,$A18&"*",OFFSET(TB!$D$4,1,MATCH(D$4,TBMonths,0),TBRowCount,1)),0)) -> 393980 | E18: =C18-D18 -> -67306 | F18: =IF(D18=0,IF(E18=0,0,-1),E18/ABS(D18)) -> -0.170836083 | H18: =IF(ISNA(MATCH(H$4,TBMonths,0))=TRUE,0,IF(SUMIF(TBAll,$A18&"*",OFFSET(TB!$D$4,1,MATCH(H$4,TBMonths,0),TBRowCount,1))>0,SUMIF(TBAll,$A18&"*",OFFSET(TB!$D$4,1,MATCH(H$4,TBMonths,0),TBRowCount,1)),0)) -> 187624 | I18: =D18-H18 -> 206356 | J18: =IF(H18=0,IF(I18=0,0,-1),I18/ABS(H18)) -> 1.099837974
A19: B-07G | B19: =IF(ISNA(VLOOKUP($A19,ClassAll,COLUMN(Classes!$B$4),0)),"No class!",VLOOKUP($A19,ClassAll,COLUMN(Classes!$B$4),0)) -> Cash on hand | C19: =IF(ISNA(MATCH(C$4,TBMonths,0))=TRUE,0,SUMIF(TBAll,$A19&"*",OFFSET(TB!$D$4,1,MATCH(C$4,TBMonths,0),TBRowCount,1))) -> 1000 | D19: =IF(ISNA(MATCH(D$4,TBMonths,0))=TRUE,0,SUMIF(TBAll,$A19&"*",OFFSET(TB!$D$4,1,MATCH(D$4,TBMonths,0),TBRowCount,1))) -> 990 | E19: 10 | F19: 0.0101010101 | H19: =IF(ISNA(MATCH(H$4,TBMonths,0))=TRUE,0,SUMIF(TBAll,$A19&"*",OFFSET(TB!$D$4,1,MATCH(H$4,TBMonths,0),TBRowCount,1))) -> 1000 | I19: -10 | J19: -0.01
B20: Total current assets | C20: =SUM(C14:C19) -> 1332666 | D20: =SUM(D14:D19) -> 1297357 | E20: =SUM(E14:E19) -> 35309 | F20: 0.02721610166 | H20: =SUM(H14:H19) -> 945679 | I20: =SUM(I14:I19) -> 351678 | J20: 0.3718788299
B21: Total assets | C21: =SUM(C12,C20) -> 7512763 | D21: =SUM(D12,D20) -> 7303034 | E21: =SUM(E12,E20) -> 209729 | F21: =IF(D21=0,IF(E21=0,0,-1),E21/ABS(D21)) -> 0.0287180643 | H21: =SUM(H12,H20) -> 5858456 | I21: =SUM(I12,I20) -> 1444578 | J21: =IF(H21=0,IF(I21=0,0,-1),I21/ABS(H21)) -> 0.2465799863
B22: EQUITY & LIABILITIES
B23: Equity
A24: B-20G | B24: =IF(ISNA(VLOOKUP($A24,ClassAll,COLUMN(Classes!$B$4),0)),"No class!",VLOOKUP($A24,ClassAll,COLUMN(Classes!$B$4),0)) -> Shareholders' contributions | C24: =-IF(ISNA(MATCH(C$4,TBMonths,0))=TRUE,0,SUMIF(TBAll,$A24&"*",OFFSET(TB!$D$4,1,MATCH(C$4,TBMonths,0),TBRowCount,1))) -> 1000 | D24: =-IF(ISNA(MATCH(D$4,TBMonths,0))=TRUE,0,SUMIF(TBAll,$A24&"*",OFFSET(TB!$D$4,1,MATCH(D$4,TBMonths,0),TBRowCount,1))) -> 1000 | E24: =C24-D24 -> 0 | F24: =IF(D24=0,IF(E24=0,0,-1),E24/ABS(D24)) -> 0 | H24: =-IF(ISNA(MATCH(H$4,TBMonths,0))=TRUE,0,SUMIF(TBAll,$A24&"*",OFFSET(TB!$D$4,1,MATCH(H$4,TBMonths,0),TBRowCount,1))) -> 1000 | I24: =D24-H24 -> 0 | J24: =IF(H24=0,IF(I24=0,0,-1),I24/ABS(H24)) -> 0
A25: B-19G | B25: =IF(ISNA(VLOOKUP($A25,ClassAll,COLUMN(Classes!$B$4),0)),"No class!",VLOOKUP($A25,ClassAll,COLUMN(Classes!$B$4),0)) -> Reserves | C25: =-IF(ISNA(MATCH(C$4,TBMonths,0))=TRUE,0,SUMIF(TBAll,$A25&"*",OFFSET(TB!$D$4,1,MATCH(C$4,TBMonths,0),TBRowCount,1))) -> 0 | D25: =-IF(ISNA(MATCH(D$4,TBMonths,0))=TRUE,0,SUMIF(TBAll,$A25&"*",OFFSET(TB!$D$4,1,MATCH(D$4,TBMonths,0),TBRowCount,1))) -> 0 | E25: =C25-D25 -> 0 | F25: =IF(D25=0,IF(E25=0,0,-1),E25/ABS(D25)) -> 0 | H25: =-IF(ISNA(MATCH(H$4,TBMonths,0))=TRUE,0,SUMIF(TBAll,$A25&"*",OFFSET(TB!$D$4,1,MATCH(H$4,TBMonths,0),TBRowCount,1))) -> 0 | I25: =D25-H25 -> 0 | J25: =IF(H25=0,IF(I25=0,0,-1),I25/ABS(H25)) -> 0
A26: B-21G | B26: =IF(ISNA(VLOOKUP($A26,ClassAll,COLUMN(Classes!$B$4),0)),"No class!",VLOOKUP($A26,ClassAll,COLUMN(Classes!$B$4),0)) -> Retained earnings | C26: =IS!C41 -> 5223874 | D26: =IS!D41 -> 4339805 | E26: 884069 | F26: 0.2037116875 | H26: =IS!H41 -> 3335138 | I26: 1004667 | J26: 0.3012370103
B27: Total equity | C27: =SUM(C24:C26) -> 5224874 | D27: =SUM(D24:D26) -> 4340805 | E27: =SUM(E24:E26) -> 884069 | F27: 0.203664758 | H27: =SUM(H24:H26) -> 3336138 | I27: =SUM(I24:I26) -> 1004667 | J27: 0.3011467152
B28: Non-current liabilities
A29: B-18G | B29: =IF(ISNA(VLOOKUP($A29,ClassAll,COLUMN(Classes!$B$4),0)),"No class!",VLOOKUP($A29,ClassAll,COLUMN(Classes!$B$4),0)) -> Long term loans | C29: =-IF(ISNA(MATCH(C$4,TBMonths,0))=TRUE,0,SUMIF(TBAll,$A29&"*",OFFSET(TB!$D$4,1,MATCH(C$4,TBMonths,0),TBRowCount,1))) -> 1265992 | D29: =-IF(ISNA(MATCH(D$4,TBMonths,0))=TRUE,0,SUMIF(TBAll,$A29&"*",OFFSET(TB!$D$4,1,MATCH(D$4,TBMonths,0),TBRowCount,1))) -> 1967685 | E29: =C29-D29 -> -701693 | F29: =IF(D29=0,IF(E29=0,0,-1),E29/ABS(D29)) -> -0.3566084002 | H29: =-IF(ISNA(MATCH(H$4,TBMonths,0))=TRUE,0,SUMIF(TBAll,$A29&"*",OFFSET(TB!$D$4,1,MATCH(H$4,TBMonths,0),TBRowCount,1))) -> 1646180 | I29: =D29-H29 -> 321505 | J29: =IF(H29=0,IF(I29=0,0,-1),I29/ABS(H29)) -> 0.1953036727
A30: B-23G | B30: =IF(ISNA(VLOOKUP($A30,ClassAll,COLUMN(Classes!$B$4),0)),"No class!",VLOOKUP($A30,ClassAll,COLUMN(Classes!$B$4),0)) -> Finance leases | C30: =-IF(ISNA(MATCH(C$4,TBMonths,0))=TRUE,0,SUMIF(TBAll,$A30&"*",OFFSET(TB!$D$4,1,MATCH(C$4,TBMonths,0),TBRowCount,1))) -> 85325 | D30: =-IF(ISNA(MATCH(D$4,TBMonths,0))=TRUE,0,SUMIF(TBAll,$A30&"*",OFFSET(TB!$D$4,1,MATCH(D$4,TBMonths,0),TBRowCount,1))) -> 146420 | E30: -61095 | F30: -0.4172585712 | H30: =-IF(ISNA(MATCH(H$4,TBMonths,0))=TRUE,0,SUMIF(TBAll,$A30&"*",OFFSET(TB!$D$4,1,MATCH(H$4,TBMonths,0),TBRowCount,1))) -> 209394 | I30: -62974 | J30: -0.3007440519
A31: B-22G | B31: =IF(ISNA(VLOOKUP($A31,ClassAll,COLUMN(Classes!$B$4),0)),"No class!",VLOOKUP($A31,ClassAll,COLUMN(Classes!$B$4),0)) -> Deferred tax | C31: =-IF(ISNA(MATCH(C$4,TBMonths,0))=TRUE,0,SUMIF(TBAll,$A31&"*",OFFSET(TB!$D$4,1,MATCH(C$4,TBMonths,0),TBRowCount,1))) -> -33790 | D31: =-IF(ISNA(MATCH(D$4,TBMonths,0))=TRUE,0,SUMIF(TBAll,$A31&"*",OFFSET(TB!$D$4,1,MATCH(D$4,TBMonths,0),TBRowCount,1))) -> 17377 | E31: -51167 | F31: -2.944524371 | H31: =-IF(ISNA(MATCH(H$4,TBMonths,0))=TRUE,0,SUMIF(TBAll,$A31&"*",OFFSET(TB!$D$4,1,MATCH(H$4,TBMonths,0),TBRowCount,1))) -> -47278 | I31: 64655 | J31: 1.367549389
B32: Total non-current liabilities | C32: =SUM(C29:C31) -> 1317527 | D32: =SUM(D29:D31) -> 2131482 | E32: =SUM(E29:E31) -> -813955 | F32: -0.3818728002 | H32: =SUM(H29:H31) -> 1808296 | I32: =SUM(I29:I31) -> 323186 | J32: 0.1787240585
B33: Current liabilities
A34: B-11G | B34: =IF(ISNA(VLOOKUP($A34,ClassAll,COLUMN(Classes!$B$4),0)),"No class!",VLOOKUP($A34,ClassAll,COLUMN(Classes!$B$4),0)) -> Bank overdraft | C34: =-IF(ISNA(MATCH(C$4,TBMonths,0))=TRUE,0,IF(SUMIF(TBAll,$A34&"*",OFFSET(TB!$D$4,1,MATCH(C$4,TBMonths,0),TBRowCount,1))<=0,SUMIF(TBAll,$A34&"*",OFFSET(TB!$D$4,1,MATCH(C$4,TBMonths,0),TBRowCount,1)),0)) -> 0 | D34: =-IF(ISNA(MATCH(D$4,TBMonths,0))=TRUE,0,IF(SUMIF(TBAll,$A34&"*",OFFSET(TB!$D$4,1,MATCH(D$4,TBMonths,0),TBRowCount,1))<=0,SUMIF(TBAll,$A34&"*",OFFSET(TB!$D$4,1,MATCH(D$4,TBMonths,0),TBRowCount,1)),0)) -> 0 | E34: =C34-D34 -> 0 | F34: =IF(D34=0,IF(E34=0,0,-1),E34/ABS(D34)) -> 0 | H34: =-IF(ISNA(MATCH(H$4,TBMonths,0))=TRUE,0,IF(SUMIF(TBAll,$A34&"*",OFFSET(TB!$D$4,1,MATCH(H$4,TBMonths,0),TBRowCount,1))<=0,SUMIF(TBAll,$A34&"*",OFFSET(TB!$D$4,1,MATCH(H$4,TBMonths,0),TBRowCount,1)),0)) -> 0 | I34: =D34-H34 -> 0 | J34: =IF(H34=0,IF(I34=0,0,-1),I34/ABS(H34)) -> 0
A35: B-12G | B35: =IF(ISNA(VLOOKUP($A35,ClassAll,COLUMN(Classes!$B$4),0)),"No class!",VLOOKUP($A35,ClassAll,COLUMN(Classes!$B$4),0)) -> Trade creditors | C35: =-IF(ISNA(MATCH(C$4,TBMonths,0))=TRUE,0,SUMIF(TBAll,$A35&"*",OFFSET(TB!$D$4,1,MATCH(C$4,TBMonths,0),TBRowCount,1))) -> 186802 | D35: =-IF(ISNA(MATCH(D$4,TBMonths,0))=TRUE,0,SUMIF(TBAll,$A35&"*",OFFSET(TB!$D$4,1,MATCH(D$4,TBMonths,0),TBRowCount,1))) -> 219900 | E35: -33098 | F35: -0.1505138699 | H35: =-IF(ISNA(MATCH(H$4,TBMonths,0))=TRUE,0,SUMIF(TBAll,$A35&"*",OFFSET(TB!$D$4,1,MATCH(H$4,TBMonths,0),TBRowCount,1))) -> 166325 | I35: 53575 | J35: 0.3221103262
A36: B-13G | B36: =IF(ISNA(VLOOKUP($A36,ClassAll,COLUMN(Classes!$B$4),0)),"No class!",VLOOKUP($A36,ClassAll,COLUMN(Classes!$B$4),0)) -> Accruals | C36: =-IF(ISNA(MATCH(C$4,TBMonths,0))=TRUE,0,SUMIF(TBAll,$A36&"*",OFFSET(TB!$D$4,1,MATCH(C$4,TBMonths,0),TBRowCount,1))) -> 110937 | D36: =-IF(ISNA(MATCH(D$4,TBMonths,0))=TRUE,0,SUMIF(TBAll,$A36&"*",OFFSET(TB!$D$4,1,MATCH(D$4,TBMonths,0),TBRowCount,1))) -> 86520 | E36: 24417 | F36: 0.2822122053 | H36: =-IF(ISNA(MATCH(H$4,TBMonths,0))=TRUE,0,SUMIF(TBAll,$A36&"*",OFFSET(TB!$D$4,1,MATCH(H$4,TBMonths,0),TBRowCount,1))) -> 71708 | I36: 14812 | J36: 0.2065599375
A37: B-17G | B37: =IF(ISNA(VLOOKUP($A37,ClassAll,COLUMN(Classes!$B$4),0)),"No class!",VLOOKUP($A37,ClassAll,COLUMN(Classes!$B$4),0)) -> Sales tax | C37: =-IF(ISNA(MATCH(C$4,TBMonths,0))=TRUE,0,SUMIF(TBAll,$A37&"*",OFFSET(TB!$D$4,1,MATCH(C$4,TBMonths,0),TBRowCount,1))) -> 75891 | D37: =-IF(ISNA(MATCH(D$4,TBMonths,0))=TRUE,0,SUMIF(TBAll,$A37&"*",OFFSET(TB!$D$4,1,MATCH(D$4,TBMonths,0),TBRowCount,1))) -> 59835 | E37: 16056 | F37: 0.2683379293 | H37: =-IF(ISNA(MATCH(H$4,TBMonths,0))=TRUE,0,SUMIF(TBAll,$A37&"*",OFFSET(TB!$D$4,1,MATCH(H$4,TBMonths,0),TBRowCount,1))) -> 55891 | I37: 3944 | J37: 0.07056592296
A38: B-16G | B38: =IF(ISNA(VLOOKUP($A38,ClassAll,COLUMN(Classes!$B$4),0)),"No class!",VLOOKUP($A38,ClassAll,COLUMN(Classes!$B$4),0)) -> Other provisions | C38: =-IF(ISNA(MATCH(C$4,TBMonths,0))=TRUE,0,SUMIF(TBAll,$A38&"*",OFFSET(TB!$D$4,1,MATCH(C$4,TBMonths,0),TBRowCount,1))) -> 214823 | D38: =-IF(ISNA(MATCH(D$4,TBMonths,0))=TRUE,0,SUMIF(TBAll,$A38&"*",OFFSET(TB!$D$4,1,MATCH(D$4,TBMonths,0),TBRowCount,1))) -> 214870 | E38: =C38-D38 -> -47 | F38: =IF(D38=0,IF(E38=0,0,-1),E38/ABS(D38)) -> -0.0002187369107 | H38: =-IF(ISNA(MATCH(H$4,TBMonths,0))=TRUE,0,SUMIF(TBAll,$A38&"*",OFFSET(TB!$D$4,1,MATCH(H$4,TBMonths,0),TBRowCount,1))) -> 211637 | I38: =D38-H38 -> 3233 | J38: =IF(H38=0,IF(I38=0,0,-1),I38/ABS(H38)) -> 0.01527615682
A39: B-14G | B39: =IF(ISNA(VLOOKUP($A39,ClassAll,COLUMN(Classes!$B$4),0)),"No class!",VLOOKUP($A39,ClassAll,COLUMN(Classes!$B$4),0)) -> Dividends payable | C39: =-IF(ISNA(MATCH(C$4,TBMonths,0))=TRUE,0,SUMIF(TBAll,$A39&"*",OFFSET(TB!$D$4,1,MATCH(C$4,TBMonths,0),TBRowCount,1))) -> 150000 | D39: =-IF(ISNA(MATCH(D$4,TBMonths,0))=TRUE,0,SUMIF(TBAll,$A39&"*",OFFSET(TB!$D$4,1,MATCH(D$4,TBMonths,0),TBRowCount,1))) -> 100000 | E39: 50000 | F39: 0.5 | H39: =-IF(ISNA(MATCH(H$4,TBMonths,0))=TRUE,0,SUMIF(TBAll,$A39&"*",OFFSET(TB!$D$4,1,MATCH(H$4,TBMonths,0),TBRowCount,1))) -> 75000 | I39: 25000 | J39: 0.3333333333
A40: B-15G | B40: =IF(ISNA(VLOOKUP($A40,ClassAll,COLUMN(Classes!$B$4),0)),"No class!",VLOOKUP($A40,ClassAll,COLUMN(Classes!$B$4),0)) -> Provision for taxation | C40: =-IF(ISNA(MATCH(C$4,TBMonths,0))=TRUE,0,SUMIF(TBAll,$A40&"*",OFFSET(TB!$D$4,1,MATCH(C$4,TBMonths,0),TBRowCount,1))) -> 215724 | D40: =-IF(ISNA(MATCH(D$4,TBMonths,0))=TRUE,0,SUMIF(TBAll,$A40&"*",OFFSET(TB!$D$4,1,MATCH(D$4,TBMonths,0),TBRowCount,1))) -> 131926 | E40: 83798 | F40: 0.6351894244 | H40: =-IF(ISNA(MATCH(H$4,TBMonths,0))=TRUE,0,SUMIF(TBAll,$A40&"*",OFFSET(TB!$D$4,1,MATCH(H$4,TBMonths,0),TBRowCount,1))) -> 118400 | I40: 13526 | J40: 0.1142398649
A41: B-1301G | B41: =IF(ISNA(VLOOKUP($A41,ClassAll,COLUMN(Classes!$B$4),0)),"No class!",VLOOKUP($A41,ClassAll,COLUMN(Classes!$B$4),0)) -> Interest payable | C41: =-IF(ISNA(MATCH(C$4,TBMonths,0))=TRUE,0,SUMIF(TBAll,$A41&"*",OFFSET(TB!$D$4,1,MATCH(C$4,TBMonths,0),TBRowCount,1))) -> 16185 | D41: =-IF(ISNA(MATCH(D$4,TBMonths,0))=TRUE,0,SUMIF(TBAll,$A41&"*",OFFSET(TB!$D$4,1,MATCH(D$4,TBMonths,0),TBRowCount,1))) -> 17696 | E41: -1511 | F41: -0.08538652803 | H41: =-IF(ISNA(MATCH(H$4,TBMonths,0))=TRUE,0,SUMIF(TBAll,$A41&"*",OFFSET(TB!$D$4,1,MATCH(H$4,TBMonths,0),TBRowCount,1))) -> 15061 | I41: 2635 | J41: 0.1749551823
B42: Total current liabilities | C42: =SUM(C34:C41) -> 970362 | D42: =SUM(D34:D41) -> 830747 | E42: =SUM(E34:E41) -> 139615 | F42: 0.1680595897 | H42: =SUM(H34:H41) -> 714022 | I42: =SUM(I34:I41) -> 116725 | J42: 0.1634753551
B43: Total liabilities | C43: =SUM(C32,C42) -> 2287889 | D43: =SUM(D32,D42) -> 2962229 | E43: =SUM(E32,E42) -> -674340 | F43: =IF(D43=0,IF(E43=0,0,-1),E43/ABS(D43)) -> -0.2276461408 | H43: =SUM(H32,H42) -> 2522318 | I43: =SUM(I32,I42) -> 439911 | J43: =IF(H43=0,IF(I43=0,0,-1),I43/ABS(H43)) -> 0.17440743
B44: Total equity & liabilities | C44: =SUM(C27,C43) -> 7512763 | D44: =SUM(D27,D43) -> 7303034 | E44: =SUM(E27,E43) -> 209729 | F44: =IF(D44=0,IF(E44=0,0,-1),E44/ABS(D44)) -> 0.0287180643 | H44: =SUM(H27,H43) -> 5858456 | I44: =SUM(I27,I43) -> 1444578 | J44: =IF(H44=0,IF(I44=0,0,-1),I44/ABS(H44)) -> 0.2465799863
B46: Current Ratio | C46: =IF(C42=0,0,C20/C42) -> 1.373369938 | D46: =IF(D42=0,0,D20/D42) -> 1.561675215 | E46: =C46-D46 -> -0.188305277 | F46: =IF(D46=0,IF(E46=0,0,-1),E46/ABS(D46)) -> -0.1205790264 | H46: =IF(H42=0,0,H20/H42) -> 1.324439583 | I46: =D46-H46 -> 0.2372356321 | J46: =IF(H46=0,IF(I46=0,0,-1),I46/ABS(H46)) -> 0.1791215206
B47: Quick Ratio | C47: =IF(C42=0,0,(C20-C14)/C42) -> 1.009677832 | D47: =IF(D42=0,0,(D20-D14)/D42) -> 1.184009091 | E47: -0.174331259 | F47: -0.1472381086 | H47: =IF(H42=0,0,(H20-H14)/H42) -> 0.9768368482 | I47: 0.2071722424 | J47: 0.2120847948
B48: Inventory Days | C48: =IF(IS!C6=0,0,C14/IS!C6*365) -> 44.70237457 | D48: =IF(IS!D6=0,0,D14/IS!D6*365) -> 40.85128086 | E48: 3.851093705 | F48: 0.09427106382 | H48: =IF(IS!H6=0,0,H14/IS!H6*365) -> 34.89834811 | I48: 5.952932758 | J48: 0.1705792131
B49: Debtors Days | C49: =IF(IS!C5=0,0,C15/IS!C5*365) -> 30.00002098 | D49: =IF(IS!D5=0,0,D15/IS!D5*365) -> 28.99996107 | E49: 1.000059909 | F49: 0.03448487073 | H49: =IF(IS!H5=0,0,H15/IS!H5*365) -> 31.99999289 | I49: -3.000031817 | J49: -0.09375101511
B50: Creditors Days | C50: =IF(SUM(IS!C6,IS!C10)=0,0,SUM(C35:C36)/SUM(IS!C6,IS!C10)*365) -> 20.46980651 | D50: =IF(SUM(IS!D6,IS!D10)=0,0,SUM(D35:D36)/SUM(IS!D6,IS!D10)*365) -> 23.79809242 | E50: -3.328285907 | F50: -0.1398551551 | H50: =IF(SUM(IS!H6,IS!H10)=0,0,SUM(H35:H36)/SUM(IS!H6,IS!H10)*365) -> 20.68934893 | I50: 3.108743494 | J50: 0.1502581597
B51: Debt / Equity | C51: =IF(C27=0,0,C43/C27) -> 0.4378840523 | D51: =IF(D27=0,0,D43/D27) -> 0.6824146673 | E51: -0.244530615 | F51: -0.3583314174 | H51: =IF(H27=0,0,H43/H27) -> 0.7560592517 | I51: -0.07364458442 | J51: -0.09740583724
C52: =IF(ROUND(C21-C44,0)=0,"",ROUND(C21-C44,0)) ->  | D52: =IF(ROUND(D21-D44,0)=0,"",ROUND(D21-D44,0)) ->  | H52: =IF(ROUND(H21-H44,0)=0,"",ROUND(H21-H44,0)) -> 
B53: balance sheet status | C53: =IF(ROUND(C21-C44,0)=0,"ok","error!") -> ok | D53: =IF(ROUND(D21-D44,0)=0,"ok","error!") -> ok | H53: =IF(ROUND(H21-H44,0)=0,"ok","error!") -> ok

Sheet DB (hidden)
B2: FINANCIAL DASHBOARD | C2: =$A$55 -> Example (Pty) Limited | G2: Income Statement Trends
C4: =$A$56 -> AS AT 28 FEBRUARY 2023 | I4: =C59 -> 2023 | K4: =D59 -> 2022
G5: =DB!A73 -> Turnover | H5: =IF(I5>0,$C$58,IF(I5<0,$E$58,$D$58)) ->  | I5: =IF(D73=0,IF(C73-D73=0,0,-1),(C73-D73)/ABS(D73)) -> 0.1072704311 | J5: =IF(K5>0,$C$58,IF(K5<0,$E$58,$D$58)) ->  | K5: =IF(E73=0,IF(D73-E73=0,0,-1),(D73-E73)/ABS(E73)) -> 0.200000346
G6: =DB!A74 -> Gross profit | H6:  | I6: =IF(D74=0,IF(C74-D74=0,0,-1),(C74-D74)/ABS(D74)) -> 0.1719435973 | J6:  | K6: =IF(E74=0,IF(D74-E74=0,0,-1),(D74-E74)/ABS(E74)) -> 0.319647467
G7: =DB!A75 -> Operating expenses | H7:  | I7: 0.2800236868 | J7:  | K7: 0.1826756853
G8: =DB!A76 -> Interest paid | H8:  | I8: -0.08538572384 | J8:  | K8: 0.1749012404
G9: =DB!A77 -> Taxation paid | H9:  | I9: 0.6760696297 | J9:  | K9: 0.1142393824
G10: =DB!A78 -> Profit / (Loss) for the period | H10:  | I10: -0.06390885217 | J10:  | K10: 0.8141473893
G11: =DB!A79 -> Interest Cover | H11:  | I11: 0.1553624977 | J11:  | K11: 0.310851337
G12: =DB!A80 -> Return on Equity (ROE) | H12:  | I12: -0.2222991148 | J12:  | K12: 0.3942681238
B22: Top 5 Expenses By Value | F22: Interactive Expense Chart
C24: =$I$4 -> 2023 | D24: =$K$4 -> 2022 | E24: diff | F24: Select expense:
B25: =OFFSET(B$81,MATCH(ROW(1:1),$G$82:$G$86,0),0,1,1) -> Salaries & wages - management | C25: =OFFSET(C$81,MATCH(ROW(1:1),$G$82:$G$86,0),0,1,1) -> 785720 | D25: =OFFSET(D$81,MATCH(ROW(1:1),$G$82:$G$86,0),0,1,1) -> 434640 | E25: =OFFSET(E$81,MATCH(ROW(1:1),$G$82:$G$86,0),0,1,1) -> -351080
B26: =OFFSET(B$81,MATCH(ROW(2:2),$G$82:$G$86,0),0,1,1) -> Salaries & wages - staff | C26: =OFFSET(C$81,MATCH(ROW(2:2),$G$82:$G$86,0),0,1,1) -> 548600 | D26: =OFFSET(D$81,MATCH(ROW(2:2),$G$82:$G$86,0),0,1,1) -> 435500 | E26: =OFFSET(E$81,MATCH(ROW(2:2),$G$82:$G$86,0),0,1,1) -> -113100
B27: =OFFSET(B$81,MATCH(ROW(3:3),$G$82:$G$86,0),0,1,1) -> Depreciation | C27: =OFFSET(C$81,MATCH(ROW(3:3),$G$82:$G$86,0),0,1,1) -> 546530 | D27: =OFFSET(D$81,MATCH(ROW(3:3),$G$82:$G$86,0),0,1,1) -> 450300 | E27: =OFFSET(E$81,MATCH(ROW(3:3),$G$82:$G$86,0),0,1,1) -> -96230
B28: =OFFSET(B$81,MATCH(ROW(4:4),$G$82:$G$86,0),0,1,1) -> Office rent | C28: =OFFSET(C$81,MATCH(ROW(4:4),$G$82:$G$86,0),0,1,1) -> 144000 | D28: =OFFSET(D$81,MATCH(ROW(4:4),$G$82:$G$86,0),0,1,1) -> 120000 | E28: =OFFSET(E$81,MATCH(ROW(4:4),$G$82:$G$86,0),0,1,1) -> -24000
B29: =OFFSET(B$81,MATCH(ROW(5:5),$G$82:$G$86,0),0,1,1) -> Advertising & marketing | C29: =OFFSET(C$81,MATCH(ROW(5:5),$G$82:$G$86,0),0,1,1) -> 143644 | D29: =OFFSET(D$81,MATCH(ROW(5:5),$G$82:$G$86,0),0,1,1) -> 170000 | E29: =OFFSET(E$81,MATCH(ROW(5:5),$G$82:$G$86,0),0,1,1) -> 26356
E31: =$I$4&" Cash Balance" -> 2023 Cash Balance | G31: Cash & cash equivalents summary
I33: =$I$4 -> 2023 | K33: =$K$4 -> 2022
E34: =$C$90 -> 326674 | G34: Cash from operating activities | I34: =C92 -> 1620482 | K34: =D92 -> 1670075
G35: Cash used in investing activities | I35: =C93 -> -825000 | K35: =D93 -> -1647250
G36: Cash from financing activities | I36: -862788 | K36: 183531
G37: Cash movement | I37: =C95 -> -67306 | K37: =D95 -> 206356
B39: Balance sheet summary
C41: =$I$4 -> 2023 | D41: =$K$4 -> 2022
B42: =A97 -> Total non-current assets | C42: =C97 -> 6180097 | D42: =D97 -> 6005677
B43: =A98 -> Total current assets | C43: =C98 -> 1332666 | D43: 1297357
B44: =A99 -> Total assets | C44: =C99 -> 7512763 | D44: 7303034
C45: =$I$4 -> 2023 | D45: =$K$4 -> 2022
B46: =A100 -> Total equity | C46: =C100 -> 5224874 | D46: 4340805
B47: Total non-current liabilities | C47: =C101 -> 1317527 | D47: 2131482 | E47: =B43 -> Total current assets | G47: =B49 -> Total liabilities | I47: Profit / (Loss) for the period
B48: Total current liabilities | C48: 970362 | D48: 830747 | E48: =C43 -> 1332666 | G48: =C49 -> 2287889 | I48: =IS!C38 -> 1034069
B49: Total liabilities | C49: 2287889 | D49: 2962229 | E49: =B48 -> Total current liabilities | G49: =B46 -> Total equity | I49: Net Assets
B50: Total equity & liabilities | C50: 7512763 | D50: 7303034 | E50: =C48 -> 970362 | G50: =C46 -> 5224874 | I50: =C44-C48 -> 6542401
A54: Dasboard Data (not printed)
A55: =IF(ISBLANK(Setup!$B$4),"Example (Pty) Limited",Setup!$B$4) -> Example (Pty) Limited
A56: ="AS AT "&UPPER(TEXT(Setup!$B$10,"dd mmmm yyyy")) -> AS AT 28 FEBRUARY 2023
A57: Column Index | C57: 1 | D57: 2 | E57: =D57+4 -> 6
A58: Arrows | C58:  | D58:  | E58: 
A59: Year | C59: =OFFSET(IS!$B$1,ROW(IS!$C$4)-1,C$57,1,1) -> 2023 | D59: =OFFSET(IS!$B$1,ROW(IS!$C$4)-1,D$57,1,1) -> 2022 | E59: =OFFSET(IS!$B$1,ROW(IS!$C$4)-1,E$57,1,1) -> 2021
A60: ="Chart 1 : "&A61 -> Chart 1 : Turnover
A61: =IS!B5 -> Turnover | C61: =IF(ISNA(MATCH(DB!$A61,IncRowNo,0)),0,OFFSET(IS!$B$1,MATCH(DB!$A61,IncRowNo,0)-1,C$57,1,1)) -> 6911623 | D61: =IF(ISNA(MATCH(DB!$A61,IncRowNo,0)),0,OFFSET(IS!$B$1,MATCH(DB!$A61,IncRowNo,0)-1,D$57,1,1)) -> 6242037 | E61: =IF(ISNA(MATCH(DB!$A61,IncRowNo,0)),0,OFFSET(IS!$B$1,MATCH(DB!$A61,IncRowNo,0)-1,E$57,1,1)) -> 5201696 | K61: Income Statement formula
A62: ="Chart 2 : "&A63 -> Chart 2 : Profit / (Loss) for the period
A63: =IS!B38 -> Profit / (Loss) for the period | C63: =IF(ISNA(MATCH(DB!$A63,IncRowNo,0)),0,OFFSET(IS!$B$1,MATCH(DB!$A63,IncRowNo,0)-1,C$57,1,1)) -> 1034069 | D63: =IF(ISNA(MATCH(DB!$A63,IncRowNo,0)),0,OFFSET(IS!$B$1,MATCH(DB!$A63,IncRowNo,0)-1,D$57,1,1)) -> 1104667 | E63: =IF(ISNA(MATCH(DB!$A63,IncRowNo,0)),0,OFFSET(IS!$B$1,MATCH(DB!$A63,IncRowNo,0)-1,E$57,1,1)) -> 608918 | K63: Income Statement formula
A64: ="Chart 3 : "&A65 -> Chart 3 : 2023 Gross Profit % | C64: % | D64: Value | E64: Rest | F64: Gap
A65: =$C$59&" "&IF(OR(IS!$C$8=0,ISERROR(IS!$C$8)),"Opex %","Gross Profit %") -> 2023 Gross Profit % | C65: =IF(IS!$C$8=0,IF(OR(IS!$C$5=0,ISERROR(IS!$C$8)),0,IS!$C$10/IS!$C$5),IS!$C$8)*100 -> 58.30827289 | D65: =IF($C64="V1",C65,(100+F65)*(C65/100)) -> 75.80075476 | E65: =(100+F65)-D65 -> 54.19924524 | F65: 30 | K65: Line Item formula (Opex if GP% is nil)
A66: ="Chart 4 : "&A67 -> Chart 4 : 2023 Net Profit % | C66: % | D66: Value | E66: Rest | F66: Gap
A67: =$C$59&" Net Profit %" -> 2023 Net Profit % | C67: =IF(IS!C5=0,0,IS!C38/IS!C5)*100 -> 14.96130504 | D67: =IF($C66="V1",C67,(100+F67)*(C67/100)) -> 19.44969655 | E67: =(100+F67)-D67 -> 110.5503035 | F67: 30 | K67: Line Item formula
A68: ="Chart 5 : "&A69 -> Chart 5 : 2023 Interest Cover | C68: =IF(IS!$C$43=0,"%","V1") -> V1 | D68: Value | E68: Rest | F68: Gap
A69: =$C$59&" "&IF(IS!$C$43=0,"Taxation %","Interest Cover") -> 2023 Interest Cover | C69: =IF(IS!$C$43=0,IF(IS!$C$36=0,0,IS!$C$37/IS!$C$36*100),IS!$C$43) -> 8.601121397 | D69: =IF($C68="V1",(C69/(C69+1))*(100+F69),(100+F69)*(C69/100)) -> 116.459915 | E69: =(100+F69)-D69 -> 13.54008502 | F69: 30 | K69: Line Item formula (Tax% if no interest)
A70: ="Chart 6 : "&A71 -> Chart 6 : 2023 ROE % | C70: % | D70: Value | E70: Rest | F70: Gap
A71: =$C$59&" ROE %" -> 2023 ROE % | C71: =IS!C44*100 -> 19.79127152 | D71: =IF($C70="V1",C71,(100+F71)*(C71/100)) -> 25.72865298 | E71: =(100+F71)-D71 -> 104.271347 | F71: 30 | K71: Line Item formula
A72: Income Statement Trends Section | C72: =C59 -> 2023 | D72: =D59 -> 2022 | E72: 2021
A73: =IS!B5 -> Turnover | C73: =IF(ISNA(MATCH(DB!$A73,IncRowNo,0)),0,OFFSET(IS!$B$1,MATCH(DB!$A73,IncRowNo,0)-1,C$57,1,1)) -> 6911623 | D73: =IF(ISNA(MATCH(DB!$A73,IncRowNo,0)),0,OFFSET(IS!$B$1,MATCH(DB!$A73,IncRowNo,0)-1,D$57,1,1)) -> 6242037 | E73: =IF(ISNA(MATCH(DB!$A73,IncRowNo,0)),0,OFFSET(IS!$B$1,MATCH(DB!$A73,IncRowNo,0)-1,E$57,1,1)) -> 5201696 | K73: Income Statement formula
A74: =IS!B7 -> Gross profit | C74: =IF(ISNA(MATCH(DB!$A74,IncRowNo,0)),0,OFFSET(IS!$B$1,MATCH(DB!$A74,IncRowNo,0)-1,C$57,1,1)) -> 4030048 | D74: =IF(ISNA(MATCH(DB!$A74,IncRowNo,0)),0,OFFSET(IS!$B$1,MATCH(DB!$A74,IncRowNo,0)-1,D$57,1,1)) -> 3438773 | E74: =IF(ISNA(MATCH(DB!$A74,IncRowNo,0)),0,OFFSET(IS!$B$1,MATCH(DB!$A74,IncRowNo,0)-1,E$57,1,1)) -> 2605827 | K74: Income Statement formula
A75: =IS!B10 -> Operating expenses | C75: =IF(ISNA(MATCH(DB!$A75,IncRowNo,0)),0,OFFSET(IS!$B$1,MATCH(DB!$A75,IncRowNo,0)-1,C$57,1,1)) -> 2427451 | D75: =IF(ISNA(MATCH(DB!$A75,IncRowNo,0)),0,OFFSET(IS!$B$1,MATCH(DB!$A75,IncRowNo,0)-1,D$57,1,1)) -> 1896411 | E75: =IF(ISNA(MATCH(DB!$A75,IncRowNo,0)),0,OFFSET(IS!$B$1,MATCH(DB!$A75,IncRowNo,0)-1,E$57,1,1)) -> 1603492 | K75: Income Statement formula
A76: =IS!B35 -> Interest paid | C76: =IF(ISNA(MATCH(DB!$A76,IncRowNo,0)),0,OFFSET(IS!$B$1,MATCH(DB!$A76,IncRowNo,0)-1,C$57,1,1)) -> 194222 | D76: =IF(ISNA(MATCH(DB!$A76,IncRowNo,0)),0,OFFSET(IS!$B$1,MATCH(DB!$A76,IncRowNo,0)-1,D$57,1,1)) -> 212354 | E76: =IF(ISNA(MATCH(DB!$A76,IncRowNo,0)),0,OFFSET(IS!$B$1,MATCH(DB!$A76,IncRowNo,0)-1,E$57,1,1)) -> 180742 | K76: Income Statement formula
A77: =IS!B37 -> Taxation paid | C77: =IF(ISNA(MATCH(DB!$A77,IncRowNo,0)),0,OFFSET(IS!$B$1,MATCH(DB!$A77,IncRowNo,0)-1,C$57,1,1)) -> 442236 | D77: =IF(ISNA(MATCH(DB!$A77,IncRowNo,0)),0,OFFSET(IS!$B$1,MATCH(DB!$A77,IncRowNo,0)-1,D$57,1,1)) -> 263853 | E77: =IF(ISNA(MATCH(DB!$A77,IncRowNo,0)),0,OFFSET(IS!$B$1,MATCH(DB!$A77,IncRowNo,0)-1,E$57,1,1)) -> 236801 | K77: Income Statement formula
A78: =IS!B38 -> Profit / (Loss) for the period | C78: =IF(ISNA(MATCH(DB!$A78,IncRowNo,0)),0,OFFSET(IS!$B$1,MATCH(DB!$A78,IncRowNo,0)-1,C$57,1,1)) -> 1034069 | D78: =IF(ISNA(MATCH(DB!$A78,IncRowNo,0)),0,OFFSET(IS!$B$1,MATCH(DB!$A78,IncRowNo,0)-1,D$57,1,1)) -> 1104667 | E78: =IF(ISNA(MATCH(DB!$A78,IncRowNo,0)),0,OFFSET(IS!$B$1,MATCH(DB!$A78,IncRowNo,0)-1,E$57,1,1)) -> 608918 | K78: Income Statement formula
A79: =IS!B43 -> Interest Cover | C79: =IF(ISNA(MATCH(DB!$A79,IncRowNo,0)),0,OFFSET(IS!$B$1,MATCH(DB!$A79,IncRowNo,0)-1,C$57,1,1)) -> 8.601121397 | D79: =IF(ISNA(MATCH(DB!$A79,IncRowNo,0)),0,OFFSET(IS!$B$1,MATCH(DB!$A79,IncRowNo,0)-1,D$57,1,1)) -> 7.444521883 | E79: =IF(ISNA(MATCH(DB!$A79,IncRowNo,0)),0,OFFSET(IS!$B$1,MATCH(DB!$A79,IncRowNo,0)-1,E$57,1,1)) -> 5.679150391 | K79: Income Statement formula
A80: =IS!B44 -> Return on Equity (ROE) | C80: =IF(ISNA(MATCH(DB!$A80,IncRowNo,0)),0,OFFSET(IS!$B$1,MATCH(DB!$A80,IncRowNo,0)-1,C$57,1,1)) -> 0.1979127152 | D80: =IF(ISNA(MATCH(DB!$A80,IncRowNo,0)),0,OFFSET(IS!$B$1,MATCH(DB!$A80,IncRowNo,0)-1,D$57,1,1)) -> 0.2544843641 | E80: =IF(ISNA(MATCH(DB!$A80,IncRowNo,0)),0,OFFSET(IS!$B$1,MATCH(DB!$A80,IncRowNo,0)-1,E$57,1,1)) -> 0.1825218261 | K80: Income Statement formula
A81: Top 5 Expenses By Value | C81: =$C$59 -> 2023 | D81: =$D$59 -> 2022 | E81: diff | F81: rank | G81: sequence
B82: =INDEX(ExpenseAll,SMALL(IF(ExpenseCY>=LARGE(ExpenseCY,5),ROW(ExpenseCY)-ROW(IS!$B$10)),ROW(1:1)),1) -> Advertising & marketing | C82: =INDEX(ExpenseAll,SMALL(IF(ExpenseCY>=LARGE(ExpenseCY,5),ROW(ExpenseCY)-ROW(IS!$B$10)),ROW(1:1)),2) -> 143644 | D82: =INDEX(ExpenseAll,SMALL(IF(ExpenseCY>=LARGE(ExpenseCY,5),ROW(ExpenseCY)-ROW(IS!$B$10)),ROW(1:1)),3) -> 170000 | E82: =D82-C82 -> 26356 | F82: =RANK(C82,$C$82:$C$86,0) -> 5 | G82: =F82+COUNTIF($F$82:$F82,$F82)-1 -> 5 | K82: Array formula
B83: =INDEX(ExpenseAll,SMALL(IF(ExpenseCY>=LARGE(ExpenseCY,5),ROW(ExpenseCY)-ROW(IS!$B$10)),ROW(2:2)),1) -> Depreciation | C83: =INDEX(ExpenseAll,SMALL(IF(ExpenseCY>=LARGE(ExpenseCY,5),ROW(ExpenseCY)-ROW(IS!$B$10)),ROW(2:2)),2) -> 546530 | D83: =INDEX(ExpenseAll,SMALL(IF(ExpenseCY>=LARGE(ExpenseCY,5),ROW(ExpenseCY)-ROW(IS!$B$10)),ROW(2:2)),3) -> 450300 | E83: =D83-C83 -> -96230 | F83: =RANK(C83,$C$82:$C$86,0) -> 3 | G83: =F83+COUNTIF($F$82:$F83,$F83)-1 -> 3 | K83: Array formula
B84: =INDEX(ExpenseAll,SMALL(IF(ExpenseCY>=LARGE(ExpenseCY,5),ROW(ExpenseCY)-ROW(IS!$B$10)),ROW(3:3)),1) -> Office rent | C84: =INDEX(ExpenseAll,SMALL(IF(ExpenseCY>=LARGE(ExpenseCY,5),ROW(ExpenseCY)-ROW(IS!$B$10)),ROW(3:3)),2) -> 144000 | D84: =INDEX(ExpenseAll,SMALL(IF(ExpenseCY>=LARGE(ExpenseCY,5),ROW(ExpenseCY)-ROW(IS!$B$10)),ROW(3:3)),3) -> 120000 | E84: -24000 | F84: 4 | G84: =F84+COUNTIF($F$82:$F84,$F84)-1 -> 4 | K84: Array formula
B85: =INDEX(ExpenseAll,SMALL(IF(ExpenseCY>=LARGE(ExpenseCY,5),ROW(ExpenseCY)-ROW(IS!$B$10)),ROW(4:4)),1) -> Salaries & wages - staff | C85: =INDEX(ExpenseAll,SMALL(IF(ExpenseCY>=LARGE(ExpenseCY,5),ROW(ExpenseCY)-ROW(IS!$B$10)),ROW(4:4)),2) -> 548600 | D85: =INDEX(ExpenseAll,SMALL(IF(ExpenseCY>=LARGE(ExpenseCY,5),ROW(ExpenseCY)-ROW(IS!$B$10)),ROW(4:4)),3) -> 435500 | E85: -113100 | F85: 2 | G85: =F85+COUNTIF($F$82:$F85,$F85)-1 -> 2 | K85: Array formula
B86: =INDEX(ExpenseAll,SMALL(IF(ExpenseCY>=LARGE(ExpenseCY,5),ROW(ExpenseCY)-ROW(IS!$B$10)),ROW(5:5)),1) -> Salaries & wages - management | C86: =INDEX(ExpenseAll,SMALL(IF(ExpenseCY>=LARGE(ExpenseCY,5),ROW(ExpenseCY)-ROW(IS!$B$10)),ROW(5:5)),2) -> 785720 | D86: =INDEX(ExpenseAll,SMALL(IF(ExpenseCY>=LARGE(ExpenseCY,5),ROW(ExpenseCY)-ROW(IS!$B$10)),ROW(5:5)),3) -> 434640 | E86: -351080 | F86: 1 | G86: =F86+COUNTIF($F$82:$F86,$F86)-1 -> 1 | K86: Array formula
A87: ="Chart 7 : Interactive Expenses (select in cell G24 to change - default is total operating expenses)" -> Chart 7 : Interactive Expenses (select in cell G24 to change - default is total operating expenses)
A88: =IF(ISBLANK($G$24),A75,$G$24) -> Operating expenses | C88: =IF(ISNA(MATCH(DB!$A88,IncRowNo,0)),0,OFFSET(IS!$B$1,MATCH(DB!$A88,IncRowNo,0)-1,C$57,1,1)) -> 2427451 | D88: =IF(ISNA(MATCH(DB!$A88,IncRowNo,0)),0,OFFSET(IS!$B$1,MATCH(DB!$A88,IncRowNo,0)-1,D$57,1,1)) -> 1896411 | E88: =IF(ISNA(MATCH(DB!$A88,IncRowNo,0)),0,OFFSET(IS!$B$1,MATCH(DB!$A88,IncRowNo,0)-1,E$57,1,1)) -> 1603492 | K88: Income Statement formula
A89: ="Chart 8 : Cash Balance" -> Chart 8 : Cash Balance | C89: =$C$59&" Cash Balance" -> 2023 Cash Balance
A90: =CFS!B44 -> Cash equivalents at end of period | C90: =IF(ISNA(MATCH(DB!$A90,CfsRowNo,0)),0,OFFSET(CFS!$B$1,MATCH(DB!$A90,CfsRowNo,0)-1,C$57,1,1)) -> 326674 | D90: =IF(ISNA(MATCH(DB!$A90,CfsRowNo,0)),0,OFFSET(CFS!$B$1,MATCH(DB!$A90,CfsRowNo,0)-1,D$57,1,1)) -> 393980 | E90: =IF(ISNA(MATCH(DB!$A90,CfsRowNo,0)),0,OFFSET(CFS!$B$1,MATCH(DB!$A90,CfsRowNo,0)-1,E$57,1,1)) -> 187624 | K90: Cash Flow Statement formula
A91: Cash & cash equivalents section | C91: =$C$59 -> 2023 | D91: =$D$59 -> 2022
A92: =CFS!B27 -> Net cash from operating activities | C92: =IF(ISNA(MATCH(DB!$A92,CfsRowNo,0)),0,OFFSET(CFS!$B$1,MATCH(DB!$A92,CfsRowNo,0)-1,C$57,1,1)) -> 1620482 | D92: =IF(ISNA(MATCH(DB!$A92,CfsRowNo,0)),0,OFFSET(CFS!$B$1,MATCH(DB!$A92,CfsRowNo,0)-1,D$57,1,1)) -> 1670075 | K92: Cash Flow Statement formula
A93: =CFS!B33 -> Net cash used in investing activities | C93: =IF(ISNA(MATCH(DB!$A93,CfsRowNo,0)),0,OFFSET(CFS!$B$1,MATCH(DB!$A93,CfsRowNo,0)-1,C$57,1,1)) -> -825000 | D93: =IF(ISNA(MATCH(DB!$A93,CfsRowNo,0)),0,OFFSET(CFS!$B$1,MATCH(DB!$A93,CfsRowNo,0)-1,D$57,1,1)) -> -1647250 | K93: Cash Flow Statement formula
A94: =CFS!B40 -> Net cash used in financing activities | C94: =IF(ISNA(MATCH(DB!$A94,CfsRowNo,0)),0,OFFSET(CFS!$B$1,MATCH(DB!$A94,CfsRowNo,0)-1,C$57,1,1)) -> -862788 | D94: =IF(ISNA(MATCH(DB!$A94,CfsRowNo,0)),0,OFFSET(CFS!$B$1,MATCH(DB!$A94,CfsRowNo,0)-1,D$57,1,1)) -> 183531 | K94: Cash Flow Statement formula
A95: =CFS!B42 -> Net increase / (decrease) in cash | C95: =IF(ISNA(MATCH(DB!$A95,CfsRowNo,0)),0,OFFSET(CFS!$B$1,MATCH(DB!$A95,CfsRowNo,0)-1,C$57,1,1)) -> -67306 | D95: =IF(ISNA(MATCH(DB!$A95,CfsRowNo,0)),0,OFFSET(CFS!$B$1,MATCH(DB!$A95,CfsRowNo,0)-1,D$57,1,1)) -> 206356 | K95: Cash Flow Statement formula
A96: Balance sheet summary section | C96: =$C$59 -> 2023 | D96: =$D$59 -> 2022
A97: =BS!B12 -> Total non-current assets | C97: =IF(ISNA(MATCH(DB!$A97,BalRowNo,0)),0,OFFSET(BS!$B$1,MATCH(DB!$A97,BalRowNo,0)-1,C$57,1,1)) -> 6180097 | D97: =IF(ISNA(MATCH(DB!$A97,BalRowNo,0)),0,OFFSET(BS!$B$1,MATCH(DB!$A97,BalRowNo,0)-1,D$57,1,1)) -> 6005677 | K97: Balance Sheet formula
A98: =BS!B20 -> Total current assets | C98: =IF(ISNA(MATCH(DB!$A98,BalRowNo,0)),0,OFFSET(BS!$B$1,MATCH(DB!$A98,BalRowNo,0)-1,C$57,1,1)) -> 1332666 | D98: =IF(ISNA(MATCH(DB!$A98,BalRowNo,0)),0,OFFSET(BS!$B$1,MATCH(DB!$A98,BalRowNo,0)-1,D$57,1,1)) -> 1297357 | K98: Balance Sheet formula
A99: =BS!B21 -> Total assets | C99: =IF(ISNA(MATCH(DB!$A99,BalRowNo,0)),0,OFFSET(BS!$B$1,MATCH(DB!$A99,BalRowNo,0)-1,C$57,1,1)) -> 7512763 | D99: =IF(ISNA(MATCH(DB!$A99,BalRowNo,0)),0,OFFSET(BS!$B$1,MATCH(DB!$A99,BalRowNo,0)-1,D$57,1,1)) -> 7303034 | K99: Balance Sheet formula
A100: =BS!B27 -> Total equity | C100: =IF(ISNA(MATCH(DB!$A100,BalRowNo,0)),0,OFFSET(BS!$B$1,MATCH(DB!$A100,BalRowNo,0)-1,C$57,1,1)) -> 5224874 | D100: =IF(ISNA(MATCH(DB!$A100,BalRowNo,0)),0,OFFSET(BS!$B$1,MATCH(DB!$A100,BalRowNo,0)-1,D$57,1,1)) -> 4340805 | K100: Balance Sheet formula
A101: =BS!B32 -> Total non-current liabilities | C101: =IF(ISNA(MATCH(DB!$A101,BalRowNo,0)),0,OFFSET(BS!$B$1,MATCH(DB!$A101,BalRowNo,0)-1,C$57,1,1)) -> 1317527 | D101: =IF(ISNA(MATCH(DB!$A101,BalRowNo,0)),0,OFFSET(BS!$B$1,MATCH(DB!$A101,BalRowNo,0)-1,D$57,1,1)) -> 2131482 | K101: Balance Sheet formula
A102: =BS!B42 -> Total current liabilities | C102: =IF(ISNA(MATCH(DB!$A102,BalRowNo,0)),0,OFFSET(BS!$B$1,MATCH(DB!$A102,BalRowNo,0)-1,C$57,1,1)) -> 970362 | D102: =IF(ISNA(MATCH(DB!$A102,BalRowNo,0)),0,OFFSET(BS!$B$1,MATCH(DB!$A102,BalRowNo,0)-1,D$57,1,1)) -> 830747 | K102: Balance Sheet formula
A103: =BS!B43 -> Total liabilities | C103: =IF(ISNA(MATCH(DB!$A103,BalRowNo,0)),0,OFFSET(BS!$B$1,MATCH(DB!$A103,BalRowNo,0)-1,C$57,1,1)) -> 2287889 | D103: =IF(ISNA(MATCH(DB!$A103,BalRowNo,0)),0,OFFSET(BS!$B$1,MATCH(DB!$A103,BalRowNo,0)-1,D$57,1,1)) -> 2962229 | K103: Balance Sheet formula
A104: =BS!B44 -> Total equity & liabilities | C104: =IF(ISNA(MATCH(DB!$A104,BalRowNo,0)),0,OFFSET(BS!$B$1,MATCH(DB!$A104,BalRowNo,0)-1,C$57,1,1)) -> 7512763 | D104: =IF(ISNA(MATCH(DB!$A104,BalRowNo,0)),0,OFFSET(BS!$B$1,MATCH(DB!$A104,BalRowNo,0)-1,D$57,1,1)) -> 7303034 | K104: Balance Sheet formula
A105: ="Chart 9 : "&A106 -> Chart 9 : 2023 Current Ratio | C105: V1 | D105: Value | E105: Rest | F105: Gap
A106: =$C$59&" Current Ratio" -> 2023 Current Ratio | C106: =IF(BS!C42=0,0,BS!C20/BS!C42) -> 1.373369938 | D106: =IF($C105="V1",(C106/(C106+1))*(100+F106),(100+F106)*(C106/100)) -> 75.22556391 | E106: =(100+F106)-D106 -> 54.77443609 | F106: 30 | K106: Line Item formula
A107: ="Chart 10 : "&A108 -> Chart 10 : 2023 Debt / Equity Ratio | C107: V1 | D107: Value | E107: Rest | F107: Gap
A108: =$C$59&" Debt / Equity Ratio" -> 2023 Debt / Equity Ratio | C108: =IF(BS!C27=0,0,BS!C43/BS!C27) -> 0.4378840523 | D108: =IF($C107="V1",(C108/(C108+1))*(100+F108),(100+F108)*(C108/100)) -> 39.58937211 | E108: =(100+F108)-D108 -> 90.41062789 | F108: 30 | K108: Line Item formula
A109: ="Chart 11 : "&A110 -> Chart 11 : 2023 RONA | C109: % | D109: Value | E109: Rest | F109: Gap
A110: =$C$59&" RONA" -> 2023 RONA | C110: =IF(BS!C21-BS!C42=0,0,IS!C38/(BS!C21-BS!C42))*100 -> 15.80564994 | D110: =IF($C109="V1",(C110/(C110+1))*(100+F110),(100+F110)*(C110/100)) -> 20.54734493 | E110: =(100+F110)-D110 -> 109.4526551 | F110: 30 | K110: Line Item formula

Sheet TBCheck (hidden)
A1: =IF(ISBLANK(Setup!$B$4),"Example (Pty) Limited",Setup!$B$4) -> Example (Pty) Limited
A2: Trial Balance Sequence Check
A3: © www.excel-skills.com | C3: =SUBTOTAL(109,OFFSET(C4,1,0,CheckRowCount,1)) -> 0 | D3: =IF(ROUND(C3,2)<>0,"error!","ok") -> ok | E3: =SUBTOTAL(109,OFFSET(E4,1,0,CheckRowCount,1)) -> 0
A4: Acc No | B4: Account Description | C4: Amount | D4: Check | E4: Amount
A5: BS-0005 | B5: Land & Buildings - Cost | C5: 2400000 | D5: =IF(OFFSET(TB!$C$4,ROW($A5)-ROW($A$4),0,1,1)=$A5,"ok","error!") -> ok | E5: =ROUND(C5,0) -> 2400000
A6: BS-0010 | B6: Plant & Equipment - Cost | C6: 1546045 | D6: =IF(OFFSET(TB!$C$4,ROW($A6)-ROW($A$4),0,1,1)=$A6,"ok","error!") -> ok | E6: =ROUND(C6,0) -> 1546045
A7: BS-0015 | B7: Furniture & Fittings - Cost | C7: 410000 | D7: =IF(OFFSET(TB!$C$4,ROW($A7)-ROW($A$4),0,1,1)=$A7,"ok","error!") -> ok | E7: 410000
A8: BS-0020 | B8: Office Equipment - Cost | C8: 240000 | D8: =IF(OFFSET(TB!$C$4,ROW($A8)-ROW($A$4),0,1,1)=$A8,"ok","error!") -> ok | E8: 240000
A9: BS-0025 | B9: Computer Equipment - Cost | C9: 165500 | D9: =IF(OFFSET(TB!$C$4,ROW($A9)-ROW($A$4),0,1,1)=$A9,"ok","error!") -> ok | E9: 165500
A10: BS-0030 | B10: Motor Vehicles - Cost | C10: 452000 | D10: =IF(OFFSET(TB!$C$4,ROW($A10)-ROW($A$4),0,1,1)=$A10,"ok","error!") -> ok | E10: 452000
A11: BS-0105 | B11: Land & Buildings - Accum Depreciation | C11: 0 | D11: =IF(OFFSET(TB!$C$4,ROW($A11)-ROW($A$4),0,1,1)=$A11,"ok","error!") -> ok | E11: 0
A12: BS-0110 | B12: Plant & Equipment - Accum Depreciation | C12: -1051018 | D12: =IF(OFFSET(TB!$C$4,ROW($A12)-ROW($A$4),0,1,1)=$A12,"ok","error!") -> ok | E12: -1051018
A13: BS-0115 | B13: Furniture & Fittings - Accum Depreciation | C13: -224700 | D13: =IF(OFFSET(TB!$C$4,ROW($A13)-ROW($A$4),0,1,1)=$A13,"ok","error!") -> ok | E13: -224700
A14: BS-0120 | B14: Office Equipment - Accum Depreciation | C14: -186980 | D14: =IF(OFFSET(TB!$C$4,ROW($A14)-ROW($A$4),0,1,1)=$A14,"ok","error!") -> ok | E14: -186980
A15: BS-0125 | B15: Computer Equipment - Accum Depreciation | C15: -145550 | D15: =IF(OFFSET(TB!$C$4,ROW($A15)-ROW($A$4),0,1,1)=$A15,"ok","error!") -> ok | E15: -145550
A16: BS-0130 | B16: Motor Vehicles - Accum Depreciation | C16: -56500 | D16: =IF(OFFSET(TB!$C$4,ROW($A16)-ROW($A$4),0,1,1)=$A16,"ok","error!") -> ok | E16: -56500
A17: BS-0205 | B17: Goodwill - Cost | C17: 500000 | D17: =IF(OFFSET(TB!$C$4,ROW($A17)-ROW($A$4),0,1,1)=$A17,"ok","error!") -> ok | E17: 500000
A18: BS-0210 | B18: Trademarks - Cost | C18: 390500 | D18: =IF(OFFSET(TB!$C$4,ROW($A18)-ROW($A$4),0,1,1)=$A18,"ok","error!") -> ok | E18: 390500
A19: BS-0215 | B19: Software - Cost | C19: 150000 | D19: =IF(OFFSET(TB!$C$4,ROW($A19)-ROW($A$4),0,1,1)=$A19,"ok","error!") -> ok | E19: 150000
A20: BS-0305 | B20: Goodwill - Accum Amortization | C20: -200000 | D20: =IF(OFFSET(TB!$C$4,ROW($A20)-ROW($A$4),0,1,1)=$A20,"ok","error!") -> ok | E20: -200000
A21: BS-0310 | B21: Trademarks - Accum Amortization | C21: -156200 | D21: =IF(OFFSET(TB!$C$4,ROW($A21)-ROW($A$4),0,1,1)=$A21,"ok","error!") -> ok | E21: -156200
A22: BS-0315 | B22: Software - Accum Amortization | C22: -60000 | D22: =IF(OFFSET(TB!$C$4,ROW($A22)-ROW($A$4),0,1,1)=$A22,"ok","error!") -> ok | E22: -60000
A23: BS-0400 | B23: Share Investment - XYZ | C23: 802500 | D23: =IF(OFFSET(TB!$C$4,ROW($A23)-ROW($A$4),0,1,1)=$A23,"ok","error!") -> ok | E23: 802500
A24: BS-0405 | B24: ABSA Fixed Deposit | C24: 1500000 | D24: =IF(OFFSET(TB!$C$4,ROW($A24)-ROW($A$4),0,1,1)=$A24,"ok","error!") -> ok | E24: 1500000
A25: BS-0500 | B25: Loans & Advances | C25: 60000 | D25: =IF(OFFSET(TB!$C$4,ROW($A25)-ROW($A$4),0,1,1)=$A25,"ok","error!") -> ok | E25: 60000
A26: BS-0700 | B26: Cash On Hand | C26: 0 | D26: =IF(OFFSET(TB!$C$4,ROW($A26)-ROW($A$4),0,1,1)=$A26,"ok","error!") -> ok | E26: 0
A27: BS-0799 | B27: Cash Transfer Control | C27: 0 | D27: =IF(OFFSET(TB!$C$4,ROW($A27)-ROW($A$4),0,1,1)=$A27,"ok","error!") -> ok | E27: 0
A28: BS-0900 | B28: Other Debtors | C28: 0 | D28: =IF(OFFSET(TB!$C$4,ROW($A28)-ROW($A$4),0,1,1)=$A28,"ok","error!") -> ok | E28: 0
A29: BS-0905 | B29: Prepayments | C29: 24000 | D29: =IF(OFFSET(TB!$C$4,ROW($A29)-ROW($A$4),0,1,1)=$A29,"ok","error!") -> ok | E29: 24000
A30: BS-1001 | B30: Raw Materials | C30: 85200 | D30: =IF(OFFSET(TB!$C$4,ROW($A30)-ROW($A$4),0,1,1)=$A30,"ok","error!") -> ok | E30: 85200
A31: BS-1002 | B31: Work in progress | C31: 22653 | D31: =IF(OFFSET(TB!$C$4,ROW($A31)-ROW($A$4),0,1,1)=$A31,"ok","error!") -> ok | E31: 22653
A32: BS-1003 | B32: Finished goods | C32: 0 | D32: =IF(OFFSET(TB!$C$4,ROW($A32)-ROW($A$4),0,1,1)=$A32,"ok","error!") -> ok | E32: 0
A33: BS-1100 | B33: Bank Overdraft | C33: 0 | D33: =IF(OFFSET(TB!$C$4,ROW($A33)-ROW($A$4),0,1,1)=$A33,"ok","error!") -> ok | E33: 0
A34: BS-1300 | B34: Accruals | C34: -90365 | D34: =IF(OFFSET(TB!$C$4,ROW($A34)-ROW($A$4),0,1,1)=$A34,"ok","error!") -> ok | E34: -90365
A35: BS-1305 | B35: Payroll Accruals | C35: -20572 | D35: =IF(OFFSET(TB!$C$4,ROW($A35)-ROW($A$4),0,1,1)=$A35,"ok","error!") -> ok | E35: -20572
A36: BS-1310 | B36: Interest Payable | C36: -16185 | D36: =IF(OFFSET(TB!$C$4,ROW($A36)-ROW($A$4),0,1,1)=$A36,"ok","error!") -> ok | E36: -16185
A37: BS-1405 | B37: Dividends Payable | C37: -150000 | D37: =IF(OFFSET(TB!$C$4,ROW($A37)-ROW($A$4),0,1,1)=$A37,"ok","error!") -> ok | E37: -150000
A38: BS-1505 | B38: Provision For Taxation | C38: -215724 | D38: =IF(OFFSET(TB!$C$4,ROW($A38)-ROW($A$4),0,1,1)=$A38,"ok","error!") -> ok | E38: -215724
A39: BS-1610 | B39: Other provisions | C39: -214823 | D39: =IF(OFFSET(TB!$C$4,ROW($A39)-ROW($A$4),0,1,1)=$A39,"ok","error!") -> ok | E39: -214823
A40: BS-1700 | B40: Sales Tax Control | C40: -75891 | D40: =IF(OFFSET(TB!$C$4,ROW($A40)-ROW($A$4),0,1,1)=$A40,"ok","error!") -> ok | E40: -75891
A41: BS-1805 | B41: ABSA Loan | C41: -604187 | D41: =IF(OFFSET(TB!$C$4,ROW($A41)-ROW($A$4),0,1,1)=$A41,"ok","error!") -> ok | E41: -604187
A42: BS-1810 | B42: Investec Loan | C42: -661805 | D42: =IF(OFFSET(TB!$C$4,ROW($A42)-ROW($A$4),0,1,1)=$A42,"ok","error!") -> ok | E42: -661805
A43: BS-1815 | B43: Finance Leases | C43: -416240 | D43: =IF(OFFSET(TB!$C$4,ROW($A43)-ROW($A$4),0,1,1)=$A43,"ok","error!") -> ok | E43: -416240
A44: BS-1900 | B44: Reserves | C44: 0 | D44: =IF(OFFSET(TB!$C$4,ROW($A44)-ROW($A$4),0,1,1)=$A44,"ok","error!") -> ok | E44: 0
A45: BS-2000 | B45: Shareholders' Contributions | C45: -1000 | D45: =IF(OFFSET(TB!$C$4,ROW($A45)-ROW($A$4),0,1,1)=$A45,"ok","error!") -> ok | E45: -1000
A46: BS-2200 | B46: Deferred Tax | C46: 33790 | D46: =IF(OFFSET(TB!$C$4,ROW($A46)-ROW($A$4),0,1,1)=$A46,"ok","error!") -> ok | E46: 33790
A47: IS-0105 | B47: Sales - Fruit Juice | C47: -4370245 | D47: =IF(OFFSET(TB!$C$4,ROW($A47)-ROW($A$4),0,1,1)=$A47,"ok","error!") -> ok | E47: -4370245
A48: IS-0110 | B48: Sales - Vegetable Juice | C48: -2541378 | D48: =IF(OFFSET(TB!$C$4,ROW($A48)-ROW($A$4),0,1,1)=$A48,"ok","error!") -> ok | E48: -2541378
A49: IS-0205 | B49: Cost of Sales - Fruit Juice | C49: 1966610 | D49: =IF(OFFSET(TB!$C$4,ROW($A49)-ROW($A$4),0,1,1)=$A49,"ok","error!") -> ok | E49: 1966610
A50: IS-0210 | B50: Cost of Sales - Vegetable Juice | C50: 914965 | D50: =IF(OFFSET(TB!$C$4,ROW($A50)-ROW($A$4),0,1,1)=$A50,"ok","error!") -> ok | E50: 914965
A51: IS-0299 | B51: Cost of Sales - Direct Costs | C51: 0 | D51: =IF(OFFSET(TB!$C$4,ROW($A51)-ROW($A$4),0,1,1)=$A51,"ok","error!") -> ok | E51: 0
A52: IS-0305 | B52: Accounting Fees | C52: 24000 | D52: =IF(OFFSET(TB!$C$4,ROW($A52)-ROW($A$4),0,1,1)=$A52,"ok","error!") -> ok | E52: 24000
A53: IS-0310 | B53: Advertising & Marketing | C53: 143644 | D53: =IF(OFFSET(TB!$C$4,ROW($A53)-ROW($A$4),0,1,1)=$A53,"ok","error!") -> ok | E53: 143644
A54: IS-0315 | B54: Bank Charges | C54: 1180 | D54: =IF(OFFSET(TB!$C$4,ROW($A54)-ROW($A$4),0,1,1)=$A54,"ok","error!") -> ok | E54: 1180
A55: IS-0320 | B55: Commission | C55: 27850 | D55: =IF(OFFSET(TB!$C$4,ROW($A55)-ROW($A$4),0,1,1)=$A55,"ok","error!") -> ok | E55: 27850
A56: IS-0325 | B56: Computer Expenses | C56: 3477 | D56: =IF(OFFSET(TB!$C$4,ROW($A56)-ROW($A$4),0,1,1)=$A56,"ok","error!") -> ok | E56: 3477
A57: IS-0330 | B57: Consumables & Cleaning | C57: 2500 | D57: =IF(OFFSET(TB!$C$4,ROW($A57)-ROW($A$4),0,1,1)=$A57,"ok","error!") -> ok | E57: 2500
A58: IS-0335 | B58: Entertainment | C58: 12420 | D58: =IF(OFFSET(TB!$C$4,ROW($A58)-ROW($A$4),0,1,1)=$A58,"ok","error!") -> ok | E58: 12420
A59: IS-0340 | B59: Insurance | C59: 3840 | D59: =IF(OFFSET(TB!$C$4,ROW($A59)-ROW($A$4),0,1,1)=$A59,"ok","error!") -> ok | E59: 3840
A60: IS-0345 | B60: Office Expenses | C60: 996 | D60: =IF(OFFSET(TB!$C$4,ROW($A60)-ROW($A$4),0,1,1)=$A60,"ok","error!") -> ok | E60: 996
A61: IS-0350 | B61: Office Rent | C61: 144000 | D61: =IF(OFFSET(TB!$C$4,ROW($A61)-ROW($A$4),0,1,1)=$A61,"ok","error!") -> ok | E61: 144000
A62: IS-0355 | B62: Postage | C62: 524 | D62: =IF(OFFSET(TB!$C$4,ROW($A62)-ROW($A$4),0,1,1)=$A62,"ok","error!") -> ok | E62: 524
A63: IS-0360 | B63: Professional & Legal Fees | C63: 5652 | D63: =IF(OFFSET(TB!$C$4,ROW($A63)-ROW($A$4),0,1,1)=$A63,"ok","error!") -> ok | E63: 5652
A64: IS-0365 | B64: Stationery | C64: 2491 | D64: =IF(OFFSET(TB!$C$4,ROW($A64)-ROW($A$4),0,1,1)=$A64,"ok","error!") -> ok | E64: 2491
A65: IS-0370 | B65: Subscriptions & Memberships | C65: 5200 | D65: =IF(OFFSET(TB!$C$4,ROW($A65)-ROW($A$4),0,1,1)=$A65,"ok","error!") -> ok | E65: 5200
A66: IS-0375 | B66: Telephone & Internet | C66: 8867 | D66: =IF(OFFSET(TB!$C$4,ROW($A66)-ROW($A$4),0,1,1)=$A66,"ok","error!") -> ok | E66: 8867
A67: IS-0380 | B67: Training | C67: 4043 | D67: =IF(OFFSET(TB!$C$4,ROW($A67)-ROW($A$4),0,1,1)=$A67,"ok","error!") -> ok | E67: 4043
A68: IS-0385 | B68: Travelling & Accommodation | C68: 13705 | D68: =IF(OFFSET(TB!$C$4,ROW($A68)-ROW($A$4),0,1,1)=$A68,"ok","error!") -> ok | E68: 13705
A69: IS-0390 | B69: Utilities | C69: 6540 | D69: =IF(OFFSET(TB!$C$4,ROW($A69)-ROW($A$4),0,1,1)=$A69,"ok","error!") -> ok | E69: 6540
A70: IS-0405 | B70: Salaries & Wages - Staff | C70: 548600 | D70: =IF(OFFSET(TB!$C$4,ROW($A70)-ROW($A$4),0,1,1)=$A70,"ok","error!") -> ok | E70: =ROUND(C70,0) -> 548600
A71: IS-0410 | B71: Salaries & Wages - Management | C71: 685720 | D71: =IF(OFFSET(TB!$C$4,ROW($A71)-ROW($A$4),0,1,1)=$A71,"ok","error!") -> ok | E71: 685720
A72: IS-0505 | B72: Depreciation | C72: 513280 | D72: =IF(OFFSET(TB!$C$4,ROW($A72)-ROW($A$4),0,1,1)=$A72,"ok","error!") -> ok | E72: 513280
A73: IS-0510 | B73: Amortisation | C73: 104050 | D73: =IF(OFFSET(TB!$C$4,ROW($A73)-ROW($A$4),0,1,1)=$A73,"ok","error!") -> ok | E73: 104050
A74: IS-0605 | B74: Interest Paid | C74: 194222 | D74: =IF(OFFSET(TB!$C$4,ROW($A74)-ROW($A$4),0,1,1)=$A74,"ok","error!") -> ok | E74: 194222
A75: IS-0700 | B75: Taxation | C75: 442236 | D75: =IF(OFFSET(TB!$C$4,ROW($A75)-ROW($A$4),0,1,1)=$A75,"ok","error!") -> ok | E75: 442236
A76: IS-0800 | B76: Other Expenses | C76: 125362 | D76: =IF(OFFSET(TB!$C$4,ROW($A76)-ROW($A$4),0,1,1)=$A76,"ok","error!") -> ok | E76: 125362
A77: IS-0805 | B77: Foreign Exchange Loss | C77: 6260 | D77: =IF(OFFSET(TB!$C$4,ROW($A77)-ROW($A$4),0,1,1)=$A77,"ok","error!") -> ok | E77: 6260
A78: IS-0810 | B78: Loss on Disposal of Assets | C78: 0 | D78: =IF(OFFSET(TB!$C$4,ROW($A78)-ROW($A$4),0,1,1)=$A78,"ok","error!") -> ok | E78: 0
A79: IS-0900 | B79: Other Income | C79: -41850 | D79: =IF(OFFSET(TB!$C$4,ROW($A79)-ROW($A$4),0,1,1)=$A79,"ok","error!") -> ok | E79: -41850
A80: IS-0905 | B80: Dividends Received | C80: -4065 | D80: =IF(OFFSET(TB!$C$4,ROW($A80)-ROW($A$4),0,1,1)=$A80,"ok","error!") -> ok | E80: -4065
A81: IS-0910 | B81: Profit on Disposal of Assets | C81: -48250 | D81: =IF(OFFSET(TB!$C$4,ROW($A81)-ROW($A$4),0,1,1)=$A81,"ok","error!") -> ok | E81: -48250
A82: IS-0915 | B82: Interest Received | C82: -5100 | D82: =IF(OFFSET(TB!$C$4,ROW($A82)-ROW($A$4),0,1,1)=$A82,"ok","error!") -> ok | E82: -5100
A83: IS-1000 | B83: Dividends | C83: 150000 | D83: =IF(OFFSET(TB!$C$4,ROW($A83)-ROW($A$4),0,1,1)=$A83,"ok","error!") -> ok | E83: 150000
A84: BS-BB1 | B84: B1 Bank Account | C84: 276526 | D84: =IF(OFFSET(TB!$C$4,ROW($A84)-ROW($A$4),0,1,1)=$A84,"ok","error!") -> ok | E84: 276526
A85: BS-BB2 | B85: B2 Bank Account | C85: 40691 | D85: =IF(OFFSET(TB!$C$4,ROW($A85)-ROW($A$4),0,1,1)=$A85,"ok","error!") -> ok | E85: 40691
A86: BS-BB3 | B86: B3 Bank Account | C86: 9457 | D86: =IF(OFFSET(TB!$C$4,ROW($A86)-ROW($A$4),0,1,1)=$A86,"ok","error!") -> ok | E86: 9457
A87: BS-BPC | B87: PC Petty Cash | C87: 1000 | D87: =IF(OFFSET(TB!$C$4,ROW($A87)-ROW($A$4),0,1,1)=$A87,"ok","error!") -> ok | E87: 1000
A88: BS-BJC | B88: GL Journal Control | C88: 0 | D88: =IF(OFFSET(TB!$C$4,ROW($A88)-ROW($A$4),0,1,1)=$A88,"ok","error!") -> ok | E88: 0
A89: BS-STG | B89: Inventory | C89: 245060 | D89: =IF(OFFSET(TB!$C$4,ROW($A89)-ROW($A$4),0,1,1)=$A89,"ok","error!") -> ok | E89: 245060
A90: BS-RCG | B90: Trade Debtors | C90: 568079 | D90: =IF(OFFSET(TB!$C$4,ROW($A90)-ROW($A$4),0,1,1)=$A90,"ok","error!") -> ok | E90: 568079
A91: BS-PAG | B91: Trade Creditors | C91: -186802 | D91: =IF(OFFSET(TB!$C$4,ROW($A91)-ROW($A$4),0,1,1)=$A91,"ok","error!") -> ok | E91: -186802
A92: BS-RTG | B92: Retained Earnings | C92: -4239805 | D92: =IF(OFFSET(TB!$C$4,ROW($A92)-ROW($A$4),0,1,1)=$A92,"ok","error!") -> ok | E92: -4239805
